Department,Entity, Transaction Date, Expense Type, Expense Area, Supplier Name,Transaction number, Amount, Invoice Description
DFID,DFID,01/06/2017,Air fares ,Conflict  Humanitarian  Security & Stabilisation Division ,Corporate Travel Provider ,100049-102 ,680.17,
DFID,DFID,01/06/2017,Air fares ,Conflict  Humanitarian  Security & Stabilisation Division ,Corporate Travel Provider ,100049-102 ,624.40,
DFID,DFID,01/06/2017,Hotels - Accommodation only ,Conflict  Humanitarian  Security & Stabilisation Division ,Corporate Travel Provider ,100049-133 ,627.65,
DFID,DFID,01/06/2017,Hotels - Accommodation only ,Conflict  Humanitarian  Security & Stabilisation Division ,Corporate Travel Provider ,100049-133 ,529.35,
DFID,DFID,01/06/2017,Hotels - Accommodation only ,Conflict  Humanitarian  Security & Stabilisation Division ,Corporate Travel Provider ,100049-133 ,563.19,
DFID,DFID,01/06/2017,Hotels - Accommodation only ,Conflict  Humanitarian  Security & Stabilisation Division ,Corporate Travel Provider ,100049-133 ,505.65,
DFID,DFID,01/06/2017,Air fares ,Conflict  Humanitarian  Security & Stabilisation Division ,Corporate Travel Provider ,100049-134 ,"1,136.77",
DFID,DFID,01/06/2017,Air fares ,Conflict  Humanitarian  Security & Stabilisation Division ,Corporate Travel Provider ,100049-134 ,"1,136.77",
DFID,DFID,01/06/2017,Hotels - Accommodation only ,Conflict  Humanitarian  Security & Stabilisation Division ,Corporate Travel Provider ,100049-134 ,547.00,
DFID,DFID,01/06/2017,Air fares ,West and Southern Africa ,Corporate Travel Provider ,100068-101 ,589.10,
DFID,DFID,01/06/2017,Air fares ,Asia  Caribbean and Overseas Territories ,Corporate Travel Provider ,100084-101 ,648.47,
DFID,DFID,01/06/2017,Air fares ,Asia  Caribbean and Overseas Territories ,Corporate Travel Provider ,100084-101 ,"1,027.70",
DFID,DFID,01/06/2017,Air fares ,Asia  Caribbean and Overseas Territories ,Corporate Travel Provider ,100084-101 ,610.07,
DFID,DFID,01/06/2017,Hotels - Accommodation only ,Asia  Caribbean and Overseas Territories ,Corporate Travel Provider ,100084-101 ,"2,755.04",
DFID,DFID,01/06/2017,Hotels - Accommodation only ,Asia  Caribbean and Overseas Territories ,Corporate Travel Provider ,100084-101 ,"2,284.80",
DFID,DFID,01/06/2017,Hotels - Accommodation only ,Asia  Caribbean and Overseas Territories ,Corporate Travel Provider ,100084-101 ,"2,500.00",
DFID,DFID,01/06/2017,Air fares ,Asia  Caribbean and Overseas Territories ,Foreign & Commonwealth Office ,100084-101 ,"1,052.64",
DFID,DFID,15/06/2017,Conferences  Seminars & Meeting/Event Resource ,Asia  Caribbean and Overseas Territories ,Foreign & Commonwealth Office ,100084-101 ,617.25,
DFID,DFID,01/06/2017,Air fares ,Asia  Caribbean and Overseas Territories ,Corporate Travel Provider ,100011-110 ,692.07,
DFID,DFID,01/06/2017,Hotels - Accommodation only ,International Relations Division ,Corporate Travel Provider ,100111-101 ,831.06,
DFID,DFID,01/06/2017,Air fares ,International Relations Division ,Corporate Travel Provider ,100111-101 ,865.17,
DFID,DFID,01/06/2017,Air fares ,Internal Audit ,Corporate Travel Provider ,100121-101 ,"1,300.87",
DFID,DFID,01/06/2017,Air fares ,Internal Audit ,Corporate Travel Provider ,100121-101 ,"1,300.87",
DFID,DFID,01/06/2017,Air fares ,Middle East and North Africa Division ,Corporate Travel Provider ,100146-101 ,536.50,
DFID,DFID,01/06/2017,Air fares ,Middle East and North Africa Division ,Corporate Travel Provider ,100146-101 ,747.40,
DFID,DFID,01/06/2017,Air fares ,Middle East and North Africa Division ,Corporate Travel Provider ,100146-101 ,637.40,
DFID,DFID,01/06/2017,Air fares ,Middle East and North Africa Division ,Corporate Travel Provider ,100146-101 ,692.37,
DFID,DFID,01/06/2017,Air fares ,Middle East and North Africa Division ,Corporate Travel Provider ,100146-101 ,"1,328.97",
DFID,DFID,01/06/2017,Air fares ,Middle East and North Africa Division ,Corporate Travel Provider ,100146-101 ,536.50,
DFID,DFID,01/06/2017,Air fares ,Policy Division ,Corporate Travel Provider ,100191-101 ,803.23,
DFID,DFID,01/06/2017,Air fares ,Communications Division ,Corporate Travel Provider ,100197-101 ,532.07,
DFID,DFID,01/06/2017,Air fares ,Top Management Group ,Corporate Travel Provider ,100232-104 ,"3,002.27",
DFID,DFID,01/06/2017,Air fares ,Top Management Group ,Corporate Travel Provider ,100232-104 ,"3,002.27",
DFID,DFID,01/06/2017,Air fares ,Top Management Group ,Corporate Travel Provider ,100232-105 ,"1,390.97",
DFID,DFID,01/06/2017,Air fares ,Top Management Group ,Corporate Travel Provider ,100232-105 ,"1,756.20",
DFID,DFID,01/06/2017,Air fares ,Top Management Group ,Corporate Travel Provider ,100232-105 ,"2,645.07",
DFID,DFID,01/06/2017,Project delivery costs – supplier services ,International Relations Division ,Foreign & Commonwealth Office ,100238-101 ,616.78,
DFID,DFID,01/06/2017,Hotels - Accommodation only ,International Relations Division ,Corporate Travel Provider ,100240-101 ,732.06,
DFID,DFID,01/06/2017,Air fares ,International Relations Division ,Corporate Travel Provider ,100240-101 ,"1,071.59",
DFID,DFID,01/06/2017,Hotels - Accommodation only ,International Relations Division ,Corporate Travel Provider ,100240-101 ,"1,299.09",
DFID,DFID,01/06/2017,Air fares ,International Relations Division ,Corporate Travel Provider ,100240-101 ,"1,561.97",
DFID,DFID,01/06/2017,Air fares ,International Relations Division ,Corporate Travel Provider ,100240-101 ,524.00,
DFID,DFID,01/06/2017,Air fares ,International Relations Division ,Corporate Travel Provider ,100240-101 ,679.69,
DFID,DFID,01/06/2017,Hotels - Accommodation only ,International Relations Division ,Corporate Travel Provider ,100240-101 ,863.86,
DFID,DFID,01/06/2017,Air fares ,International Relations Division ,Corporate Travel Provider ,100240-101 ,"1,080.69",
DFID,DFID,01/06/2017,Air fares ,East and Central Africa ,Corporate Travel Provider ,100016-110 ,"1,328.80",
DFID,DFID,01/06/2017,Air fares ,East and Central Africa ,Corporate Travel Provider ,100016-110 ,"1,756.20",
DFID,DFID,01/06/2017,Air fares ,East and Central Africa ,Corporate Travel Provider ,100016-110 ,"1,390.97",
DFID,DFID,01/06/2017,Hotels - Accommodation only ,Research and Evidence Division ,Corporate Travel Provider ,100039-108 ,581.44,
DFID,DFID,01/06/2017,Air fares ,Research and Evidence Division ,Corporate Travel Provider ,100039-110 ,921.07,
DFID,DFID,01/06/2017,Air fares ,Research and Evidence Division ,Corporate Travel Provider ,100039-110 ,984.94,
DFID,DFID,01/06/2017,Air fares ,Research and Evidence Division ,Corporate Travel Provider ,100039-111 ,604.47,
DFID,DFID,01/06/2017,Air fares ,Research and Evidence Division ,Corporate Travel Provider ,100039-111 ,840.20,
DFID,DFID,01/06/2017,Air fares ,Policy Division ,Corporate Travel Provider ,100045-101 ,534.30,
DFID,DFID,01/06/2017,Air fares ,Research and Evidence Division ,Corporate Travel Provider ,100088-101 ,857.00,
DFID,DFID,01/06/2017,Air fares ,Research and Evidence Division ,Corporate Travel Provider ,100088-101 ,663.84,
DFID,DFID,01/06/2017,Other passenger transport ,Research and Evidence Division ,Corporate Travel Provider ,100088-101 ,609.84,
DFID,DFID,01/06/2017,Air fares ,Policy Division ,Corporate Travel Provider ,100098-101 ,902.20,
DFID,DFID,01/06/2017,Air fares ,Policy Division ,Corporate Travel Provider ,100098-101 ,737.77,
DFID,DFID,01/06/2017,Air fares ,Top Management Group ,Corporate Travel Provider ,100232-106 ,540.97,
DFID,DFID,01/06/2017,Air fares ,Top Management Group ,Corporate Travel Provider ,100232-106 ,506.00,
DFID,DFID,01/06/2017,Air fares ,Top Management Group ,Corporate Travel Provider ,100232-106 ,506.00,
DFID,DFID,01/06/2017,Air fares ,Top Management Group ,Corporate Travel Provider ,100232-108 ,924.37,
DFID,DFID,01/06/2017,Air fares ,Policy Division ,Corporate Travel Provider ,100274-111 ,"1,128.39",
DFID,DFID,01/06/2017,Hotels - Accommodation only ,Policy Division ,Corporate Travel Provider ,100274-111 ,933.51,
DFID,DFID,01/06/2017,Air fares ,Policy Division ,Corporate Travel Provider ,100274-111 ,853.87,
DFID,DFID,01/06/2017,Air fares ,Policy Division ,Corporate Travel Provider ,100274-111 ,651.77,
DFID,DFID,01/06/2017,Air fares ,Economic Development Division ,Corporate Travel Provider ,100275-101 ,"1,280.70",
DFID,DFID,01/06/2017,Air fares ,Economic Development Division ,Corporate Travel Provider ,100276-101 ,928.03,
DFID,DFID,01/06/2017,Air fares ,Economic Development Division ,Corporate Travel Provider ,100276-101 ,575.20,
DFID,DFID,01/06/2017,Air fares ,Economic Development Division ,Corporate Travel Provider ,100276-101 ,"1,336.17",
DFID,DFID,01/06/2017,Air fares ,Economic Development Division ,Corporate Travel Provider ,100276-101 ,600.70,
DFID,DFID,01/06/2017,Air fares ,Middle East and North Africa Division ,Corporate Travel Provider ,100307-101 ,747.95,
DFID,DFID,01/06/2017,Hotels - Accommodation only ,Middle East and North Africa Division ,Corporate Travel Provider ,100307-101 ,"1,008.00",
DFID,DFID,01/06/2017,Air fares ,Asia  Caribbean and Overseas Territories ,Corporate Travel Provider ,101601-110 ,683.07,
DFID,DFID,01/06/2017,Air fares ,Asia  Caribbean and Overseas Territories ,Corporate Travel Provider ,101601-110 ,"1,405.23",
DFID,DFID,01/06/2017,Air fares ,Asia  Caribbean and Overseas Territories ,Corporate Travel Provider ,101601-110 ,"1,188.47",
DFID,DFID,01/06/2017,Air fares ,Asia  Caribbean and Overseas Territories ,Corporate Travel Provider ,101601-110 ,"1,421.60",
DFID,DFID,01/06/2017,Air fares ,Asia  Caribbean and Overseas Territories ,Corporate Travel Provider ,101601-110 ,"1,405.23",
DFID,DFID,01/06/2017,Air fares ,Asia  Caribbean and Overseas Territories ,Corporate Travel Provider ,101601-110 ,"1,745.40",
DFID,DFID,09/06/2017,Air fares ,Asia  Caribbean and Overseas Territories ,Foreign & Commonwealth Office ,101601-110 ,"5,425.00",
DFID,DFID,13/06/2017,Air fares ,Asia  Caribbean and Overseas Territories ,Foreign & Commonwealth Office ,101601-110 ,"34,019.05",Secure air transport support costs for Kabul for April 2017
DFID,DFID,13/06/2017,Training - Travel & Subsistence ,Asia  Caribbean and Overseas Territories ,Foreign & Commonwealth Office ,101605-101 ,"5,477.67",
DFID,DFID,13/06/2017,Hotels - Accommodation only ,Asia  Caribbean and Overseas Territories ,Foreign & Commonwealth Office ,101605-101 ,600.34,
DFID,DFID,13/06/2017,Hotels - Accommodation only ,Asia  Caribbean and Overseas Territories ,Foreign & Commonwealth Office ,101605-101 ,"1,601.27",
DFID,DFID,13/06/2017,Training - Travel & Subsistence ,Asia  Caribbean and Overseas Territories ,Foreign & Commonwealth Office ,101605-101 ,551.51,
DFID,DFID,13/06/2017,Training - Travel & Subsistence ,Asia  Caribbean and Overseas Territories ,Foreign & Commonwealth Office ,101605-101 ,574.72,
DFID,DFID,13/06/2017,Training - Travel & Subsistence ,Asia  Caribbean and Overseas Territories ,Foreign & Commonwealth Office ,101605-101 ,"1,178.66",
DFID,DFID,13/06/2017,Air fares ,Asia  Caribbean and Overseas Territories ,Foreign & Commonwealth Office ,101605-101 ,"4,519.23",
DFID,DFID,09/06/2017,Air fares ,Asia  Caribbean and Overseas Territories ,Foreign & Commonwealth Office ,101605-101 ,"1,001.09",
DFID,DFID,09/06/2017,Air fares ,Asia  Caribbean and Overseas Territories ,Foreign & Commonwealth Office ,101605-101 ,"1,436.88",
DFID,DFID,09/06/2017,Air fares ,Asia  Caribbean and Overseas Territories ,Foreign & Commonwealth Office ,101605-101 ,658.95,
DFID,DFID,14/06/2017,Air fares ,Asia  Caribbean and Overseas Territories ,Foreign & Commonwealth Office ,101605-101 ,"1,782.72",
DFID,DFID,14/06/2017,Hotels - Accommodation only ,Asia  Caribbean and Overseas Territories ,Foreign & Commonwealth Office ,101605-101 ,666.87,
DFID,DFID,01/06/2017,Hotels - Accommodation only ,Asia  Caribbean and Overseas Territories ,Corporate Travel Provider ,101605-101 ,868.86,
DFID,DFID,01/06/2017,Air fares ,Asia  Caribbean and Overseas Territories ,Corporate Travel Provider ,101603-101 ,516.07,
DFID,DFID,01/06/2017,Hotels - Accommodation only ,Asia  Caribbean and Overseas Territories ,Corporate Travel Provider ,101603-101 ,648.18,
DFID,DFID,01/06/2017,Air fares ,West and Southern Africa ,Corporate Travel Provider ,101610-101 ,514.57,
DFID,DFID,01/06/2017,Air fares ,West and Southern Africa ,Corporate Travel Provider ,101610-101 ,797.40,
DFID,DFID,01/06/2017,Air fares ,West and Southern Africa ,Corporate Travel Provider ,101610-101 ,"1,122.14",
DFID,DFID,01/06/2017,Air fares ,West and Southern Africa ,Corporate Travel Provider ,101610-101 ,859.90,
DFID,DFID,01/06/2017,Air fares ,West and Southern Africa ,Corporate Travel Provider ,101610-101 ,952.70,
DFID,DFID,01/06/2017,Air fares ,West and Southern Africa ,Corporate Travel Provider ,101610-101 ,822.30,
DFID,DFID,01/06/2017,Hotels - Accommodation only ,West and Southern Africa ,Corporate Travel Provider ,101610-101 ,"1,172.77",
DFID,DFID,01/06/2017,Hotels - Accommodation only ,West and Southern Africa ,Corporate Travel Provider ,101610-101 ,544.65,
DFID,DFID,14/06/2017,Air fares ,West and Southern Africa ,Foreign & Commonwealth Office ,101610-101 ,"5,212.94",
DFID,DFID,14/06/2017,Air fares ,West and Southern Africa ,Foreign & Commonwealth Office ,101610-101 ,"5,212.93",
DFID,DFID,14/06/2017,Air fares ,West and Southern Africa ,Foreign & Commonwealth Office ,101610-101 ,"1,921.07",
DFID,DFID,13/06/2017,Telephone Usage & services ,West and Southern Africa ,Foreign & Commonwealth Office ,101610-101 ,"2,458.65",
DFID,DFID,13/06/2017,Air fares ,West and Southern Africa ,Foreign & Commonwealth Office ,101610-101 ,960.54,
DFID,DFID,01/06/2017,Air fares ,West and Southern Africa ,Corporate Travel Provider ,101610-101 ,518.60,
DFID,DFID,09/06/2017,Hotels - Accommodation only ,East and Central Africa ,Foreign & Commonwealth Office ,101612-101 ,552.67,
DFID,DFID,09/06/2017,Hotels - Accommodation only ,East and Central Africa ,Foreign & Commonwealth Office ,101612-101 ,"1,110.86",
DFID,DFID,13/06/2017,Air fares ,East and Central Africa ,Foreign & Commonwealth Office ,101612-101 ,"1,694.68",
DFID,DFID,13/06/2017,Training - Travel & Subsistence ,East and Central Africa ,Foreign & Commonwealth Office ,101612-101 ,"1,177.06",
DFID,DFID,09/06/2017,Hotels - Accommodation only ,East and Central Africa ,Foreign & Commonwealth Office ,101612-101 ,"1,214.14",
DFID,DFID,14/06/2017,Air fares ,East and Central Africa ,Foreign & Commonwealth Office ,101612-101 ,"1,086.64",
DFID,DFID,01/06/2017,Hotels - Accommodation only ,East and Central Africa ,Corporate Travel Provider ,101612-101 ,762.51,
DFID,DFID,01/06/2017,Air fares ,East and Central Africa ,Corporate Travel Provider ,101612-101 ,503.57,
DFID,DFID,01/06/2017,Hotels - Accommodation only ,East and Central Africa ,Corporate Travel Provider ,101612-101 ,648.00,
DFID,DFID,01/06/2017,Air fares ,East and Central Africa ,Corporate Travel Provider ,101612-101 ,503.27,
DFID,DFID,01/06/2017,Air fares ,East and Central Africa ,Corporate Travel Provider ,101612-101 ,564.93,
DFID,DFID,01/06/2017,Air fares ,East and Central Africa ,Corporate Travel Provider ,101612-101 ,564.93,
DFID,DFID,01/06/2017,Air fares ,East and Central Africa ,Corporate Travel Provider ,101612-101 ,696.13,
DFID,DFID,01/06/2017,Hotels - Accommodation only ,West and Southern Africa ,Corporate Travel Provider ,101613-101 ,670.00,
DFID,DFID,01/06/2017,Air fares ,West and Southern Africa ,Corporate Travel Provider ,101613-101 ,638.90,
DFID,DFID,01/06/2017,Air fares ,West and Southern Africa ,Corporate Travel Provider ,101613-101 ,532.00,
DFID,DFID,01/06/2017,Air fares ,West and Southern Africa ,Corporate Travel Provider ,101613-101 ,623.00,
DFID,DFID,01/06/2017,Hotels - Accommodation only ,East and Central Africa ,Corporate Travel Provider ,101616-101 ,544.65,
DFID,DFID,01/06/2017,Air fares ,East and Central Africa ,Corporate Travel Provider ,101616-101 ,535.80,
DFID,DFID,13/06/2017,Air fares ,East and Central Africa ,Foreign & Commonwealth Office ,101616-101 ,"2,647.89",
DFID,DFID,09/06/2017,Air fares ,East and Central Africa ,Foreign & Commonwealth Office ,101616-101 ,"2,643.08",
DFID,DFID,01/06/2017,Hotels - Accommodation only ,East and Central Africa ,Corporate Travel Provider ,101616-102 ,544.65,
DFID,DFID,01/06/2017,Air fares ,West and Southern Africa ,Corporate Travel Provider ,101618-101 ,928.27,
DFID,DFID,01/06/2017,Air fares ,West and Southern Africa ,Corporate Travel Provider ,101618-101 ,"1,152.00",
DFID,DFID,01/06/2017,Air fares ,West and Southern Africa ,Corporate Travel Provider ,101618-101 ,946.57,
DFID,DFID,01/06/2017,Air fares ,West and Southern Africa ,Corporate Travel Provider ,101618-101 ,765.57,
DFID,DFID,01/06/2017,Air fares ,West and Southern Africa ,Corporate Travel Provider ,101618-101 ,573.37,
DFID,DFID,01/06/2017,Air fares ,Middle East and North Africa Division ,Corporate Travel Provider ,101619-101 ,540.27,
DFID,DFID,01/06/2017,Air fares ,Middle East and North Africa Division ,Corporate Travel Provider ,101619-101 ,520.80,
DFID,DFID,01/06/2017,Air fares ,West and Southern Africa ,Corporate Travel Provider ,101620-101 ,"1,161.10",
DFID,DFID,01/06/2017,Air fares ,West and Southern Africa ,Corporate Travel Provider ,101620-101 ,601.20,
DFID,DFID,01/06/2017,Air fares ,West and Southern Africa ,Corporate Travel Provider ,101620-101 ,601.20,
DFID,DFID,01/06/2017,Air fares ,West and Southern Africa ,Corporate Travel Provider ,101620-101 ,601.20,
DFID,DFID,14/06/2017,Mobile telephones & accessories ,West and Southern Africa ,Foreign & Commonwealth Office ,101620-101 ,541.32,
DFID,DFID,01/06/2017,Air fares ,Asia  Caribbean and Overseas Territories ,Corporate Travel Provider ,101604-101 ,880.10,
DFID,DFID,01/06/2017,Air fares ,Asia  Caribbean and Overseas Territories ,Corporate Travel Provider ,101604-101 ,724.30,
DFID,DFID,02/06/2017,Data Network - land lines ,Asia  Caribbean and Overseas Territories ,Foreign & Commonwealth Office ,200002-121,"1,890.91",
DFID,DFID,01/06/2017,Air fares ,West and Southern Africa ,Supplier Name withheld ,101622-105 ,639.67,
DFID,DFID,01/06/2017,Air fares ,West and Southern Africa ,Supplier Name withheld ,101622-105 ,650.00,
DFID,DFID,01/06/2017,Air fares ,West and Southern Africa ,Supplier Name withheld ,101622-106 ,920.69,
DFID,DFID,01/06/2017,Air fares ,West and Southern Africa ,Supplier Name withheld ,101622-106 ,896.77,
DFID,DFID,01/06/2017,Air fares ,West and Southern Africa ,Supplier Name withheld ,101622-106 ,651.97,
DFID,DFID,01/06/2017,Air fares ,West and Southern Africa ,Supplier Name withheld ,101622-106 ,647.87,
DFID,DFID,01/06/2017,Air fares ,West and Southern Africa ,Supplier Name withheld ,101622-106 ,897.67,
DFID,DFID,01/06/2017,Repairs  Maint  Alter - Property & Constrct. Services ,West and Southern Africa ,Foreign & Commonwealth Office ,101622-108 ,940.26,
DFID,DFID,01/06/2017,Air fares ,Asia  Caribbean and Overseas Territories ,Corporate Travel Provider ,101624-101 ,636.80,
DFID,DFID,01/06/2017,Other passenger transport ,Asia  Caribbean and Overseas Territories ,Corporate Travel Provider ,101624-101 ,664.00,
DFID,DFID,01/06/2017,Air fares ,East and Central Africa ,Corporate Travel Provider ,101625-104 ,718.29,
DFID,DFID,01/06/2017,Air fares ,East and Central Africa ,Corporate Travel Provider ,101625-108 ,781.10,
DFID,DFID,01/06/2017,Hotels - Accommodation only ,East and Central Africa ,Corporate Travel Provider ,101625-110 ,595.65,
DFID,DFID,01/06/2017,Hotels - Accommodation only ,East and Central Africa ,Corporate Travel Provider ,101625-112 ,524.00,
DFID,DFID,01/06/2017,Air fares ,West and Southern Africa ,Corporate Travel Provider ,101629-101 ,720.10,
DFID,DFID,01/06/2017,Air fares ,West and Southern Africa ,Corporate Travel Provider ,101629-101 ,786.39,
DFID,DFID,01/06/2017,Air fares ,West and Southern Africa ,Corporate Travel Provider ,101629-101 ,"1,052.79",
DFID,DFID,01/06/2017,Air fares ,West and Southern Africa ,Corporate Travel Provider ,101629-101 ,776.50,
DFID,DFID,01/06/2017,Air fares ,West and Southern Africa ,Corporate Travel Provider ,101629-101 ,728.10,
DFID,DFID,01/06/2017,Air fares ,West and Southern Africa ,Corporate Travel Provider ,101629-101 ,647.27,
DFID,DFID,01/06/2017,Air fares ,West and Southern Africa ,Corporate Travel Provider ,101629-101 ,"1,062.40",
DFID,DFID,01/06/2017,Air fares ,West and Southern Africa ,Corporate Travel Provider ,101629-101 ,647.00,
DFID,DFID,01/06/2017,Air fares ,East and Central Africa ,Corporate Travel Provider ,101630-101 ,672.17,
DFID,DFID,01/06/2017,Air fares ,East and Central Africa ,Corporate Travel Provider ,101630-101 ,672.17,
DFID,DFID,01/06/2017,Air fares ,East and Central Africa ,Corporate Travel Provider ,101630-101 ,513.17,
DFID,DFID,01/06/2017,Hotels - Accommodation only ,East and Central Africa ,Corporate Travel Provider ,101630-101 ,503.40,
DFID,DFID,01/06/2017,Hotels - Accommodation only ,East and Central Africa ,Corporate Travel Provider ,101630-101 ,604.08,
DFID,DFID,01/06/2017,Air fares ,East and Central Africa ,Corporate Travel Provider ,101630-101 ,"1,055.67",
DFID,DFID,01/06/2017,Hotels - Accommodation only ,East and Central Africa ,Corporate Travel Provider ,101630-101 ,544.65,
DFID,DFID,01/06/2017,Hotels - Accommodation only ,East and Central Africa ,Corporate Travel Provider ,101630-102 ,871.44,
DFID,DFID,01/06/2017,Air fares ,East and Central Africa ,Corporate Travel Provider ,101633-101 ,568.97,
DFID,DFID,09/06/2017,Air fares ,East and Central Africa ,Foreign & Commonwealth Office ,101633-101 ,"3,112.75",
DFID,DFID,13/06/2017,Training - Travel & Subsistence ,East and Central Africa ,Foreign & Commonwealth Office ,101633-101 ,800.45,
DFID,DFID,13/06/2017,Hotels - Accommodation only ,East and Central Africa ,Foreign & Commonwealth Office ,101633-101 ,503.48,
DFID,DFID,01/06/2017,Air fares ,East and Central Africa ,Corporate Travel Provider ,101634-101 ,617.87,
DFID,DFID,01/06/2017,Air fares ,East and Central Africa ,Corporate Travel Provider ,101634-101 ,542.87,
DFID,DFID,01/06/2017,Air fares ,East and Central Africa ,Corporate Travel Provider ,101634-101 ,542.87,
DFID,DFID,01/06/2017,Hotels - Accommodation only ,East and Central Africa ,Corporate Travel Provider ,101634-101 ,747.21,
DFID,DFID,01/06/2017,Air fares ,East and Central Africa ,Corporate Travel Provider ,101634-101 ,617.87,
DFID,DFID,01/06/2017,Air fares ,East and Central Africa ,Corporate Travel Provider ,101634-101 ,513.69,
DFID,DFID,01/06/2017,Air fares ,East and Central Africa ,Corporate Travel Provider ,101634-101 ,529.23,
DFID,DFID,01/06/2017,Air fares ,East and Central Africa ,Corporate Travel Provider ,101635-101 ,745.60,
DFID,DFID,01/06/2017,Air fares ,East and Central Africa ,Corporate Travel Provider ,101635-101 ,867.04,
DFID,DFID,01/06/2017,Air fares ,West and Southern Africa ,Corporate Travel Provider ,101637-101 ,818.07,
DFID,DFID,01/06/2017,Air fares ,West and Southern Africa ,Corporate Travel Provider ,101637-101 ,817.60,
DFID,DFID,01/06/2017,Air fares ,West and Southern Africa ,Corporate Travel Provider ,101638-101 ,956.10,
DFID,DFID,01/06/2017,Training Providers/Facilitation Services ,Business Solutions Division Level ,Pragmaticworks.com ,200001-101 ,"1,065.09",
DFID,DFID,01/06/2017,Training - Course Fees ,Business Solutions Division Level ,CIPS.ORG,200001-101 ,"1,162.80",
DFID,DFID,01/06/2017,Computer Software Licenses ,Business Solutions Division Level , SSLstore.com,200001-101 ,869.17,
DFID,DFID,01/06/2017,Training - Course Fees ,Business Solutions Division Level , Kepner-Tregoe UK ,200001-101 ,594.00,
DFID,DFID,01/06/2017,Air fares ,Business Solutions Division Level ,Corporate Travel Provider ,200001-101 ,"1,012.43",
DFID,DFID,01/06/2017,Hotels - Accommodation only ,Business Solutions Division Level ,Corporate Travel Provider ,200001-101 ,"1,432.00",
DFID,DFID,01/06/2017,Air fares ,Business Solutions Division Level ,Corporate Travel Provider ,200001-101 ,"2,710.00",
DFID,DFID,01/06/2017,Air fares ,Business Solutions Division Level ,Corporate Travel Provider ,200001-101 ,607.89,
DFID,DFID,01/06/2017,Air fares ,Business Solutions Division Level ,Corporate Travel Provider ,200001-101 ,"1,012.43",
DFID,DFID,14/06/2017,Computer hardware maintenance ,Business Solutions Division Level ,Foreign & Commonwealth Office ,200002-101 ,"1,035.06",
DFID,DFID,15/06/2017,Data Network - land lines ,Business Solutions Division Level ,Foreign & Commonwealth Office ,200002-121 ,945.46,
DFID,DFID,14/06/2017,Data Network - land lines ,Business Solutions Division Level ,Foreign & Commonwealth Office ,200002-121 ,675.04,
DFID,DFID,01/06/2017,Air fares ,Business Solutions Division Level ,Corporate Travel Provider ,200005-121 ,838.83,
DFID,DFID,01/06/2017,Air fares ,Group Operations ,Corporate Travel Provider ,201157-104 ,504.17,
DFID,DFID,01/06/2017,Air fares ,Middle East and North Africa Division ,Corporate Travel Provider ,201701-101 ,595.87,
DFID,DFID,01/06/2017,Air fares ,Middle East and North Africa Division ,Corporate Travel Provider ,201701-101 ,523.77,
DFID,DFID,01/06/2017,Air fares ,Middle East and North Africa Division ,Corporate Travel Provider ,201701-101 ,642.77,
DFID,DFID,01/06/2017,Hotels - Accommodation only ,Middle East and North Africa Division ,Corporate Travel Provider ,201701-101 ,704.76,
DFID,DFID,13/06/2017,Storage & Distribution costs ,Middle East and North Africa Division ,Foreign & Commonwealth Office ,201705-101 ,639.73,
DFID,DFID,13/06/2017,Telephone Usage & services ,Middle East and North Africa Division ,Foreign & Commonwealth Office ,201705-101 ,811.10,
DFID,DFID,01/06/2017,Air fares ,Middle East and North Africa Division ,Corporate Travel Provider ,201705-101 ,521.47,
DFID,DFID,01/06/2017,Air fares ,Middle East and North Africa Division ,Corporate Travel Provider ,201705-101 ,678.33,
DFID,DFID,15/06/2017,Hotels - Accommodation only ,International Relations Division ,Foreign & Commonwealth Office ,201711-101 ,"1,173.94",
DFID,DFID,01/06/2017,Hotels - Accommodation only ,International Relations Division ,Corporate Travel Provider ,201711-101 ,543.71,
DFID,DFID,02/06/2017,Air fares ,International Relations Division ,Foreign & Commonwealth Office ,201711-101 ,896.73,
DFID,DFID,01/06/2017,Air fares ,Policy Division ,Corporate Travel Provider ,202419-101 ,"1,108.70",
DFID,DFID,01/06/2017,Air fares ,Policy Division ,Corporate Travel Provider ,202419-101 ,654.90,
DFID,DFID,01/06/2017,Air fares ,Policy Division ,Corporate Travel Provider ,202419-101 ,695.47,
DFID,DFID,01/06/2017,Air fares ,Policy Division ,Corporate Travel Provider ,202419-101 ,978.07,
DFID,DFID,01/06/2017,Air fares ,Policy Division ,Corporate Travel Provider ,202419-101 ,905.77,
DFID,DFID,01/06/2017,Hotels - Accommodation only ,Research and Evidence Division ,Corporate Travel Provider ,202392-115 ,613.40,
DFID,DFID,01/06/2017,Air fares ,Policy Division ,Corporate Travel Provider ,202396-101 ,"1,143.69",
DFID,DFID,01/06/2017,Air fares ,Policy Division ,Corporate Travel Provider ,202402-107 ,634.89,
DFID,DFID,01/06/2017,Air fares ,Policy Division ,Corporate Travel Provider ,202402-107 ,853.87,
DFID,DFID,01/06/2017,Air fares ,Policy Division ,Corporate Travel Provider ,202402-107 ,958.69,
DFID,DFID,01/06/2017,Hotels - Accommodation only ,Asia  Caribbean and Overseas Territories ,Corporate Travel Provider ,202403-101 ,544.65,
DFID,DFID,13/06/2017,Air fares ,Asia  Caribbean and Overseas Territories ,Foreign & Commonwealth Office ,202403-101 ,"2,228.16",
DFID,DFID,01/06/2017,Air fares ,Economic Development Division ,Corporate Travel Provider ,202432-101 ,853.47,
DFID,DFID,01/06/2017,Air fares ,Economic Development Division ,Corporate Travel Provider ,202432-101 ,665.77,
DFID,DFID,01/06/2017,Air fares ,East and Central Africa ,Corporate Travel Provider ,202594-101 ,598.27,
DFID,DFID,01/06/2017,Air fares ,East and Central Africa ,Corporate Travel Provider ,202594-101 ,564.47,
DFID,DFID,01/06/2017,Air fares ,East and Central Africa ,Corporate Travel Provider ,202594-101 ,822.60,
DFID,DFID,01/06/2017,Air fares ,East and Central Africa ,Corporate Travel Provider ,202594-101 ,"1,012.00",
DFID,DFID,01/06/2017,Air fares ,East and Central Africa ,Corporate Travel Provider ,202594-101 ,763.63,
DFID,DFID,01/06/2017,Air fares ,East and Central Africa ,Corporate Travel Provider ,202594-101 ,646.37,
DFID,DFID,01/06/2017,Air fares ,East and Central Africa ,Corporate Travel Provider ,202594-101 ,525.80,
DFID,DFID,01/06/2017,Air fares ,East and Central Africa ,Corporate Travel Provider ,202594-101 ,665.37,
DFID,DFID,01/06/2017,Air fares ,East and Central Africa ,Corporate Travel Provider ,202594-101 ,670.47,
DFID,DFID,01/06/2017,Air fares ,East and Central Africa ,Corporate Travel Provider ,202594-101 ,"1,725.89",
DFID,DFID,01/06/2017,Air fares ,East and Central Africa ,Corporate Travel Provider ,202594-101 ,816.87,
DFID,DFID,01/06/2017,Hotels - Accommodation only ,East and Central Africa ,Corporate Travel Provider ,202594-101 ,585.86,
DFID,DFID,01/06/2017,Hotels - Accommodation only ,East and Central Africa ,Corporate Travel Provider ,202594-101 ,653.58,
DFID,DFID,01/06/2017,Hotels - Accommodation only ,East and Central Africa ,Corporate Travel Provider ,202594-101 ,731.62,
DFID,DFID,01/06/2017,Air fares ,East and Central Africa ,Corporate Travel Provider ,202594-101 ,664.53,
DFID,DFID,01/06/2017,Air fares ,East and Central Africa ,Corporate Travel Provider ,202594-101 ,"1,113.77",
DFID,DFID,01/06/2017,Air fares ,East and Central Africa ,Corporate Travel Provider ,202594-101 ,824.60,
DFID,DFID,01/06/2017,Air fares ,East and Central Africa ,Corporate Travel Provider ,202594-101 ,809.07,
DFID,DFID,01/06/2017,Air fares ,East and Central Africa ,Corporate Travel Provider ,202594-101 ,532.80,
DFID,DFID,01/06/2017,Air fares ,East and Central Africa ,Corporate Travel Provider ,202594-101 ,632.07,
DFID,DFID,01/06/2017,Training - Course Fees ,Finance and Corporate Performance Division ,KAPLAN FINANCIAL,202836-101 ,629.00,
DFID,DFID,09/06/2017,Aid Programme - Humanitarian Material Relief Assistance and Services ,East and Central Africa ,Foreign & Commonwealth Office ,202890-104 ,"4,978.27",
DFID,DFID,01/06/2017,Air fares ,Policy Division ,Corporate Travel Provider ,202954-101 ,666.27,
DFID,DFID,09/06/2017,Project delivery costs – supplier services ,Policy Division ,Foreign & Commonwealth Office ,203146-101 ,"1,764.70",
DFID,DFID,15/06/2017,Data Network - land lines ,Business Solutions Division Level ,Foreign & Commonwealth Office ,203329-102 ,945.45,
DFID,DFID,14/06/2017,Project delivery costs � supplier services,Asia  Caribbean and Overseas Territories ,Foreign & Commonwealth Office ,203274-112 ,"1,933.65",
DFID,DFID,01/06/2017,Air fares ,West and Southern Africa ,Corporate Travel Provider ,203627-106 ,658.29,
DFID,DFID,01/06/2017,Air fares ,West and Southern Africa ,Supplier Name withheld ,203654-102 ,596.57,
DFID,DFID,01/06/2017,Air fares ,West and Southern Africa ,Supplier Name withheld ,203654-102 ,596.57,
DFID,DFID,13/06/2017,DFID Purchased Relief Supplies ,West and Southern Africa ,Foreign & Commonwealth Office ,203674-103 ,"5,844.33",
DFID,DFID,13/06/2017,DFID Purchased Relief Supplies ,West and Southern Africa ,Foreign & Commonwealth Office ,203674-103 ,"3,121.17",
DFID,DFID,13/06/2017,DFID Purchased Relief Supplies ,West and Southern Africa ,Foreign & Commonwealth Office ,203674-103 ,"1,652.69",
DFID,DFID,13/06/2017,DFID Purchased Relief Supplies ,West and Southern Africa ,Foreign & Commonwealth Office ,203674-103 ,"3,683.25",
DFID,DFID,13/06/2017,DFID Purchased Relief Supplies ,West and Southern Africa ,Foreign & Commonwealth Office ,203674-103 ,"3,071.42",
DFID,DFID,13/06/2017,DFID Purchased Relief Supplies ,West and Southern Africa ,Foreign & Commonwealth Office ,203674-103 ,"2,840.13",
DFID,DFID,13/06/2017,Project delivery costs – supplier services ,Policy Division ,Foreign & Commonwealth Office ,201724-124 ,813.48,
DFID,DFID,13/06/2017,Project delivery costs – supplier services ,Policy Division ,Foreign & Commonwealth Office ,201724-124 ,747.77,
DFID,DFID,13/06/2017,Project delivery costs – supplier services ,Policy Division ,Foreign & Commonwealth Office ,201724-124 ,"2,356.54",
DFID,DFID,01/06/2017,Air fares ,Asia  Caribbean and Overseas Territories ,Corporate Travel Provider ,201932-101 ,885.77,
DFID,DFID,01/06/2017,Hotels - Accommodation only ,West and Southern Africa ,Corporate Travel Provider ,202214-124 ,581.40,
DFID,DFID,01/06/2017,Air fares ,West and Southern Africa ,Corporate Travel Provider ,202214-124 ,"1,070.17",
DFID,DFID,01/06/2017,Air fares ,Economic Development Division ,Corporate Travel Provider ,202259-101 ,818.30,
DFID,DFID,01/06/2017,Air fares ,Economic Development Division ,Corporate Travel Provider ,202259-101 ,"1,528.60",
DFID,DFID,01/06/2017,Air fares ,Research and Evidence Division ,Corporate Travel Provider ,202348-101 ,524.07,
DFID,DFID,01/06/2017,Air fares ,Economic Development Division ,Corporate Travel Provider ,202373-101 ,842.77,
DFID,DFID,01/06/2017,Hotels - Accommodation only ,Economic Development Division ,Corporate Travel Provider ,202373-101 ,"1,089.30",
DFID,DFID,01/06/2017,Hotels - Accommodation only ,Research and Evidence Division ,Corporate Travel Provider ,202392-103 ,534.63,
DFID,DFID,01/06/2017,Air fares ,Research and Evidence Division ,Corporate Travel Provider ,202392-103 ,984.77,
DFID,DFID,01/06/2017,Air fares ,Asia  Caribbean and Overseas Territories ,Corporate Travel Provider ,204053-101 ,592.47,
DFID,DFID,01/06/2017,Hotels - Accommodation only ,Asia  Caribbean and Overseas Territories ,Corporate Travel Provider ,204053-101 ,642.00,
DFID,DFID,01/06/2017,Air fares ,Asia  Caribbean and Overseas Territories ,Corporate Travel Provider ,204053-101 ,"1,623.87",
DFID,DFID,01/06/2017,Air fares ,Asia  Caribbean and Overseas Territories ,Corporate Travel Provider ,204053-101 ,"1,623.87",
DFID,DFID,01/06/2017,Air fares ,Middle East and North Africa Division ,Corporate Travel Provider ,204055-101 ,523.87,
DFID,DFID,01/06/2017,Air fares ,Middle East and North Africa Division ,Corporate Travel Provider ,204055-101 ,718.67,
DFID,DFID,01/06/2017,Hotels - Accommodation only ,Middle East and North Africa Division ,Corporate Travel Provider ,204055-101 ,503.40,
DFID,DFID,01/06/2017,Hotels - Accommodation only ,Middle East and North Africa Division ,Corporate Travel Provider ,204055-101 ,591.83,
DFID,DFID,01/06/2017,Hotels - Accommodation only ,Middle East and North Africa Division ,Corporate Travel Provider ,204055-101 ,541.97,
DFID,DFID,01/06/2017,Air fares ,Middle East and North Africa Division ,Corporate Travel Provider ,204055-101 ,"1,411.40",
DFID,DFID,01/06/2017,Air fares ,Middle East and North Africa Division ,Corporate Travel Provider ,204055-101 ,523.87,
DFID,DFID,01/06/2017,Hotels - Accommodation only ,Middle East and North Africa Division ,Corporate Travel Provider ,204055-101 ,653.58,
DFID,DFID,01/06/2017,Air fares ,Middle East and North Africa Division ,Corporate Travel Provider ,204055-101 ,828.57,
DFID,DFID,01/06/2017,Air fares ,Middle East and North Africa Division ,Corporate Travel Provider ,204055-101 ,595.27,
DFID,DFID,01/06/2017,Hotels - Accommodation only ,Middle East and North Africa Division ,Corporate Travel Provider ,204055-101 ,618.02,
DFID,DFID,01/06/2017,Air fares ,Middle East and North Africa Division ,Corporate Travel Provider ,204055-101 ,540.87,
DFID,DFID,01/06/2017,Air fares ,Research and Evidence Division ,Corporate Travel Provider ,202392-104 ,527.97,
DFID,DFID,01/06/2017,Air fares ,Research and Evidence Division ,Corporate Travel Provider ,202392-113 ,654.10,
DFID,DFID,01/06/2017,Air fares ,Conflict  Humanitarian  Security & Stabilisation Division ,Corporate Travel Provider ,202410-109 ,897.87,
DFID,DFID,01/06/2017,Air fares ,Research and Evidence Division ,Corporate Travel Provider ,203874-103 ,866.67,
DFID,DFID,01/06/2017,Air fares ,Research and Evidence Division ,Corporate Travel Provider ,203874-103 ,792.77,
DFID,DFID,14/06/2017,Air fares ,East and Central Africa ,Foreign & Commonwealth Office ,203986-103 ,794.08,
DFID,DFID,02/06/2017,Aid Programme - Humanitarian Material Relief Assistance and Services ,Conflict  Humanitarian  Security & Stabilisation Division ,Foreign & Commonwealth Office ,204273-103 ,559.99,
DFID,DFID,01/06/2017,Hotels - Accommodation only ,Group Operations ,Corporate Travel Provider ,204284-101 ,"3,052.00",
DFID,DFID,01/06/2017,Project delivery costs – supplier services ,East and Central Africa ,Foreign & Commonwealth Office ,204439-103 ,825.31,
DFID,DFID,01/06/2017,Air fares ,West and Southern Africa ,Corporate Travel Provider ,204643-101 ,677.57,
DFID,DFID,01/06/2017,Hotels - Accommodation only ,Research and Evidence Division ,Corporate Travel Provider ,204815-101 ,864.75,
DFID,DFID,01/06/2017,Air fares ,Research and Evidence Division ,Corporate Travel Provider ,204815-101 ,854.17,
DFID,DFID,01/06/2017,Air fares ,Research and Evidence Division ,Corporate Travel Provider ,204815-101 ,765.80,
DFID,DFID,01/06/2017,Hotels - Accommodation only ,Research and Evidence Division ,Corporate Travel Provider ,204815-101 ,776.27,
DFID,DFID,01/06/2017,Air fares ,Research and Evidence Division ,Corporate Travel Provider ,204815-101 ,997.30,
DFID,DFID,01/06/2017,Air fares ,West and Southern Africa ,Corporate Travel Provider ,204856-102 ,674.00,
DFID,DFID,01/06/2017,Air fares ,Non-Departmental Public Body ,Corporate Travel Provider ,204873-102 ,658.57,
DFID,DFID,01/06/2017,Hotels - Accommodation only ,West and Southern Africa ,Corporate Travel Provider ,204939-102 ,623.21,
DFID,DFID,14/06/2017,Repairs  Maint  Alter - Property & Constrct. Services ,East and Central Africa ,Foreign & Commonwealth Office ,204957-104 ,"1,952.33",
DFID,DFID,14/06/2017,Repairs  Maint  Alter - Property & Constrct. Services ,East and Central Africa ,Foreign & Commonwealth Office ,204957-104 ,"1,038.61",
DFID,DFID,14/06/2017,Repairs  Maint  Alter - Property & Constrct. Services ,East and Central Africa ,Foreign & Commonwealth Office ,204957-104 ,751.27,
DFID,DFID,14/06/2017,Air fares ,Middle East and North Africa Division ,Foreign & Commonwealth Office ,204981-101 ,"1,465.69",
DFID,DFID,01/06/2017,Air fares ,Middle East and North Africa Division ,Corporate Travel Provider ,204981-101 ,722.40,
DFID,DFID,01/06/2017,Air fares ,Middle East and North Africa Division ,Corporate Travel Provider ,204981-101 ,917.30,
DFID,DFID,01/06/2017,Air fares ,Middle East and North Africa Division ,Corporate Travel Provider ,204981-101 ,842.30,
DFID,DFID,01/06/2017,Air fares ,Middle East and North Africa Division ,Corporate Travel Provider ,204981-101 ,640.27,
DFID,DFID,01/06/2017,Air fares ,PGP Directorate ,Corporate Travel Provider ,205044-101 ,889.10,
DFID,DFID,01/06/2017,Air fares ,PGP Directorate ,Corporate Travel Provider ,205044-101 ,591.67,
DFID,DFID,13/06/2017,Project delivery costs � supplier services,Economic Development Division ,Foreign & Commonwealth Office ,205081-101 ,"1,147.71",
DFID,DFID,01/06/2017,Hotels - Accommodation only ,East and Central Africa ,Corporate Travel Provider ,205116-108 ,762.51,
DFID,DFID,09/06/2017,Aid Programme - Humanitarian Material Relief Assistance and Services ,East and Central Africa ,Foreign & Commonwealth Office ,205256-104 ,"3,523.60",
DFID,DFID,13/06/2017,Hotels - Accommodation only ,East and Central Africa ,Foreign & Commonwealth Office ,205256-108 ,917.76,
DFID,DFID,01/06/2017,Hotels - Accommodation only ,Conflict  Humanitarian  Security & Stabilisation Division ,Corporate Travel Provider ,205280-101 ,873.38,
DFID,DFID,01/06/2017,Air fares ,Conflict  Humanitarian  Security & Stabilisation Division ,Corporate Travel Provider ,205280-101 ,984.87,
DFID,DFID,01/06/2017,Air fares ,Policy Division ,Corporate Travel Provider ,300032-101 ,554.73,
DFID,DFID,01/06/2017,Air fares ,Policy Division ,Corporate Travel Provider ,300032-101 ,"1,137.40",
DFID,DFID,01/06/2017,Air fares ,Policy Division ,Corporate Travel Provider ,300032-101 ,653.77,
DFID,DFID,01/06/2017,Air fares ,Policy Division ,Corporate Travel Provider ,300032-101 ,619.70,
DFID,DFID,01/06/2017,Air fares ,Asia  Caribbean and Overseas Territories ,Corporate Travel Provider ,300048-103 ,607.20,
DFID,DFID,09/06/2017,Vehicle Hire Charges ,Middle East and North Africa Division ,Foreign & Commonwealth Office ,300078-101 ,"1,311.66",
DFID,DFID,09/06/2017,Vehicle Hire Charges ,Middle East and North Africa Division ,Foreign & Commonwealth Office ,300078-101 ,"1,311.66",
DFID,DFID,09/06/2017,Vehicle Hire Charges ,Middle East and North Africa Division ,Foreign & Commonwealth Office ,300078-101 ,"1,311.66",
DFID,DFID,09/06/2017,Vehicle Hire Charges ,Middle East and North Africa Division ,Foreign & Commonwealth Office ,300078-101 ,"1,311.66",
DFID,DFID,14/06/2017,Vehicle Hire Charges ,Middle East and North Africa Division ,Foreign & Commonwealth Office ,300078-101 ,590.14,
DFID,DFID,14/06/2017,Vehicle Hire Charges ,Middle East and North Africa Division ,Foreign & Commonwealth Office ,300078-101 ,720.44,
DFID,DFID,01/06/2017,Air fares ,Middle East and North Africa Division ,Corporate Travel Provider ,300078-101 ,898.13,
DFID,DFID,01/06/2017,Air fares ,Middle East and North Africa Division ,Corporate Travel Provider ,300078-101 ,523.87,
DFID,DFID,01/06/2017,Air fares ,Middle East and North Africa Division ,Corporate Travel Provider ,300078-101 ,"1,382.27",
DFID,DFID,01/06/2017,Air fares ,Middle East and North Africa Division ,Corporate Travel Provider ,300078-101 ,759.57,
DFID,DFID,01/06/2017,Air fares ,Middle East and North Africa Division ,Corporate Travel Provider ,300078-101 ,514.17,
DFID,DFID,01/06/2017,Air fares ,Middle East and North Africa Division ,Corporate Travel Provider ,300078-101 ,618.07,
DFID,DFID,01/06/2017,Air fares ,Middle East and North Africa Division ,Corporate Travel Provider ,300080-101 ,889.40,
DFID,DFID,01/06/2017,Hotels - Accommodation only ,Conflict  Humanitarian  Security & Stabilisation Division ,Foreign & Commonwealth Office ,300264-108 ,"1,288.99",
DFID,DFID,01/06/2017,Hotels - Accommodation only ,Conflict  Humanitarian  Security & Stabilisation Division ,Foreign & Commonwealth Office ,300264-108 ,"1,288.99",
DFID,DFID,01/06/2017,Hotels - Accommodation only ,Conflict  Humanitarian  Security & Stabilisation Division ,Foreign & Commonwealth Office ,300264-108 ,"1,288.99",
DFID,DFID,01/06/2017,Hotels - Accommodation only ,Conflict  Humanitarian  Security & Stabilisation Division ,Foreign & Commonwealth Office ,300264-108 ,"1,289.00",
DFID,DFID,01/06/2017,Air fares ,Policy Division ,Corporate Travel Provider ,300033-101 ,523.57,
DFID,DFID,01/06/2017,Air fares ,Policy Division ,Corporate Travel Provider ,300033-101 ,989.87,
DFID,DFID,01/06/2017,Air fares ,Policy Division ,Corporate Travel Provider ,300033-101 ,632.47,
DFID,DFID,01/06/2017,Air fares ,Policy Division ,Corporate Travel Provider ,300033-101 ,632.50,
DFID,DFID,01/06/2017,Air fares ,East and Central Africa ,Corporate Travel Provider ,101625-114 ,660.17,
DFID,DFID,07/06/2017,Project delivery costs – supplier services ,West and Southern Africa ,ADAM SMITH INTERNATIONAL  LTD ,203161-103 ,"590,096.39",
DFID,DFID,27/06/2017,Project delivery costs – supplier services ,West and Southern Africa ,ADAM SMITH INTERNATIONAL  LTD ,202539-108 ,"15,214.90",
DFID,DFID,15/06/2017,Project delivery costs – supplier services ,Middle East and North Africa Division ,ADAM SMITH INTERNATIONAL  LTD ,205048-102 ,"153,046.71",
DFID,DFID,28/06/2017,Project delivery costs – supplier services ,West and Southern Africa ,ADAM SMITH INTERNATIONAL  LTD ,203824-103 ,"152,060.76",
DFID,DFID,20/06/2017,Project delivery costs – supplier services ,Asia  Caribbean and Overseas Territories ,ADAM SMITH INTERNATIONAL  LTD ,202697-109 ,"160,326.00",
DFID,DFID,02/06/2017,Project delivery costs – supplier services ,Asia  Caribbean and Overseas Territories ,ADAM SMITH INTERNATIONAL  LTD ,202328-102 ,"423,055.10",
DFID,DFID,07/06/2017,Project delivery costs – supplier services ,Asia  Caribbean and Overseas Territories ,Supplier Name withheld ,202112-102 ,"102,518.32",
DFID,DFID,14/06/2017,Project delivery costs – supplier services ,West and Southern Africa ,ADAM SMITH INTERNATIONAL  LTD ,203719-101 ,"324,152.60",
DFID,DFID,14/06/2017,Project delivery costs – supplier services ,West and Southern Africa ,ADAM SMITH INTERNATIONAL  LTD ,203719-101 ,"235,923.94",
DFID,DFID,07/06/2017,Project delivery costs – supplier services ,West and Southern Africa ,ADAM SMITH INTERNATIONAL  LTD ,205192-102 ,"525,000.00",
DFID,DFID,07/06/2017,Project delivery costs – supplier services ,East and Central Africa ,ADAM SMITH INTERNATIONAL  LTD ,203153-103 ,"118,597.50",
DFID,DFID,30/06/2017,Project delivery costs – supplier services ,Asia  Caribbean and Overseas Territories ,Supplier Name withheld ,202112-102 ,"84,659.61",
DFID,DFID,06/06/2017,Project delivery costs – supplier services ,Asia  Caribbean and Overseas Territories ,Supplier Name withheld ,202112-102 ,"101,516.14",
DFID,DFID,21/06/2017,Project delivery costs – supplier services ,East and Central Africa ,ADAM SMITH INTERNATIONAL  LTD ,202698-113 ,"75,806.07",
DFID,DFID,21/06/2017,Project delivery costs – supplier services ,East and Central Africa ,ADAM SMITH INTERNATIONAL  LTD ,202698-113 ,"54,965.01",
DFID,DFID,21/06/2017,Project delivery costs – supplier services ,West and Southern Africa ,ADAM SMITH INTERNATIONAL  LTD ,202678-106 ,"3,094.03",
DFID,DFID,15/06/2017,Project delivery costs – supplier services ,East and Central Africa ,ADAM SMITH INTERNATIONAL  LTD ,204375-103 ,"965,819.31",
DFID,DFID,07/06/2017,Project delivery costs – supplier services ,West and Southern Africa ,ADAM SMITH INTERNATIONAL  LTD ,204659-104 ,"127,996.64",
DFID,DFID,14/06/2017,Project delivery costs – supplier services ,West and Southern Africa ,ADAM SMITH INTERNATIONAL  LTD ,203719-101 ,"373,532.08",
DFID,DFID,29/06/2017,Project delivery costs – supplier services ,West and Southern Africa ,ADAM SMITH INTERNATIONAL  LTD ,202584-106 ,"358,193.69",
DFID,DFID,19/06/2017,Project delivery costs – supplier services ,West and Southern Africa ,ADAM SMITH INTERNATIONAL  LTD ,202584-106 ,"289,784.74",
DFID,DFID,19/06/2017,Project delivery costs – supplier services ,Asia  Caribbean and Overseas Territories ,ADAM SMITH INTERNATIONAL  LTD ,201367-103 ,"509,293.81",
DFID,DFID,22/06/2017,Project delivery costs – supplier services ,West and Southern Africa ,ADAM SMITH INTERNATIONAL  LTD ,202541-106 ,"1,022,771.60",
DFID,DFID,29/06/2017,Project delivery costs – supplier services ,West and Southern Africa ,ADAM SMITH INTERNATIONAL  LTD ,202539-106 ,"159,598.90",
DFID,DFID,28/06/2017,Project delivery costs – supplier services ,West and Southern Africa ,ADAM SMITH INTERNATIONAL  LTD ,202539-106 ,"482,888.76",
DFID,DFID,16/06/2017,Project delivery costs – supplier services ,Asia  Caribbean and Overseas Territories ,ADAM SMITH INTERNATIONAL  LTD ,204619-104 ,"303,480.60",
DFID,DFID,13/06/2017,Project delivery costs – supplier services ,East and Central Africa ,ADAM SMITH INTERNATIONAL  LTD ,204456-105 ,"7,095.94",
DFID,DFID,06/06/2017,Fund monies to be managed and dispersed by the supplier ,East and Central Africa ,ADAM SMITH INTERNATIONAL  LTD ,205068-102 ,"158,732.85",
DFID,DFID,08/06/2017,Project delivery costs – supplier services ,West and Southern Africa ,ADAM SMITH INTERNATIONAL  LTD ,104190-102 ,"468,005.42",
DFID,DFID,29/06/2017,Project delivery costs – supplier services ,West and Southern Africa ,ADAM SMITH INTERNATIONAL  LTD ,203674-102 ,"128,081.72",
DFID,DFID,27/06/2017,Project delivery costs – supplier services ,West and Southern Africa ,ADAM SMITH INTERNATIONAL  LTD ,203674-102 ,"134,406.22",
DFID,DFID,01/06/2017,Aid Programme - Accountable Grant Payments ,Asia  Caribbean and Overseas Territories ,ACTION AGAINST HUNGER UK ,205138-104 ,"360,000.00",
DFID,DFID,28/06/2017,Aid Programme - Accountable Grant Payments ,West and Southern Africa ,ACTION AGAINST HUNGER UK ,204883-103 ,"53,267.97",
DFID,DFID,13/06/2017,Aid Programme - Trust Funds contributions ,East and Central Africa ,AFRICAN DEVELOPMENT BANK ,204784-101 ,"803,085.00",
DFID,DFID,28/06/2017,Contract & Agency Staff ,Business Solutions Division Level ,ALLEGIS GROUP LIMITED ,200001-101 ,"1,800.00",
DFID,DFID,16/06/2017,Computer software maintenance ,Business Solutions Division Level ,Unit 4 ,200002-107 ,"64,042.38",Quarterly maintenance and support costs for DFIDs Financial and e-Procurement Systems for the period April to June 2017 
DFID,DFID,19/06/2017,Computer software maintenance ,Business Solutions Division Level ,Unit 4 ,200002-107 ,"64,042.38",Quarterly maintenance and support costs for DFIDs Financial and e-Procurement Systems for the period July to September 2017 
DFID,DFID,16/06/2017,Project delivery costs – supplier services ,Research and Evidence Division ,BRITISH COUNCIL (UK) ,203339-105 ,"2,796.62",
DFID,DFID,05/06/2017,Conferences  Seminars & Meeting/Event Resource ,Research and Evidence Division ,BRITISH COUNCIL (UK) ,205288-101 ,"1,588.73",
DFID,DFID,22/06/2017,Aid Programme - Accountable Grant Payments ,East and Central Africa ,BRITISH COUNCIL (UK) ,204334-105 ,"21,750.00",
DFID,DFID,12/06/2017,Aid Programme - Accountable Grant Payments ,Policy Division ,BRITISH COUNCIL (UK) ,205033-101 ,"1,913,679.00",
DFID,DFID,06/06/2017,Aid Programme - Joint programme contribution ,Research and Evidence Division ,Natural Environment Research Council ,203835-103 ,"825,000.00",
DFID,DFID,01/06/2017,Aid Programme - Joint programme contribution ,Research and Evidence Division ,Natural Environment Research Council ,203774-103 ,"480,000.00",
DFID,DFID,01/06/2017,Aid Programme - Joint programme contribution ,Research and Evidence Division ,Natural Environment Research Council ,201884-106 ,"390,000.00",
DFID,DFID,05/06/2017,Aid Programme - Joint programme contribution ,Research and Evidence Division ,Natural Environment Research Council ,112082-104 ,"240,000.00",
DFID,DFID,08/06/2017,Aid Programme - Voluntary contributions ,Asia  Caribbean and Overseas Territories ,BRITISH RED CROSS ,300003-107 ,"306,821.00",
DFID,DFID,06/06/2017,Aid Programme - Accountable Grant Payments ,Policy Division ,BRITISH RED CROSS ,203559-124 ,"689,073.00",
DFID,DFID,01/06/2017,Project delivery costs – supplier services ,East and Central Africa ,THE SPRINGFIELD CENTRE ,101634-101 ,"16,297.00",
DFID,DFID,08/06/2017,Telephone Usage & services ,Business Solutions Division Level ,BT BACS PAYMENTS ,200002-130 ,811.74,
DFID,DFID,21/06/2017,Project delivery costs – supplier services ,West and Southern Africa ,BRITISH COUNCIL ,201625-101 ,"736,678.89",
DFID,DFID,16/06/2017,Project delivery costs – supplier services ,West and Southern Africa ,BRITISH COUNCIL ,203816-102 ,"49,796.47",
DFID,DFID,16/06/2017,Project delivery costs – supplier services ,West and Southern Africa ,BRITISH COUNCIL ,203816-103 ,"888,264.63",
DFID,DFID,01/06/2017,Project delivery costs – supplier services ,West and Southern Africa ,CHRISTIAN AID ,204657-102 ,"304,215.86",
DFID,DFID,14/06/2017,Project delivery costs – supplier services ,Conflict  Humanitarian  Security & Stabilisation Division ,Crown Agents. ,203815-106 ,"3,255.56",
DFID,DFID,21/06/2017,Aid Programme - Humanitarian Material Relief Assistance and Services ,Conflict  Humanitarian  Security & Stabilisation Division ,Crown Agents. ,202878-103 ,"13,009.07",
DFID,DFID,21/06/2017,Aid Programme - Humanitarian Material Relief Assistance and Services ,Conflict  Humanitarian  Security & Stabilisation Division ,Crown Agents. ,202878-103 ,"84,102.52",
DFID,DFID,21/06/2017,Aid Programme - Humanitarian Material Relief Assistance and Services ,Conflict  Humanitarian  Security & Stabilisation Division ,Crown Agents. ,202878-103 ,"1,713.60",
DFID,DFID,09/06/2017,Aid Programme - Humanitarian Material Relief Assistance and Services ,Conflict  Humanitarian  Security & Stabilisation Division ,Crown Agents. ,202878-103 ,"31,999.20",
DFID,DFID,22/06/2017,Project delivery costs – supplier services ,West and Southern Africa ,Crown Agents. ,205040-102 ,"19,262.82",
DFID,DFID,28/06/2017,Project delivery costs – supplier services ,East and Central Africa ,Crown Agents. ,202594-101 ,"4,574.59",
DFID,DFID,28/06/2017,Project delivery costs – supplier services ,East and Central Africa ,Crown Agents. ,202594-101 ,"29,172.00",Support for the ongoing  development of the  humanitarian and livelihoods programme in South Sudan
DFID,DFID,14/06/2017,Project delivery costs – supplier services ,East and Central Africa ,Crown Agents. ,204439-103 ,"11,721.60",
DFID,DFID,02/06/2017,Project delivery costs – supplier services ,East and Central Africa ,Crown Agents. ,204439-103 ,653.75,
DFID,DFID,16/06/2017,Project delivery costs – supplier services ,East and Central Africa ,Crown Agents. ,205286-105 ,820.80,
DFID,DFID,20/06/2017,Project delivery costs – supplier services ,East and Central Africa ,Crown Agents. ,205286-105 ,"4,811.70",
DFID,DFID,02/06/2017,Project delivery costs – supplier services ,East and Central Africa ,Crown Agents. ,205286-105 ,653.75,
DFID,DFID,26/06/2017,Project delivery costs – supplier services ,East and Central Africa ,Crown Agents. ,205286-105 ,"1,843.11",
DFID,DFID,01/06/2017,Project delivery costs – supplier services ,East and Central Africa ,Crown Agents. ,300270-103 ,"1,985.44",
DFID,DFID,26/06/2017,Project delivery costs – supplier services ,Policy Division ,Crown Agents. ,200706-102 ,"424,365.61",
DFID,DFID,26/06/2017,Project delivery costs – supplier services ,East and Central Africa ,Crown Agents. ,204439-103 ,"1,843.11",
DFID,DFID,26/06/2017,Project delivery costs – supplier services ,East and Central Africa ,Crown Agents. ,204439-103 ,"3,177.82",
DFID,DFID,20/06/2017,Project delivery costs – supplier services ,East and Central Africa ,Crown Agents. ,204439-103 ,"4,811.70",
DFID,DFID,15/06/2017,Project delivery costs – supplier services ,East and Central Africa ,Crown Agents. ,204439-103 ,"1,738.17",
DFID,DFID,07/06/2017,Project delivery costs – supplier services ,West and Southern Africa ,Crown Agents. ,202416-120 ,"1,329.45",
DFID,DFID,21/06/2017,Project delivery costs – supplier services ,West and Southern Africa ,Crown Agents. ,202416-120 ,"3,171.71",
DFID,DFID,21/06/2017,Project delivery costs – supplier services ,West and Southern Africa ,Crown Agents. ,202416-120 ,730.77,
DFID,DFID,26/06/2017,Project delivery costs – supplier services ,West and Southern Africa ,Crown Agents. ,202416-120 ,"4,227.07",
DFID,DFID,23/06/2017,Project delivery costs – supplier services ,West and Southern Africa ,Crown Agents. ,202416-120 ,"16,140.00",
DFID,DFID,27/06/2017,Project delivery costs – supplier services ,West and Southern Africa ,Crown Agents. ,202416-120 ,"3,932.39",
DFID,DFID,15/06/2017,Project delivery costs – supplier services ,Conflict  Humanitarian  Security & Stabilisation Division ,Crown Agents. ,203815-106 ,"15,177.60",
DFID,DFID,05/06/2017,Project delivery costs – supplier services ,Asia  Caribbean and Overseas Territories ,Crown Agents. ,205138-103 ,998.04,
DFID,DFID,30/06/2017,Project delivery costs – supplier services ,Asia  Caribbean and Overseas Territories ,Crown Agents. ,205138-103 ,"1,038.44",
DFID,DFID,28/06/2017,Project delivery costs – supplier services ,West and Southern Africa ,Crown Agents. ,202416-115 ,"2,268.00",
DFID,DFID,07/06/2017,Project delivery costs – supplier services ,West and Southern Africa ,Crown Agents. ,202416-115 ,780.64,
DFID,DFID,07/06/2017,Project delivery costs – supplier services ,West and Southern Africa ,Crown Agents. ,202416-120 ,"1,087.32",
DFID,DFID,12/06/2017,Project delivery costs – supplier services ,West and Southern Africa ,Crown Agents. ,205122-102 ,"10,215.00",
DFID,DFID,12/06/2017,Project delivery costs – supplier services ,West and Southern Africa ,Crown Agents. ,205122-102 ,673.57,
DFID,DFID,09/06/2017,Project delivery costs – supplier services ,West and Southern Africa ,Crown Agents. ,205122-102 ,"34,322.40",
DFID,DFID,27/06/2017,Project delivery costs – supplier services ,Asia  Caribbean and Overseas Territories ,Crown Agents. ,300250-106 ,"8,527.20",
DFID,DFID,26/06/2017,Project delivery costs – supplier services ,Asia  Caribbean and Overseas Territories ,Crown Agents. ,300250-106 ,505.67,
DFID,DFID,06/06/2017,Project delivery costs – supplier services ,Asia  Caribbean and Overseas Territories ,Crown Agents. ,300250-106 ,775.20,
DFID,DFID,29/06/2017,Project delivery costs – supplier services ,Conflict  Humanitarian  Security & Stabilisation Division ,Crown Agents. ,300264-108 ,"9,594.00",
DFID,DFID,15/06/2017,Project delivery costs – supplier services ,East and Central Africa ,Crown Agents. ,300363-107 ,"11,970.00",
DFID,DFID,05/06/2017,Project delivery costs – supplier services ,East and Central Africa ,Crown Agents. ,300363-107 ,"3,078.00",
DFID,DFID,05/06/2017,Project delivery costs – supplier services ,East and Central Africa ,Crown Agents. ,300363-107 ,"1,976.40",
DFID,DFID,29/06/2017,Project delivery costs – supplier services ,Conflict  Humanitarian  Security & Stabilisation Division ,Crown Agents. ,202741-104 ,"176,696.40",
DFID,DFID,09/06/2017,Project delivery costs – supplier services ,West and Southern Africa ,Crown Agents. ,204902-103 ,"4,428.65",
DFID,DFID,28/06/2017,Aid Programme - Humanitarian Material Relief Assistance and Services ,Middle East and North Africa Division ,Crown Agents. ,204516-102 ,"22,499.40",
DFID,DFID,15/06/2017,Project delivery costs – supplier services ,Conflict  Humanitarian  Security & Stabilisation Division ,Crown Agents. ,300264-108 ,"14,467.20",
DFID,DFID,19/06/2017,Project delivery costs – supplier services ,Conflict  Humanitarian  Security & Stabilisation Division ,Crown Agents. ,300264-108 ,"2,696.14",
DFID,DFID,27/06/2017,Project delivery costs – supplier services ,Conflict  Humanitarian  Security & Stabilisation Division ,Crown Agents. ,300264-108 ,"1,348.09",
DFID,DFID,27/06/2017,Project delivery costs – supplier services ,Conflict  Humanitarian  Security & Stabilisation Division ,Crown Agents. ,300264-108 ,"1,830.21",
DFID,DFID,27/06/2017,Project delivery costs – supplier services ,Conflict  Humanitarian  Security & Stabilisation Division ,Crown Agents. ,300264-108 ,"10,152.00",
DFID,DFID,20/06/2017,Project delivery costs – supplier services ,Conflict  Humanitarian  Security & Stabilisation Division ,Crown Agents. ,300042-103 ,"15,150.00",
DFID,DFID,01/06/2017,Aid Programme - Humanitarian Material Relief Assistance and Services ,Middle East and North Africa Division ,Crown Agents. ,204516-102 ,"14,632.35",
DFID,DFID,15/06/2017,Aid Programme - Humanitarian Material Relief Assistance and Services ,Middle East and North Africa Division ,Crown Agents. ,204516-102 ,"29,809.20",
DFID,DFID,26/06/2017,Aid Programme - Humanitarian Material Relief Assistance and Services ,Middle East and North Africa Division ,Crown Agents. ,204516-102 ,"11,037.45",
DFID,DFID,26/06/2017,Aid Programme - Humanitarian Material Relief Assistance and Services ,Middle East and North Africa Division ,Crown Agents. ,204516-102 ,"2,506.09",
DFID,DFID,28/06/2017,Aid Programme - Humanitarian Material Relief Assistance and Services ,Middle East and North Africa Division ,Crown Agents. ,204516-102 ,"32,656.80",
DFID,DFID,14/06/2017,Aid Programme - Humanitarian Material Relief Assistance and Services ,Middle East and North Africa Division ,Crown Agents. ,205094-102 ,"30,159.60",
DFID,DFID,05/06/2017,Aid Programme - Humanitarian Material Relief Assistance and Services ,Middle East and North Africa Division ,Crown Agents. ,205094-102 ,"2,863.67",
DFID,DFID,16/06/2017,Aid Programme - Humanitarian Material Relief Assistance and Services ,Middle East and North Africa Division ,Crown Agents. ,205094-104 ,"1,136.60",
DFID,DFID,14/06/2017,Aid Programme - Humanitarian Material Relief Assistance and Services ,Middle East and North Africa Division ,Crown Agents. ,205094-104 ,"7,741.80",
DFID,DFID,30/06/2017,Aid Programme - Refugee Relief Payments ,East and Central Africa ,Crown Agents. ,300357-107 ,"10,160.00",
DFID,DFID,30/06/2017,Aid Programme - Refugee Relief Payments ,East and Central Africa ,Crown Agents. ,300357-107 ,"1,826.53",
DFID,DFID,26/06/2017,Project delivery costs – supplier services ,Middle East and North Africa Division ,Crown Agents. ,204016-103 ,"6,121.82",
DFID,DFID,26/06/2017,Project delivery costs – supplier services ,Middle East and North Africa Division ,Crown Agents. ,204016-103 ,"3,565.95",
DFID,DFID,21/06/2017,Project delivery costs – supplier services ,Middle East and North Africa Division ,Crown Agents. ,204016-103 ,"3,393.60",
DFID,DFID,21/06/2017,Project delivery costs – supplier services ,Middle East and North Africa Division ,Crown Agents. ,204016-103 ,"4,905.60",
DFID,DFID,21/06/2017,Project delivery costs – supplier services ,Middle East and North Africa Division ,Crown Agents. ,204016-103 ,"4,905.60",
DFID,DFID,16/06/2017,Project delivery costs – supplier services ,Middle East and North Africa Division ,Crown Agents. ,300045-102 ,"4,049.40",
DFID,DFID,14/06/2017,Project delivery costs – supplier services ,East and Central Africa ,Crown Agents. ,300047-107 ,"2,003.25",
DFID,DFID,14/06/2017,Project delivery costs – supplier services ,East and Central Africa ,Crown Agents. ,300047-107 ,"10,899.60",
DFID,DFID,14/06/2017,Project delivery costs – supplier services ,East and Central Africa ,Crown Agents. ,300047-107 ,"6,516.00",
DFID,DFID,28/06/2017,Project delivery costs – supplier services ,East and Central Africa ,Crown Agents. ,300047-107 ,"11,077.20",
DFID,DFID,28/06/2017,Project delivery costs – supplier services ,East and Central Africa ,Crown Agents. ,300047-107 ,704.01,
DFID,DFID,21/06/2017,Project delivery costs – supplier services ,Middle East and North Africa Division ,Crown Agents. ,204016-103 ,"10,560.00",
DFID,DFID,26/06/2017,Project delivery costs – supplier services ,East and Central Africa ,Crown Agents. ,300363-107 ,"1,582.37",
DFID,DFID,05/06/2017,Project delivery costs – supplier services ,East and Central Africa ,Crown Agents. ,202890-104 ,"3,420.00",
DFID,DFID,02/06/2017,Project delivery costs – supplier services ,East and Central Africa ,Crown Agents. ,202890-104 ,"2,635.20",
DFID,DFID,02/06/2017,Project delivery costs – supplier services ,East and Central Africa ,Crown Agents. ,202890-104 ,"5,832.00",
DFID,DFID,02/06/2017,Project delivery costs – supplier services ,East and Central Africa ,Crown Agents. ,202890-104 ,"6,156.00",
DFID,DFID,27/06/2017,Project delivery costs – supplier services ,East and Central Africa ,Crown Agents. ,202890-104 ,"1,197.29",
DFID,DFID,12/06/2017,Project delivery costs – supplier services ,Conflict  Humanitarian  Security & Stabilisation Division ,Crown Agents. ,203416-102 ,"1,360.80",
DFID,DFID,12/06/2017,Project delivery costs – supplier services ,Conflict  Humanitarian  Security & Stabilisation Division ,Crown Agents. ,203416-102 ,"14,618.59",
DFID,DFID,15/06/2017,Aid Programme - Humanitarian Material Relief Assistance and Services ,Conflict  Humanitarian  Security & Stabilisation Division ,Crown Agents. ,203419-105 ,"1,206.80",
DFID,DFID,12/06/2017,Aid Programme - Humanitarian Material Relief Assistance and Services ,East and Central Africa ,Crown Agents. ,205256-108 ,824.90,
DFID,DFID,15/06/2017,Project delivery costs – supplier services ,East and Central Africa ,Crown Agents. ,300363-107 ,"14,493.60",
DFID,DFID,20/06/2017,Project delivery costs – supplier services ,East and Central Africa ,Crown Agents. ,300363-107 ,966.07,
DFID,DFID,21/06/2017,Project delivery costs – supplier services ,Conflict  Humanitarian  Security & Stabilisation Division ,Crown Agents. ,300042-103 ,"4,242.00",
DFID,DFID,07/06/2017,Project delivery costs – supplier services ,West and Southern Africa ,Crown Agents. ,205161-103 ,"1,116.57",
DFID,DFID,28/06/2017,Aid Programme - Accountable Grant Payments ,Conflict  Humanitarian  Security & Stabilisation Division ,Crown Agents. ,300334-101 ,"2,317.53",
DFID,DFID,21/06/2017,Aid Programme - Accountable Grant Payments ,Conflict  Humanitarian  Security & Stabilisation Division ,Crown Agents. ,300334-101 ,"4,127.56",
DFID,DFID,22/06/2017,Project delivery costs – supplier services ,Conflict  Humanitarian  Security & Stabilisation Division ,Crown Agents. ,202741-106 ,"321,062.40",
DFID,DFID,12/06/2017,Project delivery costs – supplier services ,Conflict  Humanitarian  Security & Stabilisation Division ,Crown Agents. ,203416-102 ,"56,418.25",
DFID,DFID,22/06/2017,Project delivery costs – supplier services ,West and Southern Africa ,Crown Agents. ,101629-101 ,"8,092.00",
DFID,DFID,23/06/2017,Project delivery costs – supplier services ,West and Southern Africa ,Crown Agents. ,101629-101 ,"1,628.53",
DFID,DFID,14/06/2017,Medicines & Drugs ,West and Southern Africa ,Crown Agents. ,202992-102 ,"30,000.00",
DFID,DFID,14/06/2017,Project delivery costs – supplier services ,West and Southern Africa ,Crown Agents. ,202992-102 ,"25,406.39",
DFID,DFID,01/06/2017,Aid Programme - Humanitarian Material Relief Assistance and Services ,Middle East and North Africa Division ,Crown Agents. ,204516-102 ,"3,646.87",
DFID,DFID,28/06/2017,Project delivery costs – supplier services ,Conflict  Humanitarian  Security & Stabilisation Division ,Crown Agents. ,202741-104 ,"2,538.00",
DFID,DFID,15/06/2017,Aid Programme - Accountable Grant Payments ,West and Southern Africa ,CONCERN WORLDWIDE ,300308-101 ,"892,877.00",
DFID,DFID,27/06/2017,Hardware - desktop PCs ,Communications Division ,COMPUTACENTER (UK) LTD ,100197-101 ,"3,117.16",
DFID,DFID,13/06/2017,Hardware -Laptop PCs ,Business Solutions Division Level ,COMPUTACENTER (UK) LTD ,200005-143 ,"5,754.00",
DFID,DFID,09/06/2017,other information and communication technologies ,Group Operations ,COMPUTACENTER (UK) LTD ,203717-101 ,"31,500.00","Annual  support,  maintenance and licences for the DFID Cloud hosted Enterprise Room Booking System  for 2017/2018 "
DFID,DFID,12/06/2017,AV Conferencing systems -hardware ,Business Solutions Division Level ,COMPUTACENTER (UK) LTD ,200002-153 ,"1,227.36",
DFID,DFID,08/06/2017,other information and communication technologies ,Business Solutions Division Level ,COMPUTACENTER (UK) LTD ,200002-153 ,"1,281.60",
DFID,DFID,21/06/2017,Aid Programme - Voluntary contributions ,International Relations Division ,COMMONWEALTH SECRETARIAT ,300318-101 ,"4,000,000.00",
DFID,DFID,07/06/2017,Aid Programme - Accountable Grant Payments ,West and Southern Africa ,CAMFED ,202623-111 ,"556,626.00",
DFID,DFID,30/06/2017,Aid Programme - Accountable Grant Payments ,Policy Division ,CARE INTERNATIONAL UK ,203559-139 ,"38,725.85",
DFID,DFID,01/06/2017,Aid Programme - Accountable Grant Payments ,West and Southern Africa ,CARE INTERNATIONAL UK ,205040-101 ,"516,845.97",
DFID,DFID,22/06/2017,Aid Programme - Accountable Grant Payments ,Middle East and North Africa Division ,CARE INTERNATIONAL UK ,203847-103 ,"624,547.00",
DFID,DFID,01/06/2017,Aid Programme - Accountable Grant Payments ,West and Southern Africa ,CARE INTERNATIONAL UK ,205040-101 ,"189,179.00",
DFID,DFID,22/06/2017,Aid Programme - Accountable Grant Payments ,Middle East and North Africa Division ,CARE INTERNATIONAL UK ,203847-103 ,"701,443.20",
DFID,DFID,01/06/2017,Aid Programme - Accountable Grant Payments ,Policy Division ,CARE INTERNATIONAL UK ,203559-159 ,"49,464.13",
DFID,DFID,16/06/2017,Aid Programme - Accountable Grant Payments ,Asia  Caribbean and Overseas Territories ,CARE INTERNATIONAL UK ,203274-113 ,"147,243.58",
DFID,DFID,28/06/2017,Aid Programme - Accountable Grant Payments ,Research and Evidence Division ,CENTRE FOR ECONOMIC POLICY RESEARCH ,202835-104 ,"159,067.84",
DFID,DFID,05/06/2017,Computer software maintenance ,Group Operations ,WOLTERS KLUWER UK LIMITED ,100106-101 ,"2,287.98",
DFID,DFID,06/06/2017,Aid Programme - Accountable Grant Payments ,East and Central Africa ,CARE INTERNATIONAL ,200658-102 ,"246,106.21",
DFID,DFID,07/06/2017,Aid Programme - Accountable Grant Payments ,Middle East and North Africa Division ,Supplier Name withheld ,300085-101 ,"1,897,444.00",
DFID,DFID,13/06/2017,Project delivery costs – supplier services ,East and Central Africa ,KENNETH CUMMINS ,202594-101 ,"7,299.00",
DFID,DFID,30/06/2017,Project delivery costs – supplier services ,Finance and Corporate Performance Division ,CABINET OFFICE ,100008-103 ,"3,400.00",
DFID,DFID,16/06/2017,Training - Course Fees ,Finance and Corporate Performance Division ,City of Glasgow College ,100201-101 ,"1,820.00",
DFID,DFID,09/06/2017,Training Providers/Facilitation Services ,Conflict  Humanitarian  Security & Stabilisation Division ,CENTRAL HALL WESTMINSTER LTD ,100049-101 ,"4,390.68",
DFID,DFID,30/06/2017,Training - Course Fees ,Human Resources ,Capita  Business Services ,100269-155 ,"18,000.00",
DFID,DFID,27/06/2017,Training - Course Fees ,Human Resources ,Capita  Business Services ,100261-101 ,"2,683.00",
DFID,DFID,27/06/2017,Training - Course Fees ,Human Resources ,Capita  Business Services ,100269-155 ,807.93,
DFID,DFID,30/06/2017,Training - Course Fees ,Human Resources ,Capita  Business Services ,100269-155 ,807.93,
DFID,DFID,01/06/2017,Training Providers/Facilitation Services ,West and Southern Africa ,Capita  Business Services ,101622-101 ,"2,993.86",
DFID,DFID,13/06/2017,Training Providers/Facilitation Services ,West and Southern Africa ,Capita  Business Services ,101622-106 ,778.52,
DFID,DFID,05/06/2017,Training Providers/Facilitation Services ,Finance and Corporate Performance Division ,Capita  Business Services ,204846-101 ,"2,487.81",
DFID,DFID,07/06/2017,Training Providers/Facilitation Services ,Finance and Corporate Performance Division ,Capita  Business Services ,204846-101 ,"2,585.37",
DFID,DFID,23/06/2017,Training - Course Fees ,Asia  Caribbean and Overseas Territories ,Capita  Business Services ,100084-101 ,"6,817.07",
DFID,DFID,28/06/2017,Training - Course Fees ,Business Solutions Division Level ,Capita  Business Services ,200001-101 ,525.00,
DFID,DFID,20/06/2017,Training - Course Fees ,East and Central Africa ,Capita  Business Services ,101625-110 ,"12,637.46",
DFID,DFID,09/06/2017,Training Providers/Facilitation Services ,Middle East and North Africa Division ,Capita  Business Services ,300078-101 ,"1,891.09",
DFID,DFID,22/06/2017,Project delivery costs – supplier services ,Asia  Caribbean and Overseas Territories ,CONCERN WORLDWIDE ,203264-102 ,"251,289.00",
DFID,DFID,06/06/2017,Project delivery costs – supplier services ,West and Southern Africa ,MINISTRY OF DEFENCE ,203627-106 ,"22,175.57",
DFID,DFID,19/06/2017,Project delivery costs – supplier services ,Asia  Caribbean and Overseas Territories ,Nathan Associates London Ltd ,202180-102 ,"274,641.72",
DFID,DFID,14/06/2017,Project delivery costs – supplier services ,West and Southern Africa ,COFFEY INTERNATIONAL DEVELOPMENT LTD ,300255-101 ,"85,505.93",
DFID,DFID,19/06/2017,Project delivery costs – supplier services ,West and Southern Africa ,COFFEY INTERNATIONAL DEVELOPMENT LTD ,201629-104 ,"23,554.55",
DFID,DFID,09/06/2017,Project delivery costs – supplier services ,West and Southern Africa ,COFFEY INTERNATIONAL DEVELOPMENT LTD ,104190-109 ,"327,762.94",
DFID,DFID,09/06/2017,Project delivery costs – supplier services ,Asia  Caribbean and Overseas Territories ,COFFEY INTERNATIONAL DEVELOPMENT LTD ,202495-112 ,"3,857.31",
DFID,DFID,09/06/2017,Project delivery costs – supplier services ,East and Central Africa ,COFFEY INTERNATIONAL DEVELOPMENT LTD ,203008-103 ,"4,042.11",
DFID,DFID,26/06/2017,Project delivery costs – supplier services ,East and Central Africa ,COFFEY INTERNATIONAL DEVELOPMENT LTD ,203986-105 ,"55,697.97",
DFID,DFID,28/06/2017,Project delivery costs – supplier services ,East and Central Africa ,COFFEY INTERNATIONAL DEVELOPMENT LTD ,203307-110 ,"3,940.00",
DFID,DFID,22/06/2017,Project delivery costs – supplier services ,Asia  Caribbean and Overseas Territories ,COFFEY INTERNATIONAL DEVELOPMENT LTD ,203894-101 ,"21,553.47",
DFID,DFID,15/06/2017,Project delivery costs – supplier services ,Policy Division ,COFFEY INTERNATIONAL DEVELOPMENT LTD ,202372-104 ,"176,712.05",
DFID,DFID,15/06/2017,Project delivery costs – supplier services ,West and Southern Africa ,COFFEY INTERNATIONAL DEVELOPMENT LTD ,203429-105 ,"162,975.00",
DFID,DFID,22/06/2017,Project delivery costs – supplier services ,West and Southern Africa ,COFFEY INTERNATIONAL DEVELOPMENT LTD ,203429-105 ,"46,564.00",
DFID,DFID,01/06/2017,Project delivery costs – supplier services ,Research and Evidence Division ,COFFEY INTERNATIONAL DEVELOPMENT LTD ,203193-101 ,"22,692.30",
DFID,DFID,01/06/2017,Project delivery costs – supplier services ,Research and Evidence Division ,COFFEY INTERNATIONAL DEVELOPMENT LTD ,203193-101 ,"49,574.45",
DFID,DFID,27/06/2017,Project delivery costs – supplier services ,West and Southern Africa ,COFFEY INTERNATIONAL DEVELOPMENT LTD ,201857-104 ,"36,678.27",
DFID,DFID,05/06/2017,Project delivery costs – supplier services ,West and Southern Africa ,COFFEY INTERNATIONAL DEVELOPMENT LTD ,202455-104 ,"12,422.60",
DFID,DFID,26/06/2017,Project delivery costs – supplier services ,West and Southern Africa ,COFFEY INTERNATIONAL DEVELOPMENT LTD ,202455-107 ,"15,844.69",
DFID,DFID,27/06/2017,Project delivery costs – supplier services ,West and Southern Africa ,COFFEY INTERNATIONAL DEVELOPMENT LTD ,204918-101 ,"31,690.93",
DFID,DFID,20/06/2017,Project delivery costs – supplier services ,East and Central Africa ,COFFEY INTERNATIONAL DEVELOPMENT LTD ,202509-102 ,"1,700,000.00",
DFID,DFID,29/06/2017,Repairs  Maint  Alter - Property & Constrct. Services ,One HMG FCO Platform ,FCO SERVICES ,204994-143 ,"6,244.17",
DFID,DFID,01/06/2017,Repairs  Maint  Alter - Property & Constrct. Services ,One HMG FCO Platform ,FCO SERVICES ,204994-143 ,"5,171.60",
DFID,DFID,30/06/2017,Repairs  Maint  Alter - Property & Constrct. Services ,One HMG FCO Platform ,FCO SERVICES ,204994-143 ,"8,767.06",
DFID,DFID,05/06/2017,Repairs  Maint  Alter - Property & Constrct. Services ,One HMG FCO Platform ,FCO SERVICES ,204994-143 ,"29,916.00",The delivery of remedial works required to the DFID properties in multiple overseas locations as part of the 1 HMG consolidation programme
DFID,DFID,01/06/2017,Repairs  Maint  Alter - Property & Constrct. Services ,One HMG FCO Platform ,FCO SERVICES ,204994-143 ,"3,892.44",
DFID,DFID,29/06/2017,Repairs  Maint  Alter - Property & Constrct. Services ,One HMG FCO Platform ,FCO SERVICES ,204994-143 ,"42,000.00",The delivery of remedial works required to the DFID properties in multiple overseas locations as part of the 1 HMG consolidation programme
DFID,DFID,30/06/2017,Repairs  Maint  Alter - Property & Constrct. Services ,One HMG FCO Platform ,FCO SERVICES ,204994-143 ,"60,637.00",The delivery of remedial works required to the DFID properties in multiple overseas locations as part of the 1 HMG consolidation programme
DFID,DFID,30/06/2017,Repairs  Maint  Alter - Property & Constrct. Services ,One HMG FCO Platform ,FCO SERVICES ,204994-143 ,"6,628.07",
DFID,DFID,14/06/2017,Aid Programme - Accountable Grant Payments ,Asia  Caribbean and Overseas Territories ,FORUM FOR THE FUTURE ,204825-103 ,"5,746.02",
DFID,DFID,26/06/2017,Project delivery costs – supplier services ,Asia  Caribbean and Overseas Territories ,PALLADIUM ,201851-101 ,"237,008.79",
DFID,DFID,30/06/2017,Project delivery costs – supplier services ,East and Central Africa ,PALLADIUM ,203539-102 ,"280,662.21",
DFID,DFID,30/06/2017,Fund monies to be managed and dispersed by the supplier ,East and Central Africa ,PALLADIUM ,203539-102 ,"632,559.79",
DFID,DFID,20/06/2017,Project delivery costs – supplier services ,East and Central Africa ,PALLADIUM ,204809-102 ,"79,636.02",
DFID,DFID,02/06/2017,Project delivery costs – supplier services ,West and Southern Africa ,PALLADIUM ,202098-101 ,"265,764.85",
DFID,DFID,28/06/2017,Project delivery costs – supplier services ,East and Central Africa ,PALLADIUM ,202596-108 ,"11,811.25",
DFID,DFID,23/06/2017,Project delivery costs – supplier services ,West and Southern Africa ,PALLADIUM ,203429-103 ,"20,000.00",
DFID,DFID,23/06/2017,Project delivery costs – supplier services ,West and Southern Africa ,PALLADIUM ,203429-103 ,"5,000.00",
DFID,DFID,29/06/2017,Project delivery costs – supplier services ,West and Southern Africa ,PALLADIUM ,203429-103 ,"134,059.46",
DFID,DFID,22/06/2017,Project delivery costs – supplier services ,West and Southern Africa ,PALLADIUM ,203429-103 ,"14,000.00",
DFID,DFID,22/06/2017,Project delivery costs – supplier services ,West and Southern Africa ,PALLADIUM ,203429-103 ,"20,000.00",
DFID,DFID,26/06/2017,Project delivery costs – supplier services ,East and Central Africa ,PALLADIUM ,202900-108 ,"30,548.80",
DFID,DFID,14/06/2017,Project delivery costs – supplier services ,East and Central Africa ,PALLADIUM ,202577-103 ,"23,062.00",
DFID,DFID,14/06/2017,Project delivery costs – supplier services ,East and Central Africa ,PALLADIUM ,202577-104 ,"269,565.00",
DFID,DFID,14/06/2017,Project delivery costs – supplier services ,East and Central Africa ,PALLADIUM ,202577-104 ,"39,575.84",
DFID,DFID,16/06/2017,Project delivery costs – supplier services ,Policy Division ,PALLADIUM ,202745-104 ,"50,580.68",
DFID,DFID,14/06/2017,Project delivery costs – supplier services ,Policy Division ,PALLADIUM ,201724-155 ,"107,913.61",
DFID,DFID,28/06/2017,Project delivery costs – supplier services ,East and Central Africa ,PALLADIUM ,204012-106 ,"373,962.19",
DFID,DFID,16/06/2017,Project delivery costs – supplier services ,West and Southern Africa ,PALLADIUM ,204822-102 ,"261,493.23",
DFID,DFID,30/06/2017,Project delivery costs – supplier services ,West and Southern Africa ,PALLADIUM ,202370-102 ,"835,993.87",
DFID,DFID,12/06/2017,Project delivery costs – supplier services ,West and Southern Africa ,PALLADIUM ,202370-102 ,"523,197.89",
DFID,DFID,28/06/2017,Project delivery costs – supplier services ,West and Southern Africa ,PALLADIUM ,202352-102 ,"133,251.80",
DFID,DFID,30/06/2017,Project delivery costs – supplier services ,West and Southern Africa ,PALLADIUM ,202352-102 ,"191,420.18",
DFID,DFID,28/06/2017,Project delivery costs – supplier services ,West and Southern Africa ,PALLADIUM ,202352-102 ,"211,187.59",
DFID,DFID,28/06/2017,Project delivery costs – supplier services ,West and Southern Africa ,PALLADIUM ,202352-102 ,"219,971.99",
DFID,DFID,28/06/2017,Project delivery costs – supplier services ,West and Southern Africa ,PALLADIUM ,202352-102 ,"369,384.38",
DFID,DFID,16/06/2017,Project delivery costs – supplier services ,Policy Division ,PALLADIUM ,202745-104 ,"291,526.60",
DFID,DFID,16/06/2017,Project delivery costs – supplier services ,Asia  Caribbean and Overseas Territories ,PALLADIUM ,204613-101 ,"70,714.25",
DFID,DFID,06/06/2017,Aid Programme - Accountable Grant Payments ,Research and Evidence Division ,Energy 4 Impact ,203705-123 ,"474,379.00",
DFID,DFID,07/06/2017,Project delivery costs – supplier services ,West and Southern Africa ,ICF Consulting Services Ltd ,204822-103 ,"88,863.00",
DFID,DFID,15/06/2017,Aid Programme - Accountable Grant Payments ,Middle East and North Africa Division ,Supplier Name withheld ,204523-101 ,"169,050.00",
DFID,DFID,06/06/2017,Training Providers/Facilitation Services ,Economic Development Division ,HM TREASURY VOTES CASH ACCOUNT ,100086-101 ,"9,341.25",
DFID,DFID,29/06/2017,Project delivery costs – supplier services ,Conflict  Humanitarian  Security & Stabilisation Division ,THE HALO TRUST ,203243-119 ,"122,301.00",
DFID,DFID,07/06/2017,Project delivery costs – supplier services ,West and Southern Africa ,HEALTH PARTNERS INTERNATIONAL ,202694-101 ,"425,859.20",
DFID,DFID,08/06/2017,Project delivery costs – supplier services ,West and Southern Africa ,HEALTH PARTNERS INTERNATIONAL ,202694-101 ,"169,319.73",
DFID,DFID,16/06/2017,Project delivery costs – supplier services ,East and Central Africa ,HTSPE LTD ,203574-112 ,"39,437.82",
DFID,DFID,30/06/2017,Project delivery costs – supplier services ,East and Central Africa ,HTSPE LTD ,204033-105 ,"8,761.27",
DFID,DFID,06/06/2017,Project delivery costs – supplier services ,East and Central Africa ,HTSPE LTD ,204033-105 ,"5,737.43",
DFID,DFID,20/06/2017,Project delivery costs – supplier services ,East and Central Africa ,HTSPE LTD ,204033-105 ,"121,550.88",
DFID,DFID,16/06/2017,Project delivery costs – supplier services ,East and Central Africa ,HTSPE LTD ,203574-103 ,"37,840.66",
DFID,DFID,07/06/2017,Project delivery costs – supplier services ,Research and Evidence Division ,HTSPE LTD ,201884-105 ,"16,659.00",
DFID,DFID,07/06/2017,Project delivery costs – supplier services ,Research and Evidence Division ,HTSPE LTD ,201884-105 ,"26,677.00",
DFID,DFID,22/06/2017,Project delivery costs – supplier services ,Asia  Caribbean and Overseas Territories ,HTSPE LTD ,203035-106 ,"3,675.00",
DFID,DFID,26/06/2017,Project delivery costs – supplier services ,East and Central Africa ,HTSPE LTD ,202900-102 ,"1,329,897.56",
DFID,DFID,22/06/2017,Aid Programme - Accountable Grant Payments ,Middle East and North Africa Division ,HANDICAP INTERNATIONAL UK ,300229-101 ,"308,864.11",
DFID,DFID,13/06/2017,Contract & Agency Staff ,Finance and Corporate Performance Division ,Hays Specialist Recruitment Ltd ,100201-101 ,624.10,
DFID,DFID,15/06/2017,Contract & Agency Staff ,Finance and Corporate Performance Division ,Hays Specialist Recruitment Ltd ,100201-101 ,780.12,
DFID,DFID,01/06/2017,Contract & Agency Staff ,Finance and Corporate Performance Division ,HUDSON GLOBAL RESOURCES LTD ,100201-101 ,"3,547.26",
DFID,DFID,15/06/2017,Contract & Agency Staff ,Finance and Corporate Performance Division ,HUDSON GLOBAL RESOURCES LTD ,100201-101 ,907.56,
DFID,DFID,12/06/2017,Contract & Agency Staff ,Finance and Corporate Performance Division ,HUDSON GLOBAL RESOURCES LTD ,100201-101 ,"3,267.22",
DFID,DFID,01/06/2017,Contract & Agency Staff ,Finance and Corporate Performance Division ,HUDSON GLOBAL RESOURCES LTD ,100201-101 ,"4,728.86",
DFID,DFID,16/06/2017,Contract & Agency Staff ,Finance and Corporate Performance Division ,HUDSON GLOBAL RESOURCES LTD ,100201-101 ,"9,482.42",
DFID,DFID,23/06/2017,Contract & Agency Staff ,Finance and Corporate Performance Division ,HUDSON GLOBAL RESOURCES LTD ,100201-101 ,"6,319.10",
DFID,DFID,16/06/2017,Contract & Agency Staff ,Finance and Corporate Performance Division ,HUDSON GLOBAL RESOURCES LTD ,100201-101 ,"7,062.53",
DFID,DFID,02/06/2017,Contract & Agency Staff ,Finance and Corporate Performance Division ,HUDSON GLOBAL RESOURCES LTD ,202437-102 ,"2,440.70",
DFID,DFID,14/06/2017,Project delivery costs – supplier services ,Policy Division ,ITAD LTD ,201724-134 ,"43,714.70",
DFID,DFID,07/06/2017,Project delivery costs – supplier services ,Conflict  Humanitarian  Security & Stabilisation Division ,ITAD LTD ,203243-125 ,"42,459.34",
DFID,DFID,07/06/2017,Project delivery costs – supplier services ,Conflict  Humanitarian  Security & Stabilisation Division ,ITAD LTD ,203243-125 ,"22,650.45",
DFID,DFID,26/06/2017,Project delivery costs – supplier services ,Research and Evidence Division ,THE INSTITUTE OF DEVELOPMENT STUDIE ,205121-101 ,"72,209.39",
DFID,DFID,26/06/2017,Project delivery costs – supplier services ,Research and Evidence Division ,THE INSTITUTE OF DEVELOPMENT STUDIE ,205121-101 ,"72,209.39",
DFID,DFID,28/06/2017,Project delivery costs – supplier services ,Research and Evidence Division ,THE INSTITUTE OF DEVELOPMENT STUDIE ,205121-101 ,"72,209.39",
DFID,DFID,19/06/2017,Aid Programme - Accountable Grant Payments ,Asia  Caribbean and Overseas Territories ,INTERNATIONAL CENTRE FOR DIARRO ,204131-103 ,"53,687.32",
DFID,DFID,19/06/2017,Aid Programme - Accountable Grant Payments ,Policy Division ,ISLAMIC RELIEF ,203559-115 ,"32,655.00",
DFID,DFID,19/06/2017,Aid Programme - Accountable Grant Payments ,Policy Division ,ISLAMIC RELIEF ,203559-115 ,"10,867.00",
DFID,DFID,21/06/2017,Aid Programme - Accountable Grant Payments ,Research and Evidence Division ,INASP ,203962-101 ,"245,390.00",
DFID,DFID,20/06/2017,Aid Programme - Humanitarian Material Relief Assistance and Services ,Asia  Caribbean and Overseas Territories ,INTERNATIONAL RESCUE COMMITTEE UK ,204603-106 ,"82,839.00",
DFID,DFID,05/06/2017,Aid Programme - Accountable Grant Payments ,Asia  Caribbean and Overseas Territories ,INTERNATIONAL RESCUE COMMITTEE UK ,203400-114 ,"321,280.00",
DFID,DFID,20/06/2017,Aid Programme - Accountable Grant Payments ,Asia  Caribbean and Overseas Territories ,INTERNATIONAL RESCUE COMMITTEE UK ,204603-116 ,"91,979.50",
DFID,DFID,20/06/2017,Aid Programme - Humanitarian Material Relief Assistance and Services ,Asia  Caribbean and Overseas Territories ,INTERNATIONAL RESCUE COMMITTEE UK ,204603-105 ,"275,938.50",
DFID,DFID,21/06/2017,Aid Programme - Accountable Grant Payments ,Conflict  Humanitarian  Security & Stabilisation Division ,INTERNATIONAL RESCUE COMMITTEE UK ,300263-102 ,"1,029,280.00",
DFID,DFID,30/06/2017,Research and development costs - supplier services ,Research and Evidence Division ,INSTITUTE OF DEVELOPMENT STUDIES ,201097-104 ,"362,656.21",
DFID,DFID,23/06/2017,Aid Programme - Trust Funds contributions ,Asia  Caribbean and Overseas Territories ,Supplier Name withheld ,204158-102 ,"41,400,000.00",
DFID,DFID,23/06/2017,Aid Programme - Trust Funds contributions ,Asia  Caribbean and Overseas Territories ,Supplier Name withheld ,204158-105 ,"18,600,000.00",
DFID,DFID,13/06/2017,Aid Programme - Trust Funds contributions ,Research and Evidence Division ,IBRD HSBC T ,203212-103 ,"500,000.00",
DFID,DFID,29/06/2017,Aid Programme - Trust Funds contributions ,Research and Evidence Division ,IBRD HSBC T ,203594-102 ,"400,000.00",
DFID,DFID,29/06/2017,Aid Programme - Trust Funds contributions ,Economic Development Division ,IBRD HSBC T ,204255-102 ,"264,050.00",
DFID,DFID,09/06/2017,Aid Programme - Trust Funds contributions ,Economic Development Division ,IBRD HSBC T ,204713-101 ,"1,000,000.00",
DFID,DFID,22/06/2017,Aid Programme - Core contributions ,Asia  Caribbean and Overseas Territories ,IBRD HSBC T ,204623-112 ,"200,000.00",
DFID,DFID,02/06/2017,Project delivery costs – supplier services ,Research and Evidence Division ,IOD PARC ,205109-101 ,"51,423.59",
DFID,DFID,05/06/2017,Aid Programme - Accountable Grant Payments ,East and Central Africa ,INTERNATIONAL MEDICAL CORPS (UK) ,204019-122 ,"1,831,203.00",
DFID,DFID,09/06/2017,Project delivery costs – supplier services ,Policy Division ,IMPERIAL COLLEGE LONDON ,200706-101 ,"876,084.93",
DFID,DFID,01/06/2017,Hardware -Laptop PCs ,Business Solutions Division Level ,INSIGHT DIRECT (UK) LTD ,200005-143 ,"4,677.42",
DFID,DFID,01/06/2017,Hardware -Laptop PCs ,Business Solutions Division Level ,INSIGHT DIRECT (UK) LTD ,200005-143 ,"3,994.32",
DFID,DFID,02/06/2017,Hardware -Laptop PCs ,Business Solutions Division Level ,INSIGHT DIRECT (UK) LTD ,200005-143 ,"4,911.30",
DFID,DFID,01/06/2017,Hardware -Laptop PCs ,Business Solutions Division Level ,INSIGHT DIRECT (UK) LTD ,200005-143 ,"5,322.00",
DFID,DFID,21/06/2017,Hardware -Laptop PCs ,Business Solutions Division Level ,INSIGHT DIRECT (UK) LTD ,200005-143 ,"1,788.84",
DFID,DFID,15/06/2017,Aid Programme - Trust Funds contributions ,West and Southern Africa ,IBRD-IFFIm ,203628-102 ,"2,000,000.00",
DFID,DFID,02/06/2017,Project delivery costs – supplier services ,Economic Development Division ,KELLOGG BROWN & ROOT LIMITED ,202259-101 ,660.00,
DFID,DFID,28/06/2017,Hostile Environment Training ,East and Central Africa ,KELLOGG BROWN & ROOT LIMITED ,101625-114 ,588.00,
DFID,DFID,02/06/2017,Hostile Environment Training ,East and Central Africa ,KELLOGG BROWN & ROOT LIMITED ,101625-112 ,550.00,
DFID,DFID,05/06/2017,Hostile Environment Training ,Economic Development Division ,KELLOGG BROWN & ROOT LIMITED ,100276-101 ,660.00,
DFID,DFID,28/06/2017,Hostile Environment Training ,Economic Development Division ,KELLOGG BROWN & ROOT LIMITED ,202373-101 ,588.00,
DFID,DFID,14/06/2017,Hostile Environment Training ,East and Central Africa ,KELLOGG BROWN & ROOT LIMITED ,202594-101 ,660.00,
DFID,DFID,16/06/2017,Hostile Environment Training ,East and Central Africa ,KELLOGG BROWN & ROOT LIMITED ,101612-101 ,660.00,
DFID,DFID,16/06/2017,Hostile Environment Training ,Communications Division ,KELLOGG BROWN & ROOT LIMITED ,100138-101 ,660.00,
DFID,DFID,16/06/2017,Research and development costs - supplier services ,Research and Evidence Division ,London School of Hygiene and Tropical Medicine ,201447-104 ,"336,072.02",
DFID,DFID,14/06/2017,Aid Programme - Accountable Grant Payments ,Research and Evidence Division ,LONDON SCHOOL OF ECONOMICS ,205125-102 ,"84,226.00",
DFID,DFID,15/06/2017,Project delivery costs – supplier services ,East and Central Africa ,Supplier Name withheld ,203641-103 ,"26,177.65",
DFID,DFID,01/06/2017,Project delivery costs – supplier services ,East and Central Africa ,Supplier Name withheld ,203641-103 ,"138,660.82",
DFID,DFID,01/06/2017,Project delivery costs – supplier services ,Policy Division ,Supplier Name withheld ,203148-101 ,"341,026.29",
DFID,DFID,23/06/2017,Project delivery costs – supplier services ,East and Central Africa ,Supplier Name withheld ,203363-103 ,"327,627.11",
DFID,DFID,22/06/2017,Project delivery costs – supplier services ,Asia  Caribbean and Overseas Territories ,Supplier Name withheld ,202488-107 ,"689,634.26",
DFID,DFID,20/06/2017,Project delivery costs – supplier services ,Asia  Caribbean and Overseas Territories ,Supplier Name withheld ,204023-104 ,"115,843.09",
DFID,DFID,02/06/2017,Project delivery costs – supplier services ,Asia  Caribbean and Overseas Territories ,Supplier Name withheld ,204277-102 ,"75,090.88",
DFID,DFID,26/06/2017,Project delivery costs – supplier services ,Asia  Caribbean and Overseas Territories ,Supplier Name withheld ,204277-102 ,"73,340.76",
DFID,DFID,26/06/2017,Aid Programme - Challenge Fund payments ,Asia  Caribbean and Overseas Territories ,Supplier Name withheld ,204277-104 ,"287,910.80",
DFID,DFID,02/06/2017,Aid Programme - Challenge Fund payments ,Asia  Caribbean and Overseas Territories ,Supplier Name withheld ,204277-104 ,"256,161.46",
DFID,DFID,13/06/2017,Project delivery costs – supplier services ,East and Central Africa ,Supplier Name withheld ,204288-103 ,"72,769.76",
DFID,DFID,30/06/2017,Project delivery costs – supplier services ,East and Central Africa ,Supplier Name withheld ,203871-102 ,"122,275.74",
DFID,DFID,30/06/2017,Project delivery costs – supplier services ,East and Central Africa ,Supplier Name withheld ,203871-107 ,"217,427.74",
DFID,DFID,21/06/2017,Project delivery costs – supplier services ,West and Southern Africa ,Supplier Name withheld ,202678-101 ,"104,583.16",
DFID,DFID,21/06/2017,Project delivery costs – supplier services ,West and Southern Africa ,Supplier Name withheld ,202678-101 ,"20,293.30",
DFID,DFID,30/06/2017,Project delivery costs – supplier services ,West and Southern Africa ,Supplier Name withheld ,202942-102 ,"446,007.38",
DFID,DFID,28/06/2017,Project delivery costs – supplier services ,West and Southern Africa ,Supplier Name withheld ,203154-103 ,"140,000.00",
DFID,DFID,26/06/2017,Project delivery costs – supplier services ,West and Southern Africa ,Supplier Name withheld ,205234-102 ,"471,840.25",
DFID,DFID,12/06/2017,Project delivery costs – supplier services ,West and Southern Africa ,Supplier Name withheld ,205195-102 ,"27,252.59",
DFID,DFID,15/06/2017,Data Network - land lines ,Business Solutions Division Level ,VODAFONE LIMITED ,203329-103 ,"95,345.42",Rental charge for telecommunication data links (WAN) for offices out with the European Union for April 2017  (1 of 2)
DFID,DFID,15/06/2017,Data Network - land lines ,Business Solutions Division Level ,VODAFONE LIMITED ,203329-103 ,"7,022.98",
DFID,DFID,15/06/2017,Data Network - land lines ,Business Solutions Division Level ,VODAFONE LIMITED ,203329-103 ,"2,147.63",
DFID,DFID,15/06/2017,Telephone Usage & services ,Business Solutions Division Level ,VODAFONE LIMITED ,203329-103 ,"7,047.74",
DFID,DFID,15/06/2017,Telephone Usage & services ,Business Solutions Division Level ,VODAFONE LIMITED ,200002-168 ,"7,451.14",
DFID,DFID,15/06/2017,Data Network - land lines ,Business Solutions Division Level ,VODAFONE LIMITED ,200002-185 ,"95,345.42",Rental charge for telecommunication data links (WAN) for offices out with the European Union for April 2017  2  of 2)
DFID,DFID,15/06/2017,Telephone Usage & services ,Business Solutions Division Level ,VODAFONE LIMITED ,200002-185 ,"7,047.73",
DFID,DFID,15/06/2017,Data Network - land lines ,Business Solutions Division Level ,VODAFONE LIMITED ,200002-185 ,"2,147.63",
DFID,DFID,15/06/2017,Data Network - land lines ,Business Solutions Division Level ,VODAFONE LIMITED ,200002-185 ,"7,022.98",
DFID,DFID,12/06/2017,Project delivery costs – supplier services ,Asia  Caribbean and Overseas Territories ,MAXWELL STAMP PLC ,107460-104 ,"70,000.00",
DFID,DFID,19/06/2017,Aid Programme - Challenge Fund payments ,Asia  Caribbean and Overseas Territories ,MAXWELL STAMP PLC ,107460-107 ,"138,305.56",
DFID,DFID,08/06/2017,Computer software maintenance ,Business Solutions Division Level ,MICRO FOCUS LTD ,200002-115 ,"16,467.66",
DFID,DFID,09/06/2017,Project delivery costs – supplier services ,Group Operations ,MARSH PRIVATE CLIENT SERVICES ,202426-101 ,"184,318.20",Annual worldwide all risks & public liability insurance policy for overseas staff for 2017/2018
DFID,DFID,26/06/2017,Project delivery costs – supplier services ,East and Central Africa ,MET OFFICE ,204044-102 ,"7,000.00",
DFID,DFID,12/06/2017,Aid Programme - Core contributions ,East and Central Africa ,MET OFFICE ,204364-109 ,"152,699.00",
DFID,DFID,21/06/2017,Aid Programme - Accountable Grant Payments ,Middle East and North Africa Division ,Supplier Name withheld ,204524-101 ,"114,854.00",
DFID,DFID,13/06/2017,Aid Programme - Accountable Grant Payments ,Middle East and North Africa Division ,Supplier Name withheld ,300090-101 ,"2,070,510.00",
DFID,DFID,05/06/2017,Aid Programme - Accountable Grant Payments ,West and Southern Africa ,MERCY CORPS EUROPE ,203445-109 ,"1,061,920.00",
DFID,DFID,13/06/2017,Project delivery costs – supplier services ,Economic Development Division ,NATURAL RESOURCES INSTITUTE ,203535-104 ,"10,000.00",
DFID,DFID,13/06/2017,Project delivery costs – supplier services ,Economic Development Division ,NATURAL RESOURCES INSTITUTE ,203535-104 ,"10,000.00",
DFID,DFID,13/06/2017,Project delivery costs – supplier services ,Economic Development Division ,NATURAL RESOURCES INSTITUTE ,203535-104 ,"33,330.00",
DFID,DFID,09/06/2017,Print Services ,Business Solutions Division Level ,RICOH UK LTD ,200001-113 ,"24,043.84",
DFID,DFID,29/06/2017,Print Services ,Business Solutions Division Level ,RICOH UK LTD ,200001-113 ,"38,572.00",Managed Print Service costs for the period April 2017 to March 2018 
DFID,DFID,20/06/2017,Aid Programme - Accountable Grant Payments ,East and Central Africa ,ODI ,202552-102 ,"740,000.00",
DFID,DFID,13/06/2017,Project delivery costs – supplier services ,Research and Evidence Division ,OXFAM INSTITUTIONAL INCOME ACCOUNT ,203706-110 ,"200,144.49",
DFID,DFID,29/06/2017,Aid Programme - Accountable Grant Payments ,West and Southern Africa ,OXFAM INSTITUTIONAL INCOME ACCOUNT ,300067-106 ,"999,321.00",
DFID,DFID,15/06/2017,Aid Programme - Accountable Grant Payments ,East and Central Africa ,OXFAM INSTITUTIONAL INCOME ACCOUNT ,204019-125 ,"280,937.00",
DFID,DFID,15/06/2017,Aid Programme - Accountable Grant Payments ,East and Central Africa ,OXFAM INSTITUTIONAL INCOME ACCOUNT ,204019-127 ,"243,182.00",
DFID,DFID,15/06/2017,Aid Programme - Accountable Grant Payments ,East and Central Africa ,OXFAM INSTITUTIONAL INCOME ACCOUNT ,204019-127 ,"245,669.00",
DFID,DFID,08/06/2017,Aid Programme - Accountable Grant Payments ,Asia  Caribbean and Overseas Territories ,OXFAM INSTITUTIONAL INCOME ACCOUNT ,205138-104 ,"570,404.50",
DFID,DFID,14/06/2017,Project delivery costs – supplier services ,West and Southern Africa ,OXFORD POLICY MANAGEMENT ,205182-105 ,"7,556.24",
DFID,DFID,14/06/2017,Project delivery costs – supplier services ,Asia  Caribbean and Overseas Territories ,OXFORD POLICY MANAGEMENT ,204189-101 ,"30,328.09",
DFID,DFID,23/06/2017,Project delivery costs – supplier services ,Asia  Caribbean and Overseas Territories ,OXFORD POLICY MANAGEMENT ,203400-113 ,"37,287.00",
DFID,DFID,12/06/2017,Project delivery costs – supplier services ,Asia  Caribbean and Overseas Territories ,OXFORD POLICY MANAGEMENT ,300238-102 ,"41,945.20",
DFID,DFID,13/06/2017,Project delivery costs – supplier services ,Asia  Caribbean and Overseas Territories ,OXFORD POLICY MANAGEMENT ,300238-102 ,"41,945.20",
DFID,DFID,07/06/2017,Project delivery costs – supplier services ,Asia  Caribbean and Overseas Territories ,OXFORD POLICY MANAGEMENT ,300238-102 ,"141,092.79",
DFID,DFID,12/06/2017,Project delivery costs – supplier services ,Asia  Caribbean and Overseas Territories ,OXFORD POLICY MANAGEMENT ,300109-105 ,"37,500.00",
DFID,DFID,15/06/2017,Project delivery costs – supplier services ,Asia  Caribbean and Overseas Territories ,OXFORD POLICY MANAGEMENT ,202708-103 ,"50,000.00",
DFID,DFID,13/06/2017,Research and development costs - supplier services ,Research and Evidence Division ,OXFORD POLICY MANAGEMENT ,204773-102 ,"130,816.00",
DFID,DFID,26/06/2017,Project delivery costs – supplier services ,Asia  Caribbean and Overseas Territories ,OXFORD POLICY MANAGEMENT ,203390-105 ,"50,778.68",
DFID,DFID,13/06/2017,Project delivery costs – supplier services ,West and Southern Africa ,OXFORD POLICY MANAGEMENT ,202722-103 ,"1,800.00",
DFID,DFID,29/06/2017,Project delivery costs – supplier services ,West and Southern Africa ,OXFORD POLICY MANAGEMENT ,202978-101 ,"103,494.00",
DFID,DFID,30/06/2017,Project delivery costs – supplier services ,West and Southern Africa ,OXFORD POLICY MANAGEMENT ,202978-101 ,"16,000.00",
DFID,DFID,12/06/2017,Project delivery costs – supplier services ,Asia  Caribbean and Overseas Territories ,OXFORD POLICY MANAGEMENT ,300109-102 ,"12,500.00",
DFID,DFID,23/06/2017,Project delivery costs – supplier services ,Middle East and North Africa Division ,OXFORD POLICY MANAGEMENT ,300239-102 ,"39,730.28",
DFID,DFID,28/06/2017,Project delivery costs – supplier services ,West and Southern Africa ,OXFORD POLICY MANAGEMENT ,204330-103 ,"141,299.99",
DFID,DFID,01/06/2017,Project delivery costs – supplier services ,West and Southern Africa ,OXFORD POLICY MANAGEMENT ,203536-108 ,"4,056.21",
DFID,DFID,19/06/2017,Project delivery costs – supplier services ,West and Southern Africa ,OXFORD POLICY MANAGEMENT ,203536-108 ,"5,384.70",
DFID,DFID,07/06/2017,Project delivery costs – supplier services ,West and Southern Africa ,OXFORD POLICY MANAGEMENT ,205182-105 ,"65,557.02",
DFID,DFID,05/06/2017,Project delivery costs – supplier services ,Research and Evidence Division ,OXFORD POLICY MANAGEMENT ,204322-102 ,"1,630,522.15",
DFID,DFID,26/06/2017,Project delivery costs – supplier services ,Policy Division ,OXFORD POLICY MANAGEMENT ,203368-101 ,"66,480.52",
DFID,DFID,02/06/2017,Project delivery costs – supplier services ,West and Southern Africa ,OXFORD POLICY MANAGEMENT ,202214-104 ,"14,264.73",
DFID,DFID,12/06/2017,Project delivery costs – supplier services ,Asia  Caribbean and Overseas Territories ,OXFORD POLICY MANAGEMENT ,202367-103 ,"70,767.81",
DFID,DFID,23/06/2017,Project delivery costs – supplier services ,Asia  Caribbean and Overseas Territories ,OXFORD POLICY MANAGEMENT ,202367-103 ,"432,021.92",
DFID,DFID,30/06/2017,Project delivery costs – supplier services ,West and Southern Africa ,OXFORD POLICY MANAGEMENT ,205126-101 ,"192,244.35",
DFID,DFID,14/06/2017,Project delivery costs – supplier services ,Middle East and North Africa Division ,OXFORD POLICY MANAGEMENT ,300239-102 ,"66,940.92",
DFID,DFID,07/06/2017,Project delivery costs – supplier services ,Asia  Caribbean and Overseas Territories ,OXFORD POLICY MANAGEMENT ,300238-102 ,"57,003.32",
DFID,DFID,06/06/2017,Project delivery costs – supplier services ,Asia  Caribbean and Overseas Territories ,OXFORD POLICY MANAGEMENT ,203180-102 ,"90,409.00",
DFID,DFID,05/06/2017,Project delivery costs – supplier services ,Asia  Caribbean and Overseas Territories ,OXFORD POLICY MANAGEMENT ,203180-102 ,"40,182.00",
DFID,DFID,02/06/2017,Project delivery costs – supplier services ,Asia  Caribbean and Overseas Territories ,OXFORD POLICY MANAGEMENT ,203180-102 ,"401,819.00",
DFID,DFID,02/06/2017,Project delivery costs – supplier services ,West and Southern Africa ,OXFORD POLICY MANAGEMENT ,201874-103 ,"105,723.45",
DFID,DFID,29/06/2017,Project delivery costs – supplier services ,West and Southern Africa ,OXFORD POLICY MANAGEMENT ,203536-114 ,"3,016.00",
DFID,DFID,15/06/2017,Project delivery costs – supplier services ,East and Central Africa ,OPTIONS CONSULTANCY SERVICES LIMITED ,203024-103 ,"59,459.44",
DFID,DFID,15/06/2017,Project delivery costs – supplier services ,East and Central Africa ,OPTIONS CONSULTANCY SERVICES LIMITED ,203024-103 ,"59,459.44",
DFID,DFID,15/06/2017,Project delivery costs – supplier services ,East and Central Africa ,OPTIONS CONSULTANCY SERVICES LIMITED ,203024-103 ,"81,544.38",
DFID,DFID,15/06/2017,Project delivery costs – supplier services ,East and Central Africa ,OPTIONS CONSULTANCY SERVICES LIMITED ,203024-103 ,"59,459.44",
DFID,DFID,02/06/2017,Project delivery costs – supplier services ,Asia  Caribbean and Overseas Territories ,OPTIONS CONSULTANCY SERVICES LIMITED ,203413-103 ,"16,423.81",
DFID,DFID,13/06/2017,Project delivery costs – supplier services ,Asia  Caribbean and Overseas Territories ,OPTIONS CONSULTANCY SERVICES LIMITED ,203413-103 ,"83,400.00",
DFID,DFID,13/06/2017,Project delivery costs – supplier services ,Asia  Caribbean and Overseas Territories ,OPTIONS CONSULTANCY SERVICES LIMITED ,203413-103 ,"21,995.75",
DFID,DFID,30/06/2017,Project delivery costs – supplier services ,West and Southern Africa ,OPTIONS CONSULTANCY SERVICES LIMITED ,202214-103 ,"194,445.00",
DFID,DFID,30/06/2017,Project delivery costs – supplier services ,West and Southern Africa ,OPTIONS CONSULTANCY SERVICES LIMITED ,202214-103 ,"212,500.00",
DFID,DFID,30/06/2017,Project delivery costs – supplier services ,West and Southern Africa ,OPTIONS CONSULTANCY SERVICES LIMITED ,202721-104 ,"81,423.00",
DFID,DFID,30/06/2017,Project delivery costs – supplier services ,West and Southern Africa ,OPTIONS CONSULTANCY SERVICES LIMITED ,202721-104 ,"47,500.00",
DFID,DFID,01/06/2017,Project delivery costs – supplier services ,West and Southern Africa ,OPTIONS CONSULTANCY SERVICES LIMITED ,202721-104 ,"47,500.00",
DFID,DFID,16/06/2017,Office Equipment - Purchases ,Business Solutions Division Level ,ORANGEBOX LTD ,200001-101 ,573.94,
DFID,DFID,06/06/2017,Aid Programme - Accountable Grant Payments ,Policy Division ,OXFAM ,203559-105 ,"297,408.82",
DFID,DFID,23/06/2017,Project delivery costs – supplier services ,Policy Division ,PLAN INTERNATIONAL UK ,203572-101 ,"2,793,579.23",
DFID,DFID,29/06/2017,Project delivery costs – supplier services ,Economic Development Division ,PRICEWATERHOUSECOOPERS ,114178-104 ,"39,094.38",
DFID,DFID,29/06/2017,Project delivery costs – supplier services ,Economic Development Division ,PRICEWATERHOUSECOOPERS ,114178-104 ,"263,675.88",
DFID,DFID,21/06/2017,Project delivery costs – supplier services ,East and Central Africa ,PRICEWATERHOUSECOOPERS ,202597-104 ,"19,740.00",
DFID,DFID,29/06/2017,Project delivery costs – supplier services ,Asia  Caribbean and Overseas Territories ,PRICEWATERHOUSECOOPERS ,203964-101 ,"78,026.40",
DFID,DFID,08/06/2017,Project delivery costs – supplier services ,Research and Evidence Division ,PRICEWATERHOUSECOOPERS ,203835-104 ,"23,328.48",
DFID,DFID,01/06/2017,Project delivery costs – supplier services ,Research and Evidence Division ,PRICEWATERHOUSECOOPERS ,203835-104 ,"7,483.80",
DFID,DFID,26/06/2017,Project delivery costs – supplier services ,Economic Development Division ,PRICEWATERHOUSECOOPERS ,202939-115 ,"54,260.63",
DFID,DFID,27/06/2017,Project delivery costs – supplier services ,Policy Division ,PRICEWATERHOUSECOOPERS ,114370-105 ,"14,680.00",
DFID,DFID,26/06/2017,Project delivery costs – supplier services ,Economic Development Division ,PRICEWATERHOUSECOOPERS ,204250-101 ,"477,282.29",
DFID,DFID,26/06/2017,Project delivery costs – supplier services ,Economic Development Division ,PRICEWATERHOUSECOOPERS ,204250-101 ,"40,589.58",
DFID,DFID,16/06/2017,Project delivery costs – supplier services ,Economic Development Division ,PRICEWATERHOUSECOOPERS ,204250-101 ,"731,111.38",
DFID,DFID,20/06/2017,Project delivery costs – supplier services ,Policy Division ,PRICEWATERHOUSECOOPERS ,202372-102 ,"721,527.60",
DFID,DFID,26/06/2017,Project delivery costs – supplier services ,Economic Development Division ,PRICEWATERHOUSECOOPERS ,202939-103 ,"19,368.37",
DFID,DFID,08/06/2017,Project delivery costs – supplier services ,Research and Evidence Division ,PRICEWATERHOUSECOOPERS ,200822-103 ,"83,639.78",
DFID,DFID,13/06/2017,Project delivery costs – supplier services ,East and Central Africa ,PRICEWATERHOUSECOOPERS ,202597-104 ,"99,776.87",
DFID,DFID,26/06/2017,Project delivery costs – supplier services ,Economic Development Division ,PRICEWATERHOUSECOOPERS ,202939-101 ,"53,539.47",
DFID,DFID,27/06/2017,Project delivery costs – supplier services ,Policy Division ,PRICEWATERHOUSECOOPERS ,114370-104 ,"209,521.02",
DFID,DFID,27/06/2017,Project delivery costs – supplier services ,Policy Division ,PRICEWATERHOUSECOOPERS ,114370-105 ,"48,002.87",
DFID,DFID,29/06/2017,Project delivery costs – supplier services ,Policy Division ,PRICEWATERHOUSECOOPERS ,114370-105 ,"126,985.23",
DFID,DFID,06/06/2017,Storage & Distribution costs ,Asia  Caribbean and Overseas Territories ,PICKFORDS LTD ,101604-101 ,922.31,
DFID,DFID,14/06/2017,Storage & Distribution costs ,Asia  Caribbean and Overseas Territories ,Supplier Name withheld ,101601-110 ,"2,083.35",
DFID,DFID,05/06/2017,Storage & Distribution costs,West and Southern Africa ,PICKFORDS LTD ,101613-101 ,"5,619.74",
DFID,DFID,02/06/2017,Storage & Distribution costs ,West and Southern Africa ,PICKFORDS LTD ,101613-101 ,508.40,
DFID,DFID,20/06/2017,Storage & Distribution costs ,Asia  Caribbean and Overseas Territories ,PICKFORDS LTD ,101624-101 ,584.00,
DFID,DFID,01/06/2017,Storage & Distribution costs ,East and Central Africa ,PICKFORDS LTD ,202594-101 ,"1,997.32",
DFID,DFID,16/06/2017,Storage & Distribution costs ,Asia  Caribbean and Overseas Territories ,Supplier Name withheld ,101601-110 ,973.13,
DFID,DFID,22/06/2017,Storage & Distribution costs ,West and Southern Africa ,PICKFORDS LTD ,101620-101 ,584.00,
DFID,DFID,01/06/2017,Storage & Distribution costs ,West and Southern Africa ,PICKFORDS LTD ,101622-101 ,736.25,
DFID,DFID,20/06/2017,Storage & Distribution costs ,Asia  Caribbean and Overseas Territories ,PICKFORDS LTD ,101621-101 ,742.31,
DFID,DFID,14/06/2017,Storage & Distribution costs ,Asia  Caribbean and Overseas Territories ,Supplier Name withheld ,101601-110 ,"2,083.35",
DFID,DFID,13/06/2017,Storage & Distribution costs ,East and Central Africa ,PICKFORDS LTD ,101625-108 ,"1,440.15",
DFID,DFID,16/06/2017,Storage & Distribution costs ,East and Central Africa ,PICKFORDS LTD ,101625-110 ,"7,955.33",
DFID,DFID,05/06/2017,Storage & Distribution costs ,Economic Development Division ,PICKFORDS LTD ,202373-101 ,"2,087.00",
DFID,DFID,28/06/2017,Storage & Distribution costs ,Economic Development Division ,PICKFORDS LTD ,202373-101 ,"4,581.90",
DFID,DFID,16/06/2017,Storage & Distribution costs ,Asia  Caribbean and Overseas Territories ,Supplier Name withheld ,101601-110 ,973.13,
DFID,DFID,08/06/2017,Storage & Distribution costs ,Regional Directorate ,PICKFORDS LTD ,204833-101 ,625.71,
DFID,DFID,29/06/2017,Storage & Distribution costs ,West and Southern Africa ,PICKFORDS LTD ,101629-101 ,834.29,
DFID,DFID,19/06/2017,Storage & Distribution costs ,West and Southern Africa ,PICKFORDS LTD ,101618-101 ,667.43,
DFID,DFID,01/06/2017,Storage & Distribution costs ,Asia  Caribbean and Overseas Territories ,PICKFORDS LTD ,101604-101 ,"2,053.95",
DFID,DFID,10/06/2017,Storage & Distribution costs ,Asia  Caribbean and Overseas Territories ,Supplier Name withheld ,101601-110 ,"3,302.41",
DFID,DFID,10/06/2017,Storage & Distribution costs ,Asia  Caribbean and Overseas Territories ,Supplier Name withheld ,101601-110 ,"2,401.51",
DFID,DFID,22/06/2017,Storage & Distribution costs ,West and Southern Africa ,PICKFORDS LTD ,101638-101 ,662.40,
DFID,DFID,29/06/2017,Storage & Distribution costs ,West and Southern Africa ,PICKFORDS LTD ,101638-101 ,"2,112.65",
DFID,DFID,19/06/2017,Storage & Distribution costs ,East and Central Africa ,PICKFORDS LTD ,101634-101 ,742.31,
DFID,DFID,02/06/2017,Storage & Distribution costs ,Middle East and North Africa Division ,PICKFORDS LTD ,300080-101 ,"2,885.91",
DFID,DFID,22/06/2017,Storage & Distribution costs ,Regional Directorate ,PICKFORDS LTD ,204833-101 ,"1,042.86",
DFID,DFID,12/06/2017,Storage & Distribution costs ,Regional Directorate ,PICKFORDS LTD ,204833-101 ,"1,003.23",
DFID,DFID,16/06/2017,Storage & Distribution costs ,West and Southern Africa ,PICKFORDS LTD ,101622-106 ,"13,064.88",
DFID,DFID,21/06/2017,UK Staff overseas - Transfer costs ,Asia  Caribbean and Overseas Territories ,PICKFORDS LTD ,205157-103 ,"1,376.71",
DFID,DFID,05/06/2017,Storage & Distribution costs ,West and Southern Africa ,PICKFORDS LTD ,101610-101 ,"1,666.72",
DFID,DFID,01/06/2017,Storage & Distribution costs ,West and Southern Africa ,PICKFORDS LTD ,101610-101 ,736.26,
DFID,DFID,14/06/2017,Storage & Distribution costs ,Research and Evidence Division ,PICKFORDS LTD ,203874-102 ,"5,962.14",
DFID,DFID,11/06/2017,Storage & Distribution costs ,Asia  Caribbean and Overseas Territories ,PICKFORDS LTD ,101603-101 ,"4,188.50",
DFID,DFID,13/06/2017,Storage & Distribution costs ,West and Southern Africa ,PICKFORDS LTD ,101610-101 ,"1,241.88",
DFID,DFID,03/06/2017,Storage & Distribution costs ,Asia  Caribbean and Overseas Territories ,Supplier Name withheld ,101601-110 ,"1,422.72",
DFID,DFID,05/06/2017,Storage & Distribution costs ,Asia  Caribbean and Overseas Territories ,PICKFORDS LTD ,101624-101 ,568.86,
DFID,DFID,19/06/2017,Storage & Distribution costs ,Asia  Caribbean and Overseas Territories ,PICKFORDS LTD ,101624-101 ,557.26,
DFID,DFID,22/06/2017,Storage & Distribution costs ,Asia  Caribbean and Overseas Territories ,PICKFORDS LTD ,101624-101 ,703.93,
DFID,DFID,02/06/2017,Storage & Distribution costs ,Asia  Caribbean and Overseas Territories ,PICKFORDS LTD ,202403-101 ,508.40,
DFID,DFID,21/06/2017,Storage & Distribution costs ,East and Central Africa ,PICKFORDS LTD ,101635-101 ,567.77,
DFID,DFID,29/06/2017,Storage & Distribution costs ,Asia  Caribbean and Overseas Territories ,PICKFORDS LTD ,101603-101 ,"4,597.14",
DFID,DFID,05/06/2017,Storage & Distribution costs ,East and Central Africa ,PICKFORDS LTD ,101634-101 ,645.00,
DFID,DFID,28/06/2017,Relocation costs ,Asia  Caribbean and Overseas Territories ,PICKFORDS LTD ,101605-101 ,"2,388.44",
DFID,DFID,09/06/2017,Storage & Distribution costs ,East and Central Africa ,PICKFORDS LTD ,101612-101 ,"8,845.10",
DFID,DFID,02/06/2017,Storage & Distribution costs ,East and Central Africa ,PICKFORDS LTD ,202597-112 ,"1,258.80",
DFID,DFID,16/06/2017,Project delivery costs – supplier services ,West and Southern Africa ,POPULATION  SERVICES INTERNATIONAL ,203458-102 ,"53,863.00",
DFID,DFID,16/06/2017,Project delivery costs – supplier services ,West and Southern Africa ,POPULATION  SERVICES INTERNATIONAL ,203458-103 ,"1,811,097.00",
DFID,DFID,16/06/2017,Project delivery costs – supplier services ,West and Southern Africa ,POPULATION  SERVICES INTERNATIONAL ,203458-104 ,"94,672.00",
DFID,DFID,07/06/2017,Project delivery costs – supplier services ,Asia  Caribbean and Overseas Territories ,POPULATION  SERVICES INTERNATIONAL ,202413-105 ,"881,948.56",
DFID,DFID,22/06/2017,Aid Programme - Accountable Grant Payments ,East and Central Africa ,THE RAINFOREST FOUNDATION UK ,204956-101 ,"370,926.00",
DFID,DFID,12/06/2017,Aid Programme - Accountable Grant Payments ,West and Southern Africa ,THE SAVE THE CHILDREN FUND ,201874-102 ,"31,733.00",
DFID,DFID,13/06/2017,Project delivery costs – supplier services ,East and Central Africa ,THE SAVE THE CHILDREN FUND ,202891-101 ,"33,970.51",
DFID,DFID,13/06/2017,Project delivery costs – supplier services ,East and Central Africa ,THE SAVE THE CHILDREN FUND ,202891-102 ,"135,882.03",
DFID,DFID,06/06/2017,Aid Programme - Accountable Grant Payments ,East and Central Africa ,THE SAVE THE CHILDREN FUND ,203462-111 ,"599,465.00",
DFID,DFID,02/06/2017,Aid Programme - Refugee Relief Payments ,East and Central Africa ,THE SAVE THE CHILDREN FUND ,205070-103 ,"215,549.00",
DFID,DFID,29/06/2017,Project delivery costs – supplier services ,West and Southern Africa ,THE SAVE THE CHILDREN FUND ,202623-116 ,"50,000.00",
DFID,DFID,29/06/2017,Project delivery costs – supplier services ,West and Southern Africa ,THE SAVE THE CHILDREN FUND ,202623-116 ,"75,000.00",
DFID,DFID,12/06/2017,Aid Programme - Accountable Grant Payments ,West and Southern Africa ,THE SAVE THE CHILDREN FUND ,201874-102 ,"575,013.00",
DFID,DFID,16/06/2017,Aid Programme - Accountable Grant Payments ,Research and Evidence Division ,SAVE THE CHILDREN ,203705-133 ,"30,888.00",
DFID,DFID,06/06/2017,Aid Programme - Humanitarian Material Relief Assistance and Services ,Conflict  Humanitarian  Security & Stabilisation Division ,SAVE THE CHILDREN ,203044-102 ,"344,998.00",
DFID,DFID,16/06/2017,Project delivery costs – supplier services ,Research and Evidence Division ,SAVE THE CHILDREN ,203706-116 ,"58,132.00",
DFID,DFID,22/06/2017,Project delivery costs – supplier services ,Research and Evidence Division ,SAVE THE CHILDREN ,203706-116 ,"3,846.00",
DFID,DFID,12/06/2017,Aid Programme - Accountable Grant Payments ,Conflict  Humanitarian  Security & Stabilisation Division ,SAVE THE CHILDREN ,300263-102 ,"615,509.00",
DFID,DFID,20/06/2017,Project delivery costs – supplier services ,Policy Division ,Social Development Direct Ltd ,203245-106 ,"22,018.36",
DFID,DFID,16/06/2017,Project delivery costs – supplier services ,West and Southern Africa ,Social Development Direct Ltd ,203823-106 ,"48,027.40",
DFID,DFID,13/06/2017,Project delivery costs – supplier services ,West and Southern Africa ,Social Development Direct Ltd ,203823-106 ,"116,197.00",
DFID,DFID,20/06/2017,Project delivery costs – supplier services ,Policy Division ,SOUTHWOOD CONSULTANTS ,204963-101 ,"16,258.49",
DFID,DFID,14/06/2017,Aid Programme - Accountable Grant Payments ,Policy Division ,SIGHT SAVERS INTERNATIONAL ,203559-127 ,"350,000.00",
DFID,DFID,08/06/2017,Aid Programme - Accountable Grant Payments ,Policy Division ,SAVE THE CHILDREN UK ,203559-154 ,"211,983.00",
DFID,DFID,06/06/2017,Storage & Distribution costs ,Business Solutions Division Level ,TNT Express (UK) Ltd ,200001-101 ,"7,772.18",
DFID,DFID,16/06/2017,Legal costs ,Human Resources ,GOVERNMENT LEGAL DEPARTMENT ,100269-136 ,"4,653.00",
DFID,DFID,16/06/2017,Legal costs ,Human Resources ,GOVERNMENT LEGAL DEPARTMENT ,100269-136 ,"2,931.78",
DFID,DFID,14/06/2017,Project delivery costs – supplier services ,Conflict  Humanitarian  Security & Stabilisation Division ,GOVERNMENT LEGAL DEPARTMENT ,202741-104 ,599.94,
DFID,DFID,14/06/2017,Legal costs ,Finance and Corporate Performance Division ,GOVERNMENT LEGAL DEPARTMENT ,100201-101 ,"11,499.36",
DFID,DFID,26/06/2017,Legal costs ,Finance and Corporate Performance Division ,GOVERNMENT LEGAL DEPARTMENT ,100201-101 ,"1,122.30",
DFID,DFID,15/06/2017,Legal costs ,West and Southern Africa ,GOVERNMENT LEGAL DEPARTMENT ,205195-101 ,"1,383.84",
DFID,DFID,12/06/2017,Computer Software Licenses ,Business Solutions Division Level ,TRUSTMARQUE SOLUTIONS LTD ,200002-228 ,"23,955.36",
DFID,DFID,12/06/2017,Computer Software Licenses ,Business Solutions Division Level ,TRUSTMARQUE SOLUTIONS LTD ,200002-228 ,"57,125.52",Microsoft Licenses for the Cloud  migration of DFIDs in house systems for the period June 2017 to March 2018 
DFID,DFID,26/06/2017,Computer Software Licenses ,Business Solutions Division Level ,TRUSTMARQUE SOLUTIONS LTD ,200005-143 ,"4,760.46",
DFID,DFID,01/06/2017,Aid Programme - Voluntary contributions ,East and Central Africa ,UNICEF ,204045-102 ,"969,964.00",
DFID,DFID,21/06/2017,Aid Programme - Joint programme contribution ,East and Central Africa ,UNICEF ,204005-102 ,"443,423.00",
DFID,DFID,06/06/2017,Aid Programme - Accountable Grant Payments ,Policy Division ,TROCAIRE (Northern Ireland) ,203559-145 ,"199,011.41",
DFID,DFID,05/06/2017,Aid Programme - Accountable Grant Payments ,Policy Division ,TROCAIRE (Northern Ireland) ,203559-112 ,"170,614.00",
DFID,DFID,02/06/2017,Aid Programme - Accountable Grant Payments ,Policy Division ,TROCAIRE (Northern Ireland) ,203559-165 ,"130,544.95",
DFID,DFID,01/06/2017,Project delivery costs – supplier services ,Policy Division ,TROPICAL HEALTH AND EDUCATION TRUST ,202208-101 ,"56,242.72",
DFID,DFID,05/06/2017,Project delivery costs – supplier services ,Policy Division ,TROPICAL HEALTH AND EDUCATION TRUST ,202208-101 ,"98,221.54",
DFID,DFID,09/06/2017,Research and development costs - supplier services ,Research and Evidence Division ,University Of Sussex ,114334-102 ,"245,283.39",
DFID,DFID,07/06/2017,Aid Programme - Voluntary contributions ,East and Central Africa ,UNDP CONTRIBUTIONS ACCOUNT ,205110-102 ,"625,000.00",
DFID,DFID,16/06/2017,Aid Programme - Voluntary contributions ,East and Central Africa ,UN WOMEN ,200795-110 ,"383,400.00",
DFID,DFID,01/06/2017,Aid Programme - Voluntary contributions ,East and Central Africa ,UNICEF ,204019-118 ,"3,573,560.00",
DFID,DFID,23/06/2017,Aid Programme - Voluntary contributions ,East and Central Africa ,UNICEF ,203603-109 ,"337,560.00",
DFID,DFID,01/06/2017,Aid Programme - Voluntary contributions ,East and Central Africa ,UNICEF ,204019-120 ,"895,440.00",
DFID,DFID,28/06/2017,Aid Programme - Humanitarian Material Relief Assistance and Services ,East and Central Africa ,UNICEF ,203462-105 ,"2,000,000.00",
DFID,DFID,26/06/2017,Aid Programme - Voluntary contributions ,Middle East and North Africa Division ,UNICEF ,205200-101 ,"500,000.00",
DFID,DFID,14/06/2017,Aid Programme - Accountable Grant Payments ,East and Central Africa ,VOLUNTARY SERVICE OVERSEAS ,203459-112 ,"35,391.13",
DFID,DFID,29/06/2017,Research and development costs - supplier services ,Research and Evidence Division ,VALID EVALUATIONS LTD ,203706-109 ,"185,000.00",
DFID,DFID,08/06/2017,Telephone Usage & services ,Business Solutions Division Level ,VODAFONE CORPORATE ,200002-170 ,"7,509.70",
DFID,DFID,08/06/2017,Telephone Usage & services ,Business Solutions Division Level ,VODAFONE CORPORATE ,200002-170 ,"25,008.02",Telephone usage and rental costs for UK based staff for May 2017
DFID,DFID,29/06/2017,Aid Programme - Accountable Grant Payments ,Policy Division ,UNICEF UK ,203559-166 ,"241,129.00",
DFID,DFID,20/06/2017,Data Network - land lines ,Business Solutions Division Level ,VERIZON UK LIMITED ,200002-126 ,"7,943.65",
DFID,DFID,20/06/2017,Data Network - land lines ,Business Solutions Division Level ,VERIZON UK LIMITED ,200002-126 ,"8,103.16",
DFID,DFID,28/06/2017,Aid Programme - Accountable Grant Payments ,West and Southern Africa ,WATERAID ,202944-102 ,"26,639.15",
DFID,DFID,12/06/2017,Aid Programme - Accountable Grant Payments ,Policy Division ,WATERAID ,203559-157 ,"548,840.00",
DFID,DFID,01/06/2017,Aid Programme - Accountable Grant Payments ,Policy Division ,Y CARE INTERNATIONAL ,203559-147 ,"51,743.61",
DFID,DFID,28/06/2017,Contract Catering Services ,East and Central Africa ,British Embassy ,101612-101 ,906.14,
DFID,DFID,13/06/2017,Aid Programme - Accountable Grant Payments ,Asia  Caribbean and Overseas Territories ,BRAC ,107460-111 ,"71,697.00",
DFID,DFID,14/06/2017,Aid Programme - Accountable Grant Payments ,Asia  Caribbean and Overseas Territories ,BRAC ,204916-101 ,"28,000,000.00",
DFID,DFID,15/06/2017,Air fares ,Asia  Caribbean and Overseas Territories ,Saimon Overseas Ltd ,101603-102 ,903.57,
DFID,DFID,22/06/2017,Air fares ,Asia  Caribbean and Overseas Territories ,Saimon Overseas Ltd ,101603-102 ,"1,070.59",
DFID,DFID,08/06/2017,Hotels - Accommodation only ,West and Southern Africa ,Ryalls Hotel ,101618-101 ,635.02,
DFID,DFID,02/06/2017,Air fares ,West and Southern Africa ,Mukwa Travel and Tours ,101637-101 ,808.15,
DFID,DFID,27/06/2017,Air fares ,Asia  Caribbean and Overseas Territories ,Jaya Travels & Tours Ltd ,101621-101 ,"1,200.15",
DFID,DFID,27/06/2017,Air fares ,Asia  Caribbean and Overseas Territories ,Jaya Travels & Tours Ltd ,101621-108 ,"1,416.31",
DFID,DFID,19/06/2017,Aid Programme - Voluntary contributions ,Asia  Caribbean and Overseas Territories ,Pan American Health Organisation ,203272-104 ,"1,104,312.00",
DFID,DFID,20/06/2017,Aid Programme - Voluntary contributions ,Asia  Caribbean and Overseas Territories ,Pan American Health Organisation ,203272-105 ,"3,240,000.00",
DFID,DFID,20/06/2017,Aid Programme - Voluntary contributions ,Asia  Caribbean and Overseas Territories ,Pan American Health Organisation ,203272-105 ,"30,449.00",
DFID,DFID,16/06/2017,Hotels - Accommodation only ,East and Central Africa ,Sheraton Hotel ,101635-101 ,621.16,
DFID,DFID,16/06/2017,Hotels - Accommodation only ,East and Central Africa ,Sheraton Hotel ,101635-101 ,"1,969.59",
DFID,DFID,23/06/2017,Hotels - Accommodation only ,East and Central Africa ,Sheraton Hotel ,101635-101 ,"1,116.98",
DFID,DFID,23/06/2017,Hotels - Accommodation only ,East and Central Africa ,Sheraton Hotel ,101635-101 ,"1,146.98",
DFID,DFID,29/06/2017,Hotels - Accommodation only ,East and Central Africa ,Sheraton Hotel ,101635-101 ,"1,292.11",
DFID,DFID,29/06/2017,Hotels - Accommodation only ,Economic Development Division ,Sheraton Hotel ,202373-101 ,548.09,
DFID,DFID,06/06/2017,Hotels - Accommodation only ,East and Central Africa ,Sheraton Hotel ,101635-101 ,"1,521.72",
DFID,DFID,22/06/2017,Air fares ,East and Central Africa ,Simbatravelcare Limited ,101635-101 ,585.50,
DFID,DFID,06/06/2017,Training - Travel & Subsistence ,East and Central Africa ,Simbatravelcare Limited ,101635-101 ,994.57,
DFID,DFID,06/06/2017,Training - Travel & Subsistence ,East and Central Africa ,Simbatravelcare Limited ,101635-101 ,"1,318.85",
DFID,DFID,06/06/2017,Training - Travel & Subsistence ,East and Central Africa ,Simbatravelcare Limited ,101635-101 ,"1,463.93",
DFID,DFID,19/06/2017,Training - Travel & Subsistence ,East and Central Africa ,Simbatravelcare Limited ,101635-101 ,"1,345.85",
DFID,DFID,06/06/2017,Air fares ,East and Central Africa ,Simbatravelcare Limited ,204641-105 ,"1,195.50",
DFID,DFID,06/06/2017,Air fares ,East and Central Africa ,Simbatravelcare Limited ,204641-105 ,"3,246.70",
DFID,DFID,01/06/2017,Air fares ,East and Central Africa ,Simbatravelcare Limited ,101635-101 ,573.99,
DFID,DFID,15/06/2017,Hotels - Accommodation only ,East and Central Africa ,Fairview Hotel ,101616-101 ,"2,604.84",
DFID,DFID,13/06/2017,Hotels - Accommodation only ,Communications Division ,Fairview Hotel ,100154-101 ,622.27,
DFID,DFID,13/06/2017,Hotels - Accommodation only ,Research and Evidence Division ,Fairview Hotel ,202392-113 ,819.57,
DFID,DFID,13/06/2017,Hotels - Accommodation only ,Research and Evidence Division ,Fairview Hotel ,202392-113 ,"1,365.96",
DFID,DFID,12/06/2017,Research and development costs - supplier services ,Research and Evidence Division ,The Population Council ,204329-103 ,"385,065.84",
DFID,DFID,06/06/2017,Research and development costs - supplier services ,Research and Evidence Division ,South African Institute of International Affairs ,204584-147 ,"34,599.00",
DFID,DFID,19/06/2017,Hotels - Accommodation only ,PGP Directorate ,Hotel Cardoso S A R L ,205044-101 ,583.30,
DFID,DFID,19/06/2017,Hotels - Accommodation only ,East and Central Africa ,Hotel Cardoso S A R L ,101625-112 ,713.58,
DFID,DFID,06/06/2017,Hotels - Accommodation only ,West and Southern Africa ,Supplier Name withheld ,101622-106 ,"1,356.48",
DFID,DFID,13/06/2017,Hotels - Accommodation only ,West and Southern Africa ,Supplier Name withheld ,101622-106 ,"2,962.67",
DFID,DFID,07/06/2017,Project delivery costs – supplier services ,West and Southern Africa ,PKF Professional Services ,201625-105 ,"4,968.20",
DFID,DFID,07/06/2017,Auditors Assurance Service ,West and Southern Africa ,PKF Professional Services ,202942-104 ,"17,716.32",
DFID,DFID,13/06/2017,Auditors Remuneration & Expenses - Cash ,West and Southern Africa ,PKF Professional Services ,201874-103 ,"7,489.92",
DFID,DFID,07/06/2017,Conferences  Seminars & Meeting/Event Resource ,Research and Evidence Division ,COMPASS GROUP ,202331-101 ,"5,175.00",
DFID,DFID,07/06/2017,Project delivery costs – supplier services ,Economic Development Division ,ERNST & YOUNG ,203232-101 ,"25,589.00",
DFID,DFID,07/06/2017,Project delivery costs – supplier services ,Policy Division ,Overseas Development Institute ,203034-111 ,"19,542.70",
DFID,DFID,27/06/2017,Research and development costs - supplier services ,Research and Evidence Division ,Overseas Development Institute ,203529-106 ,"409,324.00",
DFID,DFID,01/06/2017,Aid Programme - Accountable Grant Payments ,Economic Development Division ,ISEAL ALLIANCE ,203448-101 ,"228,034.00",
DFID,DFID,14/06/2017,Training Providers/Facilitation Services ,PGP Directorate ,CIPFA ,205044-101 ,"2,200.00",
DFID,DFID,01/06/2017,Aid Programme - Accountable Grant Payments ,Asia  Caribbean and Overseas Territories ,THE ASIA FOUNDATION ,203996-107 ,"125,756.89",
DFID,DFID,28/06/2017,Project delivery costs – supplier services ,Conflict  Humanitarian  Security & Stabilisation Division ,Geneva Centre for the Democratic Control of Armed Forces ,300042-103 ,"19,461.62",
DFID,DFID,06/06/2017,Project delivery costs – supplier services ,Economic Development Division ,ART OF LIVING ,205081-101 ,"2,679.00",
DFID,DFID,06/06/2017,Project delivery costs – supplier services ,Economic Development Division ,ART OF LIVING ,205081-101 ,"1,621.00",
DFID,DFID,09/06/2017,Project delivery costs – supplier services ,Economic Development Division ,ART OF LIVING ,205081-101 ,"4,235.00",
DFID,DFID,05/06/2017,Aid Programme - Voluntary contributions ,East and Central Africa ,UN OCHA ,203462-113 ,"500,000.00",
DFID,DFID,28/06/2017,Aid Programme - Voluntary contributions ,Middle East and North Africa Division ,UN OCHA ,204530-101 ,"6,000,000.00",
DFID,DFID,01/06/2017,Aid Programme - Humanitarian Material Relief Assistance and Services ,East and Central Africa ,UN OCHA ,300363-103 ,"9,025,000.00",
DFID,DFID,26/06/2017,Computer Software Licenses ,Business Solutions Division Level ,SOFTWARE BOX LTD (SBL) ,200002-137 ,"12,448.80",
DFID,DFID,08/06/2017,Computer Consumables ,Business Solutions Division Level ,SOFTWARE BOX LTD (SBL) ,200002-197 ,"3,371.40",
DFID,DFID,15/06/2017,Aid Programme - Voluntary contributions ,West and Southern Africa ,FAO ,203429-101 ,"236,607.00",
DFID,DFID,16/06/2017,Aid Programme - Voluntary contributions ,East and Central Africa ,FAO ,204019-110 ,"2,347,043.00",
DFID,DFID,01/06/2017,Aid Programme - Voluntary contributions ,Asia  Caribbean and Overseas Territories ,FAO ,203264-104 ,"178,132.00",
DFID,DFID,01/06/2017,Aid Programme - Voluntary contributions ,Asia  Caribbean and Overseas Territories ,FAO ,203264-106 ,"321,868.00",
DFID,DFID,19/06/2017,Aid Programme - Core contributions ,West and Southern Africa ,WFP CONTRIBUTIONS UNIT ,300432-109 ,"38,000,000.00",
DFID,DFID,22/06/2017,Aid Programme - Voluntary contributions ,East and Central Africa ,WFP CONTRIBUTIONS UNIT ,300245-102 ,"461,000.00",
DFID,DFID,09/06/2017,Aid Programme - Joint programme contribution ,Asia  Caribbean and Overseas Territories ,WFP CONTRIBUTIONS UNIT ,300003-111 ,"390,000.00",
DFID,DFID,20/06/2017,Aid Programme - Voluntary contributions ,East and Central Africa ,WFP CONTRIBUTIONS UNIT ,204019-101 ,"13,000,000.00",
DFID,DFID,28/06/2017,Aid Programme - Voluntary contributions ,Middle East and North Africa Division ,WFP CONTRIBUTIONS UNIT ,300434-101 ,"20,000,000.00",
DFID,DFID,19/06/2017,Aid Programme - Voluntary contributions ,East and Central Africa ,WFP CONTRIBUTIONS UNIT ,203603-111 ,"326,800.00",
DFID,DFID,30/06/2017,Aid Programme - Refugee Relief Payments ,East and Central Africa ,WFP CONTRIBUTIONS UNIT ,300357-104 ,"8,000,000.00",
DFID,DFID,19/06/2017,Aid Programme - Voluntary contributions ,East and Central Africa ,WFP CONTRIBUTIONS UNIT ,204019-117 ,"1,860,000.00",
DFID,DFID,01/06/2017,Aid Programme - Voluntary contributions ,East and Central Africa ,WFP CONTRIBUTIONS UNIT ,204019-117 ,"948,436.00",
DFID,DFID,22/06/2017,Aid Programme - Emergency Food Aid ,East and Central Africa ,WFP CONTRIBUTIONS UNIT ,204936-101 ,"4,500,000.00",
DFID,DFID,05/06/2017,Aid Programme - Accountable Grant Payments ,East and Central Africa ,SOLIDARITES INTERNATIONAL ,205286-108 ,"344,789.00",
DFID,DFID,06/06/2017,Research and development costs - supplier services ,Research and Evidence Division ,International Food PolicyResearch Institute (IFRI ,201448-104 ,"242,508.00",
DFID,DFID,07/06/2017,Data Network - land lines ,Business Solutions Division Level ,KUBE NETWORKS LTD ,200002-130 ,"1,120.54",
DFID,DFID,06/06/2017,Aid Programme - Accountable Grant Payments ,East and Central Africa ,AGRA in AFRICA ,200094-106 ,"397,689.00",
DFID,DFID,21/06/2017,Aid Programme - Joint programme contribution ,East and Central Africa ,GIZ GmbH Eschborn ,204639-101 ,"2,320,000.00",
DFID,DFID,26/06/2017,Aid Programme - Accountable Grant Payments ,East and Central Africa ,AGRA IN AFRICA (NO2) ,201575-105 ,"354,494.00",
DFID,DFID,14/06/2017,Aid Programme - Accountable Grant Payments ,Economic Development Division ,AGRA IN AFRICA (NO2) ,200094-108 ,"221,549.00",
DFID,DFID,30/06/2017,Aid Programme - Accountable Grant Payments ,East and Central Africa ,AGRA IN AFRICA (NO2) ,203574-104 ,"931,206.00",
DFID,DFID,30/06/2017,Aid Programme - Accountable Grant Payments ,East and Central Africa ,AGRA IN AFRICA (NO2) ,203574-107 ,"510,934.00",
DFID,DFID,16/06/2017,Project delivery costs – supplier services ,East and Central Africa ,Kimetrica Limited ,205116-110 ,"21,162.00",
DFID,DFID,12/06/2017,Project delivery costs – supplier services ,East and Central Africa ,MARK MCGIVERN ,101612-101 ,"7,975.00",
DFID,DFID,05/06/2017,Aid Programme - Accountable Grant Payments ,Research and Evidence Division ,AATF ,204988-102 ,"170,000.00",
DFID,DFID,15/06/2017,Aid Programme - Accountable Grant Payments ,Asia  Caribbean and Overseas Territories ,Population Services Internation (usa) ,202759-101 ,"281,171.85",
DFID,DFID,19/06/2017,Aid Programme - Accountable Grant Payments ,East and Central Africa ,FINANCIAL SECTOR DEEPENING ,204258-104 ,"1,173,182.75",
DFID,DFID,19/06/2017,Aid Programme - Accountable Grant Payments ,East and Central Africa ,FINANCIAL SECTOR DEEPENING ,204258-105 ,"3,519,548.25",
DFID,DFID,26/06/2017,Aid Programme - Accountable Grant Payments ,Middle East and North Africa Division ,Save the Children Fund UK ,300353-101 ,"749,949.00",
DFID,DFID,28/06/2017,Aid Programme - Accountable Grant Payments ,East and Central Africa ,LONDON SCHOOL OF ECONOMICS AND POLITICAL SCIENCE ,204803-103 ,"7,500.00",
DFID,DFID,14/06/2017,Training Providers/Facilitation Services ,East and Central Africa ,WORKING SOLUTIONS ,101634-101 ,659.50,
DFID,DFID,30/06/2017,Hotels - Accommodation only ,West and Southern Africa ,The Country Lodge Complex ,101629-101 ,822.50,
DFID,DFID,26/06/2017,Aid Programme - Joint programme contribution ,Research and Evidence Division ,UNITED NATIONS FOUNDATION ,203036-105 ,"296,521.43",
DFID,DFID,14/06/2017,Training - Travel & Subsistence ,West and Southern Africa ,Premier Travel ,101638-101 ,523.88,
DFID,DFID,14/06/2017,Air fares ,West and Southern Africa ,Premier Travel ,101638-101 ,557.01,
DFID,DFID,28/06/2017,Hotels - Accommodation only ,West and Southern Africa ,Alisa Hotel North Ridge ,101613-101 ,639.44,
DFID,DFID,28/06/2017,Hotels - Accommodation only ,West and Southern Africa ,Alisa Hotel North Ridge ,101613-101 ,530.36,
DFID,DFID,29/06/2017,Aid Programme - Core contributions ,East and Central Africa ,UNFPA ,203024-102 ,"3,000,000.00",
DFID,DFID,28/06/2017,Aid Programme - Voluntary contributions ,East and Central Africa ,UNFPA ,300406-101 ,"1,462,838.00",
DFID,DFID,15/06/2017,Aid Programme - Trust Funds contributions ,West and Southern Africa ,UNFPA ,300360-101 ,"3,000,000.00",
DFID,DFID,23/06/2017,Aid Programme - Voluntary contributions ,East and Central Africa ,UNHCR ,205116-101 ,"2,950,000.00",
DFID,DFID,23/06/2017,Aid Programme - Voluntary contributions ,East and Central Africa ,UNHCR ,205116-102 ,"350,000.00",
DFID,DFID,28/06/2017,Aid Programme - Refugee Relief Payments ,East and Central Africa ,UNHCR ,300440-101 ,"3,000,000.00",
DFID,DFID,26/06/2017,Aid Programme - Refugee Relief Payments ,East and Central Africa ,UNHCR ,205143-101 ,"4,000,000.00",
DFID,DFID,21/06/2017,Project delivery costs – supplier services ,Economic Development Division ,KPMG LLP ,202647-101 ,"14,376.00",
DFID,DFID,21/06/2017,Project delivery costs – supplier services ,Economic Development Division ,KPMG LLP ,202647-101 ,"9,916.80",
DFID,DFID,22/06/2017,Project delivery costs – supplier services ,Economic Development Division ,KPMG LLP ,202647-101 ,"9,916.80",
DFID,DFID,01/06/2017,Project delivery costs – supplier services ,Economic Development Division ,KPMG LLP ,204255-101 ,"93,275.44",
DFID,DFID,14/06/2017,Project delivery costs – supplier services ,Economic Development Division ,KPMG LLP ,204255-101 ,"271,958.50",
DFID,DFID,23/06/2017,Project delivery costs – supplier services ,Middle East and North Africa Division ,KPMG LLP ,204516-105 ,"34,692.00",
DFID,DFID,23/06/2017,Project delivery costs – supplier services ,Middle East and North Africa Division ,KPMG LLP ,204516-105 ,"10,676.20",
DFID,DFID,22/06/2017,Aid Programme - Core contributions ,Research and Evidence Division ,WHO (GENEVA) ,203082-102 ,"1,000,000.00",
DFID,DFID,29/06/2017,Aid Programme - Core contributions ,Research and Evidence Division ,WHO (GENEVA) ,203083-102 ,"1,200,000.00",
DFID,DFID,16/06/2017,Aid Programme - Voluntary contributions ,Policy Division ,WHO (GENEVA) ,203066-101 ,"405,000.00",
DFID,DFID,29/06/2017,Computer hardware maintenance ,West and Southern Africa ,Osmat Network Solutions Ventures ,101622-107 ,"4,552.35",
DFID,DFID,14/06/2017,Subscriptions ,Communications Division ,THE PRESS ASSOCIATION ,100197-101 ,607.92,
DFID,DFID,21/06/2017,Project delivery costs – supplier services ,Middle East and North Africa Division ,CHEMONICS ,205048-101 ,"889,503.00",
DFID,DFID,26/06/2017,Project delivery costs – supplier services ,Research and Evidence Division ,Action Against Hunger UK (ACF-UK) ,203705-130 ,"160,679.00",
DFID,DFID,06/06/2017,Aid Programme - Voluntary contributions ,Asia  Caribbean and Overseas Territories ,IOM ,300040-103 ,"750,000.00",
DFID,DFID,20/06/2017,Aid Programme - Voluntary contributions ,Asia  Caribbean and Overseas Territories ,IOM ,300051-101 ,"20,212.00",
DFID,DFID,26/06/2017,Aid Programme - Accountable Grant Payments ,West and Southern Africa ,SEARCH FOR COMMON GROUND ,202416-114 ,"551,369.00",
DFID,DFID,22/06/2017,Project delivery costs – supplier services ,Asia  Caribbean and Overseas Territories ,BMB MOTT  MACDONALD ,107480-101 ,"60,702.25",
DFID,DFID,22/06/2017,Project delivery costs – supplier services ,Asia  Caribbean and Overseas Territories ,BMB MOTT  MACDONALD ,107480-101 ,"69,142.93",
DFID,DFID,06/06/2017,Project delivery costs – supplier services ,Asia  Caribbean and Overseas Territories ,IPE Global Ltd. ,204825-106 ,"20,675.16",
DFID,DFID,19/06/2017,Project delivery costs – supplier services ,Asia  Caribbean and Overseas Territories ,IPE Global Ltd. ,204623-113 ,"18,806.00",
DFID,DFID,07/06/2017,Project delivery costs – supplier services ,West and Southern Africa ,IPE Global Ltd. ,203164-102 ,"311,082.63",
DFID,DFID,09/06/2017,Project delivery costs – supplier services ,West and Southern Africa ,IPE Global Ltd. ,203164-102 ,"246,321.00",
DFID,DFID,20/06/2017,Subscriptions ,Research and Evidence Division ,DODS ,202348-105 ,"3,341.33",
DFID,DFID,23/06/2017,Aid Programme - Voluntary contributions ,East and Central Africa ,THE INTERNATIONAL COMMITTEE OF THE RED CROSS (ICRC) ,204019-105 ,"9,000,000.00",
DFID,DFID,05/06/2017,Aid Programme - Accountable Grant Payments ,East and Central Africa ,EISA ,204458-108 ,"208,598.05",
DFID,DFID,13/06/2017,Aid Programme - Accountable Grant Payments ,West and Southern Africa ,CIP (Centro de Integridade Publica) ,203311-101 ,"173,888.00",
DFID,DFID,26/06/2017,Project delivery costs – supplier services ,Conflict  Humanitarian  Security & Stabilisation Division ,International Center for Transitional Justice ,204795-102 ,"84,036.69",
DFID,DFID,30/06/2017,Aid Programme - Accountable Grant Payments ,Economic Development Division ,International Centre for Trade and Sustainable Development ,204717-101 ,"425,000.00",
DFID,DFID,28/06/2017,Aid Programme - Accountable Grant Payments ,Conflict  Humanitarian  Security & Stabilisation Division ,INTERNATIONAL RESCUE COMMITTEE ,300264-104 ,"296,376.00",
DFID,DFID,02/06/2017,Aid Programme - Accountable Grant Payments ,Conflict  Humanitarian  Security & Stabilisation Division ,INTERNATIONAL RESCUE COMMITTEE ,204060-101 ,"1,213,093.00",
DFID,DFID,09/06/2017,Aid Programme - Accountable Grant Payments ,Middle East and North Africa Division ,INTERNATIONAL RESCUE COMMITTEE ,300349-101 ,"818,064.00",
DFID,DFID,22/06/2017,Aid Programme - Core contributions ,Research and Evidence Division ,Medicines for Malaria Venture ,300341-104 ,"16,000,000.00",
DFID,DFID,01/06/2017,Aid Programme - Strategic Grant Arrangement payments ,Research and Evidence Division ,WELLCOME TRUST ,204571-110 ,"208,000.00",
DFID,DFID,16/06/2017,Project delivery costs – supplier services ,Research and Evidence Division ,ECORYS UK Ltd. ,203778-109 ,"114,826.60",
DFID,DFID,13/06/2017,Aid Programme - Accountable Grant Payments ,Policy Division ,Center for Global Development ,202820-101 ,"362,259.00",
DFID,DFID,02/06/2017,Hotels - Accommodation only ,East and Central Africa ,Southern Sun Hotels(T) Ltd (USD) ,101612-101 ,"1,084.91",
DFID,DFID,19/06/2017,Aid Programme - Accountable Grant Payments ,Asia  Caribbean and Overseas Territories ,Chinadialogue ,202775-104 ,"13,970.00",
DFID,DFID,15/06/2017,Training Providers/Facilitation Services ,East and Central Africa ,Capita Business Serivces Ltd ,101625-110 ,"1,170.73",
DFID,DFID,15/06/2017,Training Providers/Facilitation Services ,East and Central Africa ,Capita Business Serivces Ltd ,101625-110 ,778.52,
DFID,DFID,15/06/2017,Training - Course Fees ,East and Central Africa ,Capita Business Serivces Ltd ,101625-110 ,"3,892.68",
DFID,DFID,15/06/2017,Training - Course Fees ,East and Central Africa ,Capita Business Serivces Ltd ,101625-110 ,"4,653.66",
DFID,DFID,05/06/2017,Fund monies to be managed and dispersed by the supplier ,East and Central Africa ,BMB  MOTT  MACDONALD ,203383-101 ,"465,000.00",
DFID,DFID,29/06/2017,Fund monies to be managed and dispersed by the supplier ,East and Central Africa ,BMB  MOTT  MACDONALD ,203383-101 ,"199,315.99",
DFID,DFID,19/06/2017,Project delivery costs – supplier services ,East and Central Africa ,BMB  MOTT  MACDONALD ,202511-102 ,"682,380.59",
DFID,DFID,27/06/2017,Project delivery costs – supplier services ,East and Central Africa ,BMB  MOTT  MACDONALD ,202511-102 ,"131,518.35",
DFID,DFID,01/06/2017,Project delivery costs – supplier services ,East and Central Africa ,BMB  MOTT  MACDONALD ,202511-102 ,"162,939.90",
DFID,DFID,01/06/2017,Project delivery costs – supplier services ,East and Central Africa ,BMB  MOTT  MACDONALD ,202511-102 ,"124,478.14",
DFID,DFID,01/06/2017,Project delivery costs – supplier services ,East and Central Africa ,BMB  MOTT  MACDONALD ,202511-102 ,"77,691.47",
DFID,DFID,01/06/2017,Project delivery costs – supplier services ,East and Central Africa ,BMB  MOTT  MACDONALD ,202511-102 ,"1,104,778.72",
DFID,DFID,21/06/2017,Project delivery costs – supplier services ,West and Southern Africa ,BMB  MOTT  MACDONALD ,204242-102 ,"89,689.19",
DFID,DFID,13/06/2017,Aid Programme - Joint programme contribution ,Research and Evidence Division ,INTERNATIONAL DEVELOPMENT RESEARCH CENTRE ,204571-108 ,"806,629.00",
DFID,DFID,28/06/2017,Aid Programme - Joint programme contribution ,Policy Division ,INTERNATIONAL DEVELOPMENT RESEARCH CENTRE ,203483-102 ,"1,878,640.00",
DFID,DFID,13/06/2017,Aid Programme - Core contributions ,Research and Evidence Division ,INTERNATIONAL DEVELOPMENT RESEARCH CENTRE ,204168-103 ,"951,098.00",
DFID,DFID,28/06/2017,Aid Programme - Core contributions ,Research and Evidence Division ,INTERNATIONAL DEVELOPMENT RESEARCH CENTRE ,204321-102 ,"476,803.00",
DFID,DFID,26/06/2017,Aid Programme - Core contributions ,Research and Evidence Division ,INTERNATIONAL DEVELOPMENT RESEARCH CENTRE ,203737-102 ,"718,315.00",
DFID,DFID,07/06/2017,Aid Programme - Accountable Grant Payments ,Asia  Caribbean and Overseas Territories ,UCEP - Underpriveliged Childrens Education Programs ,203870-102 ,"158,982.00",
DFID,DFID,07/06/2017,Aid Programme - Accountable Grant Payments ,Asia  Caribbean and Overseas Territories ,UCEP - Underpriveliged Childrens Education Programs ,203870-104 ,"495,197.03",
DFID,DFID,20/06/2017,Aid Programme - Accountable Grant Payments ,Asia  Caribbean and Overseas Territories ,UCEP - Underpriveliged Childrens Education Programs ,203870-104 ,"954,948.58",
DFID,DFID,20/06/2017,Fund monies to be managed and dispersed by the supplier ,Research and Evidence Division ,CARDNO EMERGING MARKETS (UK) LTD ,203048-105 ,"197,123.48",
DFID,DFID,20/06/2017,Fund monies to be managed and dispersed by the supplier ,Research and Evidence Division ,CARDNO EMERGING MARKETS (UK) LTD ,203048-106 ,"43,617.55",
DFID,DFID,22/06/2017,Project delivery costs – supplier services ,East and Central Africa ,CARDNO EMERGING MARKETS (UK) LTD ,205052-104 ,"16,205.01",
DFID,DFID,29/06/2017,Project delivery costs – supplier services ,West and Southern Africa ,CARDNO EMERGING MARKETS (UK) LTD ,204179-105 ,"100,000.00",
DFID,DFID,29/06/2017,Project delivery costs – supplier services ,West and Southern Africa ,CARDNO EMERGING MARKETS (UK) LTD ,204179-105 ,"23,059.00",
DFID,DFID,07/06/2017,Project delivery costs – supplier services ,Asia  Caribbean and Overseas Territories ,DELOITTE TOUCHE TOHAMATSU INDIA PRIVATE LTD (DTTIPL) ,202736-102 ,"168,202.00",
DFID,DFID,07/06/2017,Project delivery costs – supplier services ,Asia  Caribbean and Overseas Territories ,DELOITTE TOUCHE TOHAMATSU INDIA PRIVATE LTD (DTTIPL) ,202736-102 ,"54,731.00",
DFID,DFID,07/06/2017,Project delivery costs – supplier services ,Asia  Caribbean and Overseas Territories ,DELOITTE TOUCHE TOHAMATSU INDIA PRIVATE LTD (DTTIPL) ,202736-102 ,"51,670.00",
DFID,DFID,15/06/2017,Aid Programme - Accountable Grant Payments ,Research and Evidence Division ,International Initiative for Impact Evaluation(3ie) ,200135-106 ,"46,057.00",
DFID,DFID,14/06/2017,Aid Programme - Accountable Grant Payments ,Research and Evidence Division ,International Initiative for Impact Evaluation(3ie) ,203650-104 ,"90,159.00",
DFID,DFID,19/06/2017,Aid Programme - Accountable Grant Payments ,Research and Evidence Division ,International Initiative for Impact Evaluation(3ie) ,203650-103 ,"143,356.00",
DFID,DFID,06/06/2017,Aid Programme - Accountable Grant Payments ,Research and Evidence Division ,International Initiative for Impact Evaluation(3ie) ,200135-109 ,"145,495.00",
DFID,DFID,02/06/2017,Training Providers/Facilitation Services ,Research and Evidence Division ,International Initiative for Impact Evaluation(3ie) ,100088-119 ,"9,804.00",
DFID,DFID,20/06/2017,Aid Programme - Accountable Grant Payments ,East and Central Africa ,International Initiative for Impact Evaluation(3ie) ,200795-109 ,"127,265.00",
DFID,DFID,16/06/2017,Aid Programme - Accountable Grant Payments ,Research and Evidence Division ,International Initiative for Impact Evaluation(3ie) ,200135-108 ,"1,190,274.00",
DFID,DFID,16/06/2017,Aid Programme - Accountable Grant Payments ,Research and Evidence Division ,International Initiative for Impact Evaluation(3ie) ,200135-107 ,"428,694.00",
DFID,DFID,14/06/2017,Aid Programme - Accountable Grant Payments ,Research and Evidence Division ,International Initiative for Impact Evaluation(3ie) ,203705-126 ,"111,855.00",
DFID,DFID,05/06/2017,Bank Charges/Services ,Group Operations ,Government Actuary's Department ,100182-101 ,"4,886.65",
DFID,DFID,27/06/2017,Bank Charges/Services ,Group Operations ,Government Actuary's Department ,100182-101 ,993.60,
DFID,DFID,06/06/2017,Aid Programme - Accountable Grant Payments ,West and Southern Africa ,NATIONAL DEMOCRATIC INSTITUTE (NDI) ,203851-118 ,"115,702.00",
DFID,DFID,27/06/2017,Aid Programme - Accountable Grant Payments ,Asia  Caribbean and Overseas Territories ,NATIONAL DEMOCRATIC INSTITUTE (NDI) ,300251-102 ,"294,716.00",
DFID,DFID,27/06/2017,Aid Programme - Accountable Grant Payments ,Asia  Caribbean and Overseas Territories ,NATIONAL DEMOCRATIC INSTITUTE (NDI) ,300251-103 ,"126,085.00",
DFID,DFID,13/06/2017,Entertainment & Hospitality ,Asia  Caribbean and Overseas Territories ,British Embassy (NRs) ,101621-101 ,908.98,
DFID,DFID,21/06/2017,Aid Programme - Voluntary contributions ,Asia  Caribbean and Overseas Territories ,UNOPS - support for Access Cell unit ,203274-106 ,"1,600,000.00",
DFID,DFID,21/06/2017,Aid Programme - Voluntary contributions ,Asia  Caribbean and Overseas Territories ,UNOPS - support for Access Cell unit ,203274-109 ,"400,000.00",
DFID,DFID,22/06/2017,Project delivery costs – supplier services ,Asia  Caribbean and Overseas Territories ,RURAL RECONSTRUCTION NEPAL ,203764-104 ,"204,273.00",
DFID,DFID,22/06/2017,Project delivery costs – supplier services ,Asia  Caribbean and Overseas Territories ,RURAL RECONSTRUCTION NEPAL ,203764-110 ,"140,366.00",
DFID,DFID,12/06/2017,Air fares ,Asia  Caribbean and Overseas Territories ,BONDS TRAVEL BUREAU ,101624-101 ,518.79,
DFID,DFID,19/06/2017,Air fares ,Asia  Caribbean and Overseas Territories ,BONDS TRAVEL BUREAU ,101624-101 ,"2,143.68",
DFID,DFID,05/06/2017,Data Network - land lines ,Business Solutions Division Level ,NAYATEL (PVT) LTD ,203329-102 ,701.22,
DFID,DFID,05/06/2017,Data Network - land lines ,Business Solutions Division Level ,NAYATEL (PVT) LTD ,200002-121 ,701.22,
DFID,DFID,05/06/2017,Air fares ,Asia  Caribbean and Overseas Territories ,OMAR TRAVELS ,300048-104 ,883.52,
DFID,DFID,06/06/2017,Aid Programme - Accountable Grant Payments ,Asia  Caribbean and Overseas Territories ,Supplier Name withheld ,300175-102 ,"28,308.97",
DFID,DFID,06/06/2017,Aid Programme - Accountable Grant Payments ,Asia  Caribbean and Overseas Territories ,Supplier Name withheld ,300175-103 ,"129,462.02",
DFID,DFID,06/06/2017,Aid Programme - Accountable Grant Payments ,Asia  Caribbean and Overseas Territories ,Supplier Name withheld ,300175-105 ,"46,063.13",
DFID,DFID,06/06/2017,Aid Programme - Accountable Grant Payments ,Asia  Caribbean and Overseas Territories ,Supplier Name withheld ,300175-107 ,570.63,
DFID,DFID,06/06/2017,Aid Programme - Accountable Grant Payments ,Asia  Caribbean and Overseas Territories ,Supplier Name withheld ,300175-108 ,570.63,
DFID,DFID,06/06/2017,Aid Programme - Accountable Grant Payments ,Asia  Caribbean and Overseas Territories ,Supplier Name withheld ,300175-110 ,"35,138.77",
DFID,DFID,06/06/2017,Legal costs ,Asia  Caribbean and Overseas Territories ,Khan & Piracha ,101624-101 ,"1,294.81",
DFID,DFID,12/06/2017,Air fares ,West and Southern Africa ,UNHAS - WFP (DRC) ,101610-101 ,"3,139.72",
DFID,DFID,07/06/2017,Computer software maintenance ,Business Solutions Division Level ,Dgroups Foundation ,200001-101 ,"4,355.72",
DFID,DFID,23/06/2017,Training Providers/Facilitation Services ,Business Solutions Division Level ,QA Limited ,200001-101 ,"1,058.50",
DFID,DFID,14/06/2017,Project delivery costs – supplier services ,West and Southern Africa ,PALLADIUM INTERNATIONAL ,202819-102 ,"48,193.50",
DFID,DFID,07/06/2017,Project delivery costs – supplier services ,West and Southern Africa ,PALLADIUM INTERNATIONAL ,202992-101 ,"750,944.00",
DFID,DFID,26/06/2017,Project delivery costs – supplier services ,Asia  Caribbean and Overseas Territories ,PALLADIUM INTERNATIONAL ,202488-105 ,"258,767.23",
DFID,DFID,02/06/2017,Aid Programme - Core contributions ,Economic Development Division ,International Monetary Fund (GBP) ,204114-101 ,"250,000.00",
DFID,DFID,01/06/2017,Aid Programme - Voluntary contributions ,Research and Evidence Division ,International Monetary Fund (GBP) ,204933-101 ,"611,090.00",
DFID,DFID,12/06/2017,Aid Programme - Accountable Grant Payments ,West and Southern Africa ,Basel Institute On Governance ,205173-101 ,"379,332.00",
DFID,DFID,06/06/2017,Office Supplies ,Group Operations ,Evolution (Electronic Security Systems) Ltd ,203717-101 ,"5,208.00",
DFID,DFID,28/06/2017,Professional member subscriptions ,Policy Division ,Chatham House ,100045-101 ,"3,250.00",
DFID,DFID,16/06/2017,Aid Programme - Voluntary contributions ,Economic Development Division ,The World Bank (EFO) ,203808-110 ,"60,625.00",
DFID,DFID,15/06/2017,Aid Programme - Voluntary contributions ,Asia  Caribbean and Overseas Territories ,The World Bank (EFO) ,203385-102 ,"66,924.00",
DFID,DFID,22/06/2017,Hotels - Accommodation only ,Asia  Caribbean and Overseas Territories ,Supplier Name withheld ,101624-101 ,521.85,
DFID,DFID,05/06/2017,Postage Costs ,Group Operations ,Royal Mail Group Ltd ,203717-101 ,787.00,
DFID,DFID,02/06/2017,Air fares ,Research and Evidence Division ,Bon Voyage Travel Centre Ltd(USD) ,202348-103 ,525.70,
DFID,DFID,15/06/2017,Air fares ,Asia  Caribbean and Overseas Territories ,Bon Voyage Travel Centre Ltd(USD) ,300048-104 ,969.74,
DFID,DFID,06/06/2017,Project delivery costs – supplier services ,East and Central Africa ,Bon Voyage Travel Centre Ltd(USD) ,203473-103 ,"1,021.72",
DFID,DFID,07/06/2017,Project delivery costs – supplier services ,East and Central Africa ,Bon Voyage Travel Centre Ltd(USD) ,203473-103 ,554.69,
DFID,DFID,02/06/2017,Air fares ,West and Southern Africa ,Bon Voyage Travel Centre Ltd(USD) ,101638-101 ,"1,199.38",
DFID,DFID,05/06/2017,Project delivery costs – supplier services ,East and Central Africa ,Bon Voyage Travel Centre Ltd(USD) ,101634-101 ,911.56,
DFID,DFID,02/06/2017,Air fares ,East and Central Africa ,Bon Voyage Travel Centre Ltd(USD) ,101634-101 ,"1,051.40",
DFID,DFID,02/06/2017,Project delivery costs – supplier services ,East and Central Africa ,Bon Voyage Travel Centre Ltd(USD) ,101634-101 ,"1,098.13",
DFID,DFID,02/06/2017,Air fares ,East and Central Africa ,Bon Voyage Travel Centre Ltd(USD) ,101634-101 ,732.09,
DFID,DFID,02/06/2017,Air fares ,East and Central Africa ,Bon Voyage Travel Centre Ltd(USD) ,101634-101 ,872.27,
DFID,DFID,20/06/2017,Air fares ,East and Central Africa ,Bon Voyage Travel Centre Ltd(USD) ,203596-101 ,727.70,
DFID,DFID,06/06/2017,Project delivery costs – supplier services ,East and Central Africa ,Bon Voyage Travel Centre Ltd(USD) ,203473-103 ,"1,210.24",
DFID,DFID,06/06/2017,Project delivery costs – supplier services ,East and Central Africa ,Bon Voyage Travel Centre Ltd(USD) ,203473-103 ,"1,380.92",
DFID,DFID,02/06/2017,Air fares ,East and Central Africa ,Bon Voyage Travel Centre Ltd(USD) ,202901-102 ,728.19,
DFID,DFID,02/06/2017,Air fares ,East and Central Africa ,Bon Voyage Travel Centre Ltd(USD) ,101634-101 ,732.09,
DFID,DFID,02/06/2017,Air fares ,East and Central Africa ,Bon Voyage Travel Centre Ltd(USD) ,101634-101 ,607.48,
DFID,DFID,07/06/2017,Training - Travel & Subsistence ,East and Central Africa ,Bon Voyage Travel Centre Ltd(USD) ,101634-101 ,890.61,
DFID,DFID,12/06/2017,Hotels - Accommodation only ,East and Central Africa ,Bon Voyage Travel Centre Ltd(Tsh) ,202901-102 ,627.71,
DFID,DFID,02/06/2017,Project delivery costs – supplier services ,East and Central Africa ,Bon Voyage Travel Centre Ltd(Tsh) ,205144-103 ,923.76,
DFID,DFID,26/06/2017,Aid Programme - Accountable Grant Payments ,Research and Evidence Division ,The Royal Society ,203041-102 ,"389,209.00",
DFID,DFID,13/06/2017,Research and development costs - supplier services ,Research and Evidence Division ,Tim Leyland ,300361-102 ,"7,635.70",
DFID,DFID,28/06/2017,Project delivery costs – supplier services ,Asia  Caribbean and Overseas Territories ,Landell Mills Ltd ,202787-102 ,"93,372.86",
DFID,DFID,28/06/2017,Project delivery costs – supplier services ,Asia  Caribbean and Overseas Territories ,Landell Mills Ltd ,202787-102 ,"223,029.53",
DFID,DFID,21/06/2017,Project delivery costs – supplier services ,Asia  Caribbean and Overseas Territories ,Supplier Name withheld ,205013-101 ,"116,840.00",
DFID,DFID,30/06/2017,Aid Programme - Core contributions ,Research and Evidence Division ,Program for Appropriate Technology in Health ,204139-105 ,"166,544.00",
DFID,DFID,30/06/2017,Aid Programme - Core contributions ,Research and Evidence Division ,Program for Appropriate Technology in Health ,204139-106 ,"521,971.50",
DFID,DFID,30/06/2017,Aid Programme - Core contributions ,Research and Evidence Division ,Program for Appropriate Technology in Health ,204139-107 ,"261,398.50",
DFID,DFID,26/06/2017,Aid Programme - Core contributions ,Economic Development Division ,SG HAMBROS BANK & TRUST LTD GBP ,203232-101 ,"2,050,000.00",
DFID,DFID,26/06/2017,Aid Programme - Core contributions ,Economic Development Division ,SG HAMBROS BANK & TRUST LTD GBP ,203232-129 ,"7,900,000.00",
DFID,DFID,22/06/2017,Aid Programme - Core contributions ,Policy Division ,GAVI ,203826-103 ,"9,000,000.00",
DFID,DFID,09/06/2017,Aid Programme - Core contributions ,East and Central Africa ,United Nations Office on Drugs and Crime (UNODC) ,204970-109 ,"381,237.13",
DFID,DFID,02/06/2017,Project delivery costs – supplier services ,Human Resources ,BIRCHES GROUP LLC ,100269-135 ,"1,169.61",
DFID,DFID,30/06/2017,Encashment of Promissory Notes ,International Relations Division ,Asian Development Bank,201297-105 ,"5,432,100.73",
DFID,DFID,30/06/2017,Encashment of Promissory Notes ,International Relations Division ,Asian Development Bank,203547-103 ,"7,550,000.00",
DFID,DFID,30/06/2017,Encashment of Promissory Notes ,International Relations Division ,Asian Development Bank,200614-104 ,"2,204,000.00",
DFID,DFID,29/06/2017,Encashment of Promissory Notes ,Policy Division ,Deutsche Gesellschaft fur Zusammenarbeit (GIZ) Gmbh ,202957-102 ,"637,649.81",
DFID,DFID,29/06/2017,Encashment of Promissory Notes ,Policy Division ,Deutsche Gesellschaft fur Zusammenarbeit (GIZ) Gmbh ,202957-104 ,"587,043.65",
DFID,DFID,29/06/2017,Encashment of Promissory Notes ,Policy Division ,Deutsche Gesellschaft fur Zusammenarbeit (GIZ) Gmbh ,202957-104 ,"211,878.44",
DFID,DFID,29/06/2017,Encashment of Promissory Notes ,Policy Division ,Deutsche Gesellschaft fur Zusammenarbeit (GIZ) Gmbh ,202957-105 ,"479,079.36",
DFID,DFID,29/06/2017,Encashment of Promissory Notes ,Policy Division ,Deutsche Gesellschaft fur Zusammenarbeit (GIZ) Gmbh ,202957-106 ,"750,376.34",
DFID,DFID,29/06/2017,Encashment of Promissory Notes ,Policy Division ,Deutsche Gesellschaft fur Zusammenarbeit (GIZ) Gmbh ,202957-106 ,"491,481.60",
DFID,DFID,16/06/2017,Encashment of Promissory Notes ,Policy Division ,Asian Development Bank - Asian Climate Partners Equity Fund ,201733-111 ,"3,187,824.81",
DFID,DFID,16/06/2017,Encashment of Promissory Notes ,Policy Division ,International Finance Corporation ,201733-112 ,"247,325.21",
DFID,DFID,21/06/2017,Project delivery costs – supplier services ,West and Southern Africa ,DANISH REFUGEE COUNCIL ,300298-107 ,"7,225.40",
DFID,DFID,02/06/2017,Project delivery costs – supplier services ,Asia  Caribbean and Overseas Territories ,SIDBI MUMBAI ,114293-103 ,"320,476.71",
DFID,DFID,06/06/2017,Hotels - Accommodation only ,East and Central Africa ,DOUBLE TREE by Hilton ,101634-101 ,911.44,
DFID,DFID,23/06/2017,Aid Programme - Joint programme contribution ,East and Central Africa ,TRADEMARK EAST AFRICA ,203307-102 ,"5,200,000.00",
DFID,DFID,15/06/2017,Aid Programme - Pooled/Basket funding ,East and Central Africa ,TRADEMARK EAST AFRICA ,200171-111 ,"2,352,537.00",
DFID,DFID,16/06/2017,Aid Programme - Pooled/Basket funding ,East and Central Africa ,TRADEMARK EAST AFRICA ,200171-112 ,"2,647,463.00",
DFID,DFID,01/06/2017,Aid Programme - Pooled/Basket funding ,East and Central Africa ,TRADEMARK EAST AFRICA ,202946-110 ,"150,000.00",
DFID,DFID,22/06/2017,Aid Programme - Accountable Grant Payments ,West and Southern Africa ,Clinton Health Access Initiative ,300036-110 ,"406,548.58",
DFID,DFID,02/06/2017,Aid Programme - Accountable Grant Payments ,West and Southern Africa ,Clinton Health Access Initiative ,203543-104 ,"242,690.00",
DFID,DFID,21/06/2017,Aid Programme - Accountable Grant Payments ,West and Southern Africa ,Action Against Hunger - USA ,202909-106 ,"546,522.38",
DFID,DFID,05/06/2017,Aid Programme - Accountable Grant Payments ,Asia  Caribbean and Overseas Territories ,The Asia Foundation (GBP) ,204623-101 ,"592,324.00",
DFID,DFID,29/06/2017,Aid Programme - Accountable Grant Payments ,Asia  Caribbean and Overseas Territories ,The Asia Foundation (GBP) ,204623-101 ,"415,296.00",
DFID,DFID,08/06/2017,Research and development costs - supplier services ,Research and Evidence Division ,DEVELOPMENT PATHWAYS LTD ,204584-135 ,"8,460.00",
DFID,DFID,22/06/2017,Project delivery costs – supplier services ,Conflict  Humanitarian  Security & Stabilisation Division ,Recipient name withheld ,204795-102 ,"18,100.00",
DFID,DFID,01/06/2017,Aid Programme - Accountable Grant Payments ,East and Central Africa ,Norwegian Refugee Council ,203462-110 ,"1,147,052.29",
DFID,DFID,01/06/2017,Aid Programme - Accountable Grant Payments ,East and Central Africa ,Norwegian Refugee Council ,203462-117 ,"247,170.84",
DFID,DFID,26/06/2017,Aid Programme - Accountable Grant Payments ,East and Central Africa ,Norwegian Refugee Council ,205116-104 ,"577,655.29",
DFID,DFID,16/06/2017,Aid Programme - Accountable Grant Payments ,East and Central Africa ,Norwegian Refugee Council ,205116-109 ,"280,000.00",
DFID,DFID,07/06/2017,Training - Course Fees ,PGP Directorate ,CIPFA BUSINESS LIMITED ,205044-101 ,"2,200.00",
DFID,DFID,06/06/2017,Aid Programme - Core contributions ,Research and Evidence Division ,USDA-ARS ,203202-101 ,"500,000.00",
DFID,DFID,08/06/2017,Research and development costs - supplier services ,Research and Evidence Division ,University of Edinburgh - Research Into Results Ltd ,204326-102 ,"237,520.64",
DFID,DFID,21/06/2017,Project delivery costs – supplier services ,Policy Division ,Triple Line Consulting ,205210-102 ,"109,762.93",
DFID,DFID,14/06/2017,Project delivery costs – supplier services ,Asia  Caribbean and Overseas Territories ,IMC Worldwide Ltd. ,203186-103 ,"100,323.40",
DFID,DFID,14/06/2017,Project delivery costs – supplier services ,Asia  Caribbean and Overseas Territories ,IMC Worldwide Ltd. ,203186-110 ,"386,574.75",
DFID,DFID,05/06/2017,Project delivery costs – supplier services ,West and Southern Africa ,IMC Worldwide Ltd. ,300113-101 ,"24,350.80",
DFID,DFID,19/06/2017,Project delivery costs – supplier services ,Asia  Caribbean and Overseas Territories ,IMC Worldwide Ltd. ,202697-104 ,"82,925.00",
DFID,DFID,20/06/2017,Project delivery costs – supplier services ,Asia  Caribbean and Overseas Territories ,IMC Worldwide Ltd. ,202328-107 ,"275,896.46",
DFID,DFID,20/06/2017,Project delivery costs – supplier services ,Asia  Caribbean and Overseas Territories ,IMC Worldwide Ltd. ,202697-111 ,"361,577.02",
DFID,DFID,08/06/2017,Project delivery costs – supplier services ,Asia  Caribbean and Overseas Territories ,IMC Worldwide Ltd. ,203106-102 ,"134,390.92",
DFID,DFID,30/06/2017,Project delivery costs – supplier services ,West and Southern Africa ,IMC Worldwide Ltd. ,202455-102 ,"37,558.63",
DFID,DFID,07/06/2017,Project delivery costs – supplier services ,West and Southern Africa ,IMC Worldwide Ltd. ,205195-102 ,"557,547.91",
DFID,DFID,05/06/2017,Project delivery costs – supplier services ,East and Central Africa ,IMC Worldwide Ltd. ,204888-106 ,"94,401.50",
DFID,DFID,22/06/2017,Project delivery costs – supplier services ,Economic Development Division ,IMC Worldwide Ltd. ,202628-102 ,"135,993.60",
DFID,DFID,05/06/2017,Project delivery costs – supplier services ,Asia  Caribbean and Overseas Territories ,IMC Worldwide Ltd. ,205157-113 ,"4,012.50",
DFID,DFID,23/06/2017,Project delivery costs – supplier services ,East and Central Africa ,Integrity Research and Consultancy ,204809-101 ,"18,752.75",
DFID,DFID,01/06/2017,Project delivery costs – supplier services ,East and Central Africa ,Integrity Research and Consultancy ,205067-101 ,"185,273.75",
DFID,DFID,30/06/2017,Project delivery costs – supplier services ,East and Central Africa ,Integrity Research and Consultancy ,205067-101 ,"26,375.93",
DFID,DFID,01/06/2017,Project delivery costs – supplier services ,West and Southern Africa ,DAI Europe ,203922-101 ,"237,423.94",
DFID,DFID,14/06/2017,Project delivery costs – supplier services ,East and Central Africa ,DAI Europe ,203986-105 ,"161,652.81",
DFID,DFID,05/06/2017,Project delivery costs – supplier services ,West and Southern Africa ,DAI Europe ,201857-102 ,"67,014.62",
DFID,DFID,07/06/2017,Project delivery costs – supplier services ,Asia  Caribbean and Overseas Territories ,DAI Europe ,203186-104 ,"31,209.17",
DFID,DFID,27/06/2017,Project delivery costs – supplier services ,East and Central Africa ,DAI Europe ,202596-105 ,"395,000.00",
DFID,DFID,27/06/2017,Project delivery costs – supplier services ,East and Central Africa ,DAI Europe ,202596-105 ,"177,266.99",
DFID,DFID,08/06/2017,Project delivery costs – supplier services ,West and Southern Africa ,DAI Europe ,202585-102 ,"62,345.11",
DFID,DFID,19/06/2017,Project delivery costs – supplier services ,West and Southern Africa ,DAI Europe ,202476-103 ,"450,525.47",
DFID,DFID,01/06/2017,Project delivery costs – supplier services ,East and Central Africa ,DAI Europe ,204157-102 ,"199,716.41",
DFID,DFID,01/06/2017,Project delivery costs – supplier services ,East and Central Africa ,DAI Europe ,204157-105 ,"564,226.99",
DFID,DFID,01/06/2017,Project delivery costs – supplier services ,East and Central Africa ,DAI Europe ,204157-108 ,"529,118.79",
DFID,DFID,23/06/2017,Project delivery costs – supplier services ,Middle East and North Africa Division ,DAI Europe ,204325-102 ,"145,880.07",
DFID,DFID,23/06/2017,Project delivery costs – supplier services ,Middle East and North Africa Division ,DAI Europe ,204325-102 ,"36,350.44",
DFID,DFID,23/06/2017,Project delivery costs – supplier services ,Middle East and North Africa Division ,DAI Europe ,204325-102 ,"87,528.04",
DFID,DFID,23/06/2017,Project delivery costs – supplier services ,Middle East and North Africa Division ,DAI Europe ,204325-102 ,"89,281.80",
DFID,DFID,23/06/2017,Project delivery costs – supplier services ,Middle East and North Africa Division ,DAI Europe ,204325-102 ,"98,209.97",
DFID,DFID,05/06/2017,Project delivery costs – supplier services ,West and Southern Africa ,DAI Europe ,201857-102 ,"228,008.18",
DFID,DFID,01/06/2017,Fund monies to be managed and dispersed by the supplier ,Middle East and North Africa Division ,DAI Europe ,201828-101 ,"110,385.95",
DFID,DFID,29/06/2017,Project delivery costs – supplier services ,Asia  Caribbean and Overseas Territories ,DAI Europe ,204672-102 ,"143,852.00",
DFID,DFID,29/06/2017,Project delivery costs – supplier services ,Asia  Caribbean and Overseas Territories ,DAI Europe ,204672-102 ,"79,859.05",
DFID,DFID,08/06/2017,Project delivery costs – supplier services ,West and Southern Africa ,DAI Europe ,204822-101 ,"553,841.60",
DFID,DFID,21/06/2017,Project delivery costs – supplier services ,West and Southern Africa ,DAI Europe ,201018-108 ,"13,143.53",
DFID,DFID,02/06/2017,Project delivery costs – supplier services ,West and Southern Africa ,DAI Europe ,202539-104 ,"5,343.00",
DFID,DFID,01/06/2017,Project delivery costs – supplier services ,West and Southern Africa ,DAI Europe ,201980-102 ,"105,351.22",
DFID,DFID,01/06/2017,Project delivery costs – supplier services ,West and Southern Africa ,DAI Europe ,201980-102 ,"6,693.68",
DFID,DFID,22/06/2017,Project delivery costs – supplier services ,Asia  Caribbean and Overseas Territories ,DAI Europe ,114433-102 ,"412,030.65",
DFID,DFID,22/06/2017,Project delivery costs – supplier services ,Asia  Caribbean and Overseas Territories ,DAI Europe ,114433-102 ,"300,340.38",
DFID,DFID,30/06/2017,Project delivery costs – supplier services ,Asia  Caribbean and Overseas Territories ,DAI Europe ,203185-101 ,"6,687.50",
DFID,DFID,16/06/2017,Project delivery costs – supplier services ,Asia  Caribbean and Overseas Territories ,DAI Europe ,204619-103 ,"24,895.00",
DFID,DFID,08/06/2017,Fund monies to be managed and dispersed by the supplier ,West and Southern Africa ,DAI Europe ,201958-102 ,"33,719.74",
DFID,DFID,21/06/2017,Fund monies to be managed and dispersed by the supplier ,West and Southern Africa ,DAI Europe ,201958-102 ,"11,977.13",
DFID,DFID,30/06/2017,Fund monies to be managed and dispersed by the supplier ,West and Southern Africa ,DAI Europe ,201958-102 ,"14,054.11",
DFID,DFID,29/06/2017,Project delivery costs – supplier services ,West and Southern Africa ,DAI Europe ,203317-102 ,"60,052.71",
DFID,DFID,16/06/2017,Project delivery costs – supplier services ,East and Central Africa ,DAI Europe ,204437-108 ,"21,295.94",
DFID,DFID,13/06/2017,Aid Programme - Accountable Grant Payments ,East and Central Africa , Catholic Relief Services ,203387-103 ,"966,090.00",
DFID,DFID,26/06/2017,Project delivery costs – supplier services ,Policy Division ,Sightsavers ,203146-103 ,"54,062.00",
DFID,DFID,01/06/2017,Project delivery costs – supplier services ,Policy Division ,Sightsavers ,203146-103 ,"54,178.00",
DFID,DFID,08/06/2017,Project delivery costs – supplier services ,Policy Division ,Sightsavers ,203145-101 ,"363,868.00",
DFID,DFID,28/06/2017,Project delivery costs – supplier services ,West and Southern Africa ,Abt Associates ,202342-102 ,"105,588.45",
DFID,DFID,02/06/2017,Aid Programme - Accountable Grant Payments ,Asia  Caribbean and Overseas Territories ,Marie Stopes International (MSI) ,203390-103 ,"930,227.80",
DFID,DFID,12/06/2017,Project delivery costs – supplier services ,East and Central Africa ,Marie Stopes International (MSI) ,204266-102 ,"799,964.00",
DFID,DFID,06/06/2017,Project delivery costs – supplier services ,Asia  Caribbean and Overseas Territories ,Marie Stopes International (MSI) ,202413-104 ,"1,008,366.00",
DFID,DFID,01/06/2017,Project delivery costs – supplier services ,East and Central Africa ,Marie Stopes International (MSI) ,202549-105 ,"214,285.00",
DFID,DFID,15/06/2017,Fund monies to be managed and dispersed by the supplier ,East and Central Africa ,Marie Stopes International (MSI) ,202549-105 ,"140,240.00",
DFID,DFID,15/06/2017,Project delivery costs – supplier services ,West and Southern Africa ,Marie Stopes International (MSI) ,202656-101 ,"1,163,847.00",
DFID,DFID,15/06/2017,Project delivery costs – supplier services ,West and Southern Africa ,Marie Stopes International (MSI) ,202656-101 ,"771,153.00",
DFID,DFID,29/06/2017,Project delivery costs – supplier services ,Policy Division ,PATH ,202676-101 ,"26,625.51",
DFID,DFID,27/06/2017,Project delivery costs – supplier services ,Policy Division ,PATH ,204954-102 ,"8,091.00",
DFID,DFID,05/06/2017,Project delivery costs – supplier services ,Policy Division ,PATH ,204954-102 ,"4,883.33",
DFID,DFID,05/06/2017,Project delivery costs – supplier services ,Policy Division ,PATH ,204954-102 ,"16,408.25",
DFID,DFID,08/06/2017,Project delivery costs – supplier services ,Policy Division ,PATH ,204954-102 ,"89,728.98",
DFID,DFID,28/06/2017,Project delivery costs – supplier services ,Policy Division ,PATH ,204954-102 ,"2,709.26",
DFID,DFID,28/06/2017,Project delivery costs – supplier services ,Policy Division ,PATH ,204954-102 ,501.79,
DFID,DFID,05/06/2017,Project delivery costs – supplier services ,Policy Division ,PATH ,204954-102 ,"18,871.91",
DFID,DFID,06/06/2017,Project delivery costs – supplier services ,Policy Division ,PATH ,204954-102 ,"25,152.00",
DFID,DFID,02/06/2017,Aid Programme - Accountable Grant Payments ,Asia  Caribbean and Overseas Territories ,DKT International ,202413-106 ,"496,822.18",
DFID,DFID,02/06/2017,Project delivery costs – supplier services ,West and Southern Africa ,WYG International ,202539-106 ,"1,577,500.00",
DFID,DFID,01/06/2017,Project delivery costs – supplier services ,Policy Division ,LTS International Ltd. ,201724-135 ,"28,537.35",
DFID,DFID,19/06/2017,Project delivery costs – supplier services ,Asia  Caribbean and Overseas Territories ,LTS International Ltd. ,201724-153 ,"74,089.13",
DFID,DFID,19/06/2017,Project delivery costs – supplier services ,Asia  Caribbean and Overseas Territories ,LTS International Ltd. ,201724-153 ,"324,707.33",
DFID,DFID,16/06/2017,Project delivery costs – supplier services ,Middle East and North Africa Division ,TRANSTEC ,204516-101 ,"19,459.00",
DFID,DFID,16/06/2017,Project delivery costs – supplier services ,Middle East and North Africa Division ,TRANSTEC ,205094-105 ,"75,389.00",
DFID,DFID,14/06/2017,Project delivery costs – supplier services ,Research and Evidence Division ,PricewaterhouseCoopers Pvt.Ltd ,203200-106 ,"127,469.00",
DFID,DFID,08/06/2017,Project delivery costs – supplier services ,Asia  Caribbean and Overseas Territories ,MMPL ,300109-102 ,"13,623.34",
DFID,DFID,08/06/2017,Project delivery costs – supplier services ,Asia  Caribbean and Overseas Territories ,MMPL ,300109-106 ,"19,598.19",
DFID,DFID,07/06/2017,Research and development costs - supplier services ,Research and Evidence Division ,PricewaterhouseCoopers Limited (KENYA3) ,204570-106 ,"116,286.69",
DFID,DFID,08/06/2017,Project delivery costs – supplier services ,Research and Evidence Division ,PricewaterhouseCoopers Limited (KENYA3) ,204570-106 ,"42,544.16",
DFID,DFID,08/06/2017,Hotels - Accommodation only ,West and Southern Africa ,Africa House ,101618-101 ,705.39,
DFID,DFID,29/06/2017,Project delivery costs – supplier services ,West and Southern Africa ,Movenpick Ambassador Hotel Accra ,204918-101 ,"6,213.84",
DFID,DFID,23/06/2017,Aid Programme - Accountable Grant Payments ,East and Central Africa ,Act! (Act.Change.Transform) ,203574-111 ,"157,820.00",
DFID,DFID,12/06/2017,Project delivery costs – supplier services ,Economic Development Division ,Landesa ,204249-102 ,"8,117.00",
DFID,DFID,20/06/2017,Recruitment costs ,Human Resources ,Newsquest (Herald & Times) Ltd ,100269-127 ,"13,599.99",
DFID,DFID,29/06/2017,Computer hardware maintenance ,West and Southern Africa ,Formats Projects Services Limited ,101622-107 ,"1,692.55",
DFID,DFID,01/06/2017,Aid Programme - Accountable Grant Payments ,East and Central Africa ,Absolute Return for Kids (ARK) ,204641-101 ,"47,442.00",
DFID,DFID,22/06/2017,Project delivery costs – supplier services ,East and Central Africa ,KPMG Rwanda ,204142-102 ,"12,374.28",
DFID,DFID,27/06/2017,Auditors Remuneration & Expenses - Cash ,East and Central Africa ,KPMG Rwanda ,203582-103 ,"21,485.03",
DFID,DFID,05/06/2017,Hostile Environment Training,West and Southern Africa ,KBR ,101620-101 ,550.00,
DFID,DFID,29/06/2017,Project delivery costs – supplier services ,Economic Development Division ,Frankfurt School of Finance and Management ,203444-109 ,"20,545.00",
DFID,DFID,05/06/2017,Project delivery costs – supplier services ,Policy Division ,Bloomberg Finance L.P. ,204020-105 ,"978,034.05",
DFID,DFID,27/06/2017,Project delivery costs – supplier services ,Policy Division ,SNV Netherlands Development Organisation ,203572-101 ,"1,012,900.00",
DFID,DFID,26/06/2017,Project delivery costs – supplier services ,West and Southern Africa ,Ghana-India Kofi Annan Centre of Excellence in ICT ,204918-101 ,"6,721.87",
DFID,DFID,28/06/2017,Hotels - Accommodation only ,East and Central Africa ,Golden Jubilee Limited ,101616-101 ,565.15,
DFID,DFID,02/06/2017,Project delivery costs – supplier services ,Asia  Caribbean and Overseas Territories ,Deloitte Touche Tohmatsu India Private Limited ,203224-101 ,"123,357.06",
DFID,DFID,09/06/2017,Project delivery costs – supplier services ,Asia  Caribbean and Overseas Territories ,Deloitte Touche Tohmatsu India Private Limited ,203224-101 ,"29,099.60",
DFID,DFID,02/06/2017,Project delivery costs – supplier services ,Asia  Caribbean and Overseas Territories ,Deloitte Touche Tohmatsu India Private Limited ,203224-101 ,"9,458.76",
DFID,DFID,05/06/2017,Project delivery costs – supplier services ,Asia  Caribbean and Overseas Territories ,Deloitte Touche Tohmatsu India Private Limited ,203224-101 ,"9,700.26",
DFID,DFID,08/06/2017,Project delivery costs – supplier services ,Asia  Caribbean and Overseas Territories ,Deloitte Touche Tohmatsu India Private Limited ,203224-101 ,"2,682.96",
DFID,DFID,21/06/2017,Project delivery costs – supplier services ,East and Central Africa ,dan whitaker ltd ,204266-104 ,"4,608.00",
DFID,DFID,21/06/2017,Project delivery costs – supplier services ,East and Central Africa ,dan whitaker ltd ,204266-104 ,"10,752.00",
DFID,DFID,21/06/2017,Project delivery costs – supplier services ,East and Central Africa ,dan whitaker ltd ,204266-104 ,"2,252.09",
DFID,DFID,13/06/2017,Aid Programme - Accountable Grant Payments ,West and Southern Africa ,TechnoServe  Incorporated ,204112-101 ,"372,056.72",
DFID,DFID,13/06/2017,Hotels - Accommodation only ,West and Southern Africa ,Supplier Name withheld ,101622-106 ,950.72,
DFID,DFID,22/06/2017,Computer software maintenance ,Business Solutions Division Level ,Phoenix Software Ltd ,200002-150 ,"1,992.00",
DFID,DFID,09/06/2017,Legal costs ,Asia  Caribbean and Overseas Territories ,Amarchand & Mangaldas & Suresh A Shroff & Co. ,202869-101 ,"6,174.99",
DFID,DFID,16/06/2017,Legal costs ,Asia  Caribbean and Overseas Territories ,Amarchand & Mangaldas & Suresh A Shroff & Co. ,202869-101 ,"3,530.08",
DFID,DFID,20/06/2017,Project delivery costs – supplier services ,Business Solutions Division Level ,Parity Resources ,200004-127 ,"1,681.08",
DFID,DFID,28/06/2017,Project delivery costs – supplier services ,Business Solutions Division Level ,Parity Resources ,200004-127 ,"1,681.08",
DFID,DFID,01/06/2017,Project delivery costs – supplier services ,Business Solutions Division Level ,Parity Resources ,200004-127 ,"1,681.08",
DFID,DFID,14/06/2017,Project delivery costs – supplier services ,Business Solutions Division Level ,Parity Resources ,200004-127 ,"1,344.86",
DFID,DFID,19/06/2017,Aid Programme - Joint programme contribution ,West and Southern Africa ,US Agency for Int'l Dev ,204889-101 ,"500,000.00",
DFID,DFID,14/06/2017,Aid Programme - Accountable Grant Payments ,Middle East and North Africa Division ,Shell Foundation ,203441-101 ,"101,251.00",
DFID,DFID,14/06/2017,Aid Programme - Accountable Grant Payments ,Middle East and North Africa Division ,Shell Foundation ,203441-101 ,"179,451.00",
DFID,DFID,28/06/2017,Aid Programme - Accountable Grant Payments ,Middle East and North Africa Division ,Shell Foundation ,203441-101 ,"95,360.00",
DFID,DFID,07/06/2017,Aid Programme - Accountable Grant Payments ,Policy Division ,AAUK ,203559-114 ,"109,939.59",
DFID,DFID,07/06/2017,Aid Programme - Accountable Grant Payments ,Policy Division ,AAUK ,203559-169 ,"6,835.75",
DFID,DFID,01/06/2017,Aid Programme - Accountable Grant Payments ,Policy Division ,AAUK ,202197-101 ,"47,814.18",
DFID,DFID,13/06/2017,Training - Course Fees ,East and Central Africa ,Rusando Limited ,101635-101 ,"9,429.02",
DFID,DFID,13/06/2017,Training - Course Fees ,Finance and Corporate Performance Division ,Rusando Limited ,100201-101 ,"1,700.00",
DFID,DFID,30/06/2017,Aid Programme - Accountable Grant Payments ,Asia  Caribbean and Overseas Territories ,People in Need ,205138-109 ,"950,000.00",
DFID,DFID,01/06/2017,Postage Costs ,Group Operations ,Royal Mail Courier Services Ltd ,203717-101 ,712.50,
DFID,DFID,28/06/2017,Postage Costs ,Group Operations ,Royal Mail Courier Services Ltd ,203717-101 ,875.00,
DFID,DFID,02/06/2017,Aid Programme - Accountable Grant Payments ,Policy Division ,SolarAid ,203559-136 ,"37,837.33",
DFID,DFID,09/06/2017,Training - Course Fees ,Top Management Group ,Civil Service College Limited ,100232-105 ,595.00,
DFID,DFID,02/06/2017,Aid Programme - Refugee Relief Payments ,Middle East and North Africa Division ,Impact Initiatives ,300045-103 ,"38,673.00",
DFID,DFID,09/06/2017,Project delivery costs – supplier services ,East and Central Africa ,Impact Initiatives ,204019-111 ,"42,278.00",
DFID,DFID,06/06/2017,Aid Programme - Other Financial Aid to Government ,East and Central Africa ,Government of Rwanda NSDS2 in Rwanda ,201690-101 ,"750,000.00",
DFID,DFID,30/06/2017,Contract & Agency Staff ,Group Operations ,Anderson Knight Ltd ,100270-104 ,725.94,
DFID,DFID,26/06/2017,Contract & Agency Staff ,Group Operations ,Anderson Knight Ltd ,100270-104 ,725.94,
DFID,DFID,06/06/2017,Contract & Agency Staff ,Group Operations ,Anderson Knight Ltd ,100270-104 ,725.94,
DFID,DFID,12/06/2017,Contract & Agency Staff ,Group Operations ,Anderson Knight Ltd ,100270-104 ,725.94,
DFID,DFID,19/06/2017,Contract & Agency Staff ,Group Operations ,Anderson Knight Ltd ,100270-104 ,725.94,
DFID,DFID,19/06/2017,Contract & Agency Staff ,Group Operations ,Anderson Knight Ltd ,100270-104 ,725.94,
DFID,DFID,06/06/2017,Contract & Agency Staff ,Business Solutions Division Level ,Anderson Knight Ltd ,200001-101 ,878.76,
DFID,DFID,01/06/2017,Contract & Agency Staff ,Business Solutions Division Level ,Anderson Knight Ltd ,200001-101 ,878.76,
DFID,DFID,27/06/2017,Contract & Agency Staff ,Business Solutions Division Level ,Anderson Knight Ltd ,200001-101 ,"1,083.80",
DFID,DFID,15/06/2017,Contract & Agency Staff ,Group Operations ,Anderson Knight Ltd ,201870-101 ,725.94,
DFID,DFID,15/06/2017,Contract & Agency Staff ,Group Operations ,Anderson Knight Ltd ,201870-101 ,725.94,
DFID,DFID,30/06/2017,Contract & Agency Staff ,Business Solutions Division Level ,Anderson Knight Ltd ,200001-101 ,"2,636.39",
DFID,DFID,06/06/2017,Contract & Agency Staff ,Group Operations ,Anderson Knight Ltd ,100270-101 ,725.94,
DFID,DFID,27/06/2017,Contract & Agency Staff ,Group Operations ,Anderson Knight Ltd ,100270-101 ,725.94,
DFID,DFID,15/06/2017,Contract & Agency Staff ,Group Operations ,Anderson Knight Ltd ,100270-104 ,725.94,
DFID,DFID,20/06/2017,Contract & Agency Staff ,Business Solutions Division Level ,Anderson Knight Ltd ,200001-101 ,"1,083.80",
DFID,DFID,15/06/2017,Contract & Agency Staff ,Business Solutions Division Level ,Anderson Knight Ltd ,200001-101 ,"1,083.80",
DFID,DFID,12/06/2017,Contract & Agency Staff ,Business Solutions Division Level ,Anderson Knight Ltd ,200001-101 ,"1,083.80",
DFID,DFID,23/06/2017,Contract & Agency Staff ,Group Operations ,Anderson Knight Ltd ,204664-101 ,719.72,
DFID,DFID,15/06/2017,Recruitment costs ,Group Operations ,Anderson Knight Ltd ,100270-104 ,"3,580.56",
DFID,DFID,15/06/2017,Contract & Agency Staff ,Group Operations ,Anderson Knight Ltd ,100270-101 ,725.94,
DFID,DFID,20/06/2017,Contract & Agency Staff ,Group Operations ,Anderson Knight Ltd ,100270-101 ,725.94,
DFID,DFID,12/06/2017,Contract & Agency Staff ,Group Operations ,Anderson Knight Ltd ,100270-101 ,725.94,
DFID,DFID,15/06/2017,Contract & Agency Staff ,Group Operations ,Anderson Knight Ltd ,100270-101 ,725.94,
DFID,DFID,06/06/2017,Contract & Agency Staff ,Group Operations ,Anderson Knight Ltd ,204664-101 ,725.94,
DFID,DFID,13/06/2017,Contract & Agency Staff ,Group Operations ,Anderson Knight Ltd ,204664-101 ,725.94,
DFID,DFID,20/06/2017,Contract & Agency Staff ,Group Operations ,Anderson Knight Ltd ,204664-101 ,725.94,
DFID,DFID,27/06/2017,Contract & Agency Staff ,Group Operations ,Anderson Knight Ltd ,204664-101 ,725.94,
DFID,DFID,15/06/2017,Contract & Agency Staff ,Group Operations ,Anderson Knight Ltd ,204664-101 ,725.94,
DFID,DFID,15/06/2017,Contract & Agency Staff ,Group Operations ,Anderson Knight Ltd ,204664-101 ,725.94,
DFID,DFID,12/06/2017,Research and development costs - supplier services ,Research and Evidence Division ,Stichting Dienst Landbouwkundig Onderzoek  institute Alterra ,203202-102 ,"6,959.14",
DFID,DFID,06/06/2017,Aid Programme - Other Financial Aid to Government ,Asia  Caribbean and Overseas Territories ,Pitcairn Islands Office ,204710-101 ,"439,000.00",
DFID,DFID,30/06/2017,Aid Programme - Other Financial Aid to Government ,East and Central Africa ,Public Financial Management Reform Rwanda ,204323-102 ,"200,000.00",
DFID,DFID,27/06/2017,Project delivery costs – supplier services ,Conflict  Humanitarian  Security & Stabilisation Division ,Norwegian People's Aid ,203243-124 ,"707,236.93",
DFID,DFID,07/06/2017,Project delivery costs – supplier services ,Asia  Caribbean and Overseas Territories ,Louis Berger Group  Inc. ,203426-102 ,"245,964.00",
DFID,DFID,30/06/2017,Project delivery costs – supplier services ,Asia  Caribbean and Overseas Territories ,Louis Berger Group  Inc. ,203426-102 ,"278,223.00",
DFID,DFID,30/06/2017,Project delivery costs – supplier services ,Asia  Caribbean and Overseas Territories ,Louis Berger Group  Inc. ,203426-109 ,"85,000.00",
DFID,DFID,07/06/2017,Project delivery costs – supplier services ,Asia  Caribbean and Overseas Territories ,Louis Berger Group  Inc. ,203426-109 ,"65,000.00",
DFID,DFID,29/06/2017,Professional member subscriptions ,Human Resources ,Towers Watson Limited ,100269-148 ,"4,624.80",
DFID,DFID,28/06/2017,Aid Programme - Accountable Grant Payments ,Asia  Caribbean and Overseas Territories ,Dolma Foundation ,203426-107 ,"131,818.47",
DFID,DFID,06/06/2017,Aid Programme - Accountable Grant Payments ,Policy Division ,HelpAge International UK ,203559-109 ,"364,013.00",
DFID,DFID,28/06/2017,Training Providers/Facilitation Services ,Group Operations ,HMRC ,204284-101 ,"1,764.00",
DFID,DFID,16/06/2017,Aid Programme - Accountable Grant Payments ,East and Central Africa ,PEAS (Promoting Equality in African Schools) ,204641-101 ,"836,529.56",
DFID,DFID,01/06/2017,Training - Course Fees ,West and Southern Africa ,Language Services Direct Ltd ,101610-101 ,"2,939.20",
DFID,DFID,20/06/2017,Training Providers/Facilitation Services ,East and Central Africa ,Language Services Direct Ltd ,101625-108 ,905.20,
DFID,DFID,30/06/2017,Aid Programme - Pooled/Basket funding ,East and Central Africa ,Kenya Markets Trust ,202698-107 ,"2,132,806.00",
DFID,DFID,28/06/2017,Project delivery costs – supplier services ,International Relations Division ,Faculdades Católicas ,203707-102 ,"3,155.68",
DFID,DFID,02/06/2017,Aid Programme - Joint programme contribution ,Asia  Caribbean and Overseas Territories ,Deutsche Gesellschaft für Internationale Zusammenarbeit (GIZ) GmbH ,202488-110 ,"58,491.06",
DFID,DFID,13/06/2017,Project delivery costs – supplier services ,Asia  Caribbean and Overseas Territories ,Supplier Name withheld ,202112-103 ,"99,254.20",
DFID,DFID,12/06/2017,Aid Programme - Poverty Reduction Budget Support ,West and Southern Africa ,Ministry of Gender  Children and Social Protection  Ghana ,201629-108 ,"3,200,000.00",
DFID,DFID,19/06/2017,Project delivery costs – supplier services ,East and Central Africa ,ACE International Consultants S.L. ,203008-103 ,"27,046.65",
DFID,DFID,19/06/2017,Project delivery costs – supplier services ,East and Central Africa ,ACE International Consultants S.L. ,203008-103 ,"67,725.00",
DFID,DFID,07/06/2017,Research and development costs - supplier services ,Research and Evidence Division ,African Institute for Development Policy (AFIDEP) ,203778-108 ,"39,069.28",
DFID,DFID,02/06/2017,Project delivery costs – supplier services ,Policy Division ,South African Medical Research Council ,203709-110 ,"1,050,195.00",
DFID,DFID,26/06/2017,Project delivery costs – supplier services ,West and Southern Africa ,National Crime Agency ,114161-104 ,921.80,
DFID,DFID,26/06/2017,Project delivery costs – supplier services ,West and Southern Africa ,National Crime Agency ,114161-104 ,"149,000.00",
DFID,DFID,20/06/2017,Aid Programme - Accountable Grant Payments ,Research and Evidence Division ,GSMA Mobile for Development Foundation Inc ,203638-105 ,"797,035.96",
DFID,DFID,26/06/2017,Aid Programme - Other Financial Aid to Government ,Asia  Caribbean and Overseas Territories ,Ministry of Finance and Planning Jamaica  FID Task Force ,204232-102 ,"210,715.00",
DFID,DFID,30/06/2017,Aid Programme - Accountable Grant Payments ,Conflict  Humanitarian  Security & Stabilisation Division ,Catholic Relief Services - USCCB ,300264-104 ,"1,051,097.00",
DFID,DFID,22/06/2017,Air fares ,Asia  Caribbean and Overseas Territories ,dnata International Private Ltd. ,204053-101 ,"7,095.21",
DFID,DFID,01/06/2017,Aid Programme - Accountable Grant Payments ,East and Central Africa ,WFT Africa ,202844-105 ,"580,126.00",
DFID,DFID,12/06/2017,Project delivery costs – supplier services ,West and Southern Africa ,Imperial Health Sciences ,202214-108 ,"4,201.98",
DFID,DFID,12/06/2017,Computer software maintenance ,Business Solutions Division Level ,CGI IT UK Limited ,200002-103 ,"15,250.00",
DFID,DFID,08/06/2017,Aid Programme - Accountable Grant Payments ,West and Southern Africa ,Deutsche Welthungerhilfe ,203636-101 ,"22,224.00",
DFID,DFID,13/06/2017,Aid Programme - Voluntary contributions ,Middle East and North Africa Division ,International Bank for Reconstruction and Development ,300060-104 ,"40,000.00",
DFID,DFID,27/06/2017,Aid Programme - Other Financial Aid to Government ,West and Southern Africa ,Ministry of Finance  Ghana Health Sector Support Programme ,203536-110 ,"1,250,000.00",
DFID,DFID,09/06/2017,Project delivery costs – supplier services ,West and Southern Africa ,ICC Moçambique  Lda ,204179-107 ,"1,654.70",
DFID,DFID,05/06/2017,Aid Programme - Accountable Grant Payments ,East and Central Africa ,The Foundation for Civil Society (TZ) ,204801-101 ,"1,575,454.43",
DFID,DFID,06/06/2017,Aid Programme - Accountable Grant Payments ,Asia  Caribbean and Overseas Territories ,Infrastructure Development Company Limited (IDCOL) ,202976-107 ,"579,743.00",
DFID,DFID,28/06/2017,Project delivery costs – supplier services ,East and Central Africa ,CANADEM ,205286-105 ,"22,793.42",
DFID,DFID,30/06/2017,Project delivery costs – supplier services ,West and Southern Africa ,CANADEM ,300298-107 ,"19,338.32",
DFID,DFID,08/06/2017,Aid Programme - Accountable Grant Payments ,East and Central Africa ,CANADEM ,205256-104 ,"6,594.55",
DFID,DFID,21/06/2017,Aid Programme - Accountable Grant Payments ,Conflict  Humanitarian  Security & Stabilisation Division ,CANADEM ,203419-105 ,"1,132.11",
DFID,DFID,21/06/2017,Aid Programme - Accountable Grant Payments ,Conflict  Humanitarian  Security & Stabilisation Division ,CANADEM ,203419-105 ,"8,571.00",
DFID,DFID,13/06/2017,Water charges ,West and Southern Africa ,Venida Water Limited ,101622-106 ,626.66,
DFID,DFID,14/06/2017,Aid Programme - Accountable Grant Payments ,East and Central Africa ,SAGCOT CENTRE LIMITED ,202844-108 ,"321,465.45",
DFID,DFID,09/06/2017,Aid Programme - Humanitarian Material Relief Assistance and Services ,Middle East and North Africa Division ,RedR Australia ,204516-103 ,"21,919.35",
DFID,DFID,29/06/2017,Auditors Assurance Service ,West and Southern Africa ,Baker Tilly Business Services Limited ,205173-102 ,"90,415.00",
DFID,DFID,06/06/2017,Project delivery costs – supplier services ,West and Southern Africa ,RENAN CONSULT LTD ,204918-101 ,"3,981.53",
DFID,DFID,15/06/2017,Data Network - land lines ,Business Solutions Division Level ,(Vodafone)Cable & Wireless Global Networks Ltd ,200002-185 ,"6,116.61",
DFID,DFID,15/06/2017,Data Network - land lines ,Business Solutions Division Level ,(Vodafone)Cable & Wireless Global Networks Ltd ,203329-103 ,"6,116.61",
DFID,DFID,30/06/2017,Research and development costs - supplier services ,Research and Evidence Division ,President and Fellows of Harvard College ,203778-105 ,"410,631.00",
DFID,DFID,01/06/2017,Project delivery costs – supplier services ,East and Central Africa ,Deloitte Kenya ,203357-102 ,"25,560.00",
DFID,DFID,19/06/2017,Aid Programme - Accountable Grant Payments ,East and Central Africa ,International NGO Safety Organisation ,204788-105 ,"81,500.00",
DFID,DFID,27/06/2017,Aid Programme - Other Financial Aid to Government ,East and Central Africa ,RWANDA LAND MANAGEMENT AND USE AUTHORITY ,200284-108 ,"445,836.00",
DFID,DFID,29/06/2017,Aid Programme - Accountable Grant Payments ,East and Central Africa ,Girl Hub ,203949-101 ,"955,982.00",
DFID,DFID,08/06/2017,Aid Programme - Joint programme contribution ,Asia  Caribbean and Overseas Territories ,Department of Foreign Affairs and Trade of Australia ,203601-106 ,"20,421.67",
DFID,DFID,13/06/2017,Aid Programme - Joint programme contribution ,Asia  Caribbean and Overseas Territories ,Department of Foreign Affairs and Trade of Australia ,203601-106 ,"23,535.34",
DFID,DFID,29/06/2017,Telephone Usage & services ,West and Southern Africa ,Emerging Markets Telecommunications Services Ltd ,101622-107 ,"1,434.27",
DFID,DFID,29/06/2017,Telephone Usage & services ,West and Southern Africa ,Emerging Markets Telecommunications Services Ltd ,101622-107 ,"1,510.87",
DFID,DFID,12/06/2017,Project delivery costs – supplier services ,West and Southern Africa ,Development Agenda for Western Nigeria ,204438-114 ,"7,945.29",
DFID,DFID,12/06/2017,Project delivery costs – supplier services ,West and Southern Africa ,Development Agenda for Western Nigeria ,204438-115 ,"9,092.23",
DFID,DFID,23/06/2017,Aid Programme - Trust Funds contributions ,Economic Development Division ,World Bank - IBRD ,203211-101 ,"207,000.00",
DFID,DFID,22/06/2017,Aid Programme - Voluntary contributions ,Asia  Caribbean and Overseas Territories ,Nordic International Support Foundation (NIS) ,204661-102 ,"2,000,000.00",
DFID,DFID,13/06/2017,Project delivery costs – supplier services ,West and Southern Africa ,Henry Young & Co ,101622-106 ,"9,736.90",
DFID,DFID,01/06/2017,Project delivery costs – supplier services ,Asia  Caribbean and Overseas Territories ,Public Health England ,202488-109 ,"215,861.00",
DFID,DFID,14/06/2017,Training Providers/Facilitation Services ,Research and Evidence Division ,LSR Training and Development Ltd. ,204815-101 ,640.00,
DFID,DFID,27/06/2017,Aid Programme - Accountable Grant Payments ,East and Central Africa ,ZOA ,205082-101 ,"700,000.00",
DFID,DFID,06/06/2017,Computer Software Licenses ,Finance and Corporate Performance Division ,eCom Scotland Ltd ,100008-106 ,"2,590.00",
DFID,DFID,12/06/2017,Aid Programme - Other Financial Aid to Government ,West and Southern Africa ,Office of the President Ghana ,204483-102 ,"45,175.00",
DFID,DFID,22/06/2017,Aid Programme - Accountable Grant Payments ,West and Southern Africa ,Africa Centre for Energy ,204918-106 ,"31,187.54",
DFID,DFID,01/06/2017,Project delivery costs – supplier services ,East and Central Africa ,Scriptoria Sustainable Development Communications ,200221-107 ,503.70,
DFID,DFID,19/06/2017,Project delivery costs – supplier services ,Middle East and North Africa Division ,Moore Stephens LLP ,204516-102 ,"61,894.00",
DFID,DFID,15/06/2017,Auditors Assurance Service ,Economic Development Division ,Moore Stephens LLP ,202628-104 ,"28,101.50",
DFID,DFID,28/06/2017,Training Providers/Facilitation Services ,Finance and Corporate Performance Division ,Calder Conferences ,204846-101 ,"16,350.98",
DFID,DFID,12/06/2017,Project delivery costs – supplier services ,Asia  Caribbean and Overseas Territories ,Galliford Try Infrastructure Limited ,203137-101 ,"168,360.25",
DFID,DFID,21/06/2017,Project delivery costs – supplier services ,Asia  Caribbean and Overseas Territories ,Galliford Try Infrastructure Limited ,203137-101 ,"52,513.29",
DFID,DFID,21/06/2017,Office Equipment - Purchases ,Finance and Corporate Performance Division ,THISTLE STORAGE EQUIPMENT LTD ,100201-101 ,"7,415.88",
DFID,DFID,28/06/2017,Aid Programme - Voluntary contributions ,Middle East and North Africa Division ,COMMISSION EUROPEENNE ,300287-101 ,"73,720,666.78",
DFID,DFID,14/06/2017,Training - Course Fees ,West and Southern Africa ,HEMA SONIASSY MARIE ,101610-101 ,"1,924.40",
DFID,DFID,14/06/2017,Aid Programme - Trust Funds contributions ,Economic Development Division ,UNOPS-HQ ,300069-101 ,"1,625,000.00",
DFID,DFID,27/06/2017,Aid Programme - Accountable Grant Payments ,East and Central Africa ,Natural Resource Governance Institute - CORE ,203308-110 ,"677,293.00",
DFID,DFID,22/06/2017,Auditors Remuneration & Expenses - Cash ,Asia  Caribbean and Overseas Territories ,KPMG Taseer Hadi and Co ,204023-104 ,"6,588.07",
DFID,DFID,27/06/2017,Air fares ,East and Central Africa ,Recipient name withheld ,101634-101 ,691.02,
DFID,DFID,23/06/2017,DFID Purchased Relief Supplies ,East and Central Africa ,AECOM Professional Services ,202900-107 ,"34,653.06",
DFID,DFID,07/06/2017,DFID Purchased Relief Supplies ,Middle East and North Africa Division ,AECOM Professional Services ,204523-102 ,"2,699.55",
DFID,DFID,13/06/2017,DFID Purchased Relief Supplies ,West and Southern Africa ,AECOM Professional Services ,300036-109 ,"266,443.00",
DFID,DFID,13/06/2017,DFID Purchased Relief Supplies ,West and Southern Africa ,AECOM Professional Services ,300036-109 ,"477,673.70",
DFID,DFID,13/06/2017,DFID Purchased Relief Supplies ,West and Southern Africa ,AECOM Professional Services ,300036-109 ,"335,548.81",
DFID,DFID,01/06/2017,Project delivery costs – supplier services ,West and Southern Africa ,AECOM Professional Services ,202214-103 ,"61,446.08",
DFID,DFID,14/06/2017,DFID Purchased Relief Supplies ,Policy Division ,AECOM Professional Services ,203148-102 ,"19,364.53",
DFID,DFID,02/06/2017,Aid Programme - Other Financial Aid to Government ,East and Central Africa ,Ethiopian Development Research Institute ,204803-101 ,"350,000.00",
DFID,DFID,01/06/2017,Aid Programme - Accountable Grant Payments ,Asia  Caribbean and Overseas Territories ,Karandaaz Pakistan ,202495-107 ,"113,000.00",
DFID,DFID,01/06/2017,Aid Programme - Accountable Grant Payments ,Asia  Caribbean and Overseas Territories ,Karandaaz Pakistan ,202495-108 ,"50,000.00",
DFID,DFID,01/06/2017,Aid Programme - Accountable Grant Payments ,Asia  Caribbean and Overseas Territories ,Karandaaz Pakistan ,202495-109 ,"10,707.00",
DFID,DFID,01/06/2017,Aid Programme - Accountable Grant Payments ,Asia  Caribbean and Overseas Territories ,Karandaaz Pakistan ,202495-110 ,"95,726.00",
DFID,DFID,05/06/2017,Aid Programme - Accountable Grant Payments ,Asia  Caribbean and Overseas Territories ,Perkumpulan Dewan Bisnis Indonesia Untuk Pembangunan Berkelanjutan ,204623-107 ,"33,931.71",
DFID,DFID,06/06/2017,Project delivery costs – supplier services ,West and Southern Africa ,PRICEWATERHOUSECOOPERS  GHANA ,204918-101 ,"14,487.38",
DFID,DFID,13/06/2017,Fund monies to be managed and dispersed by the supplier ,East and Central Africa ,KPMG East Africa Limited ,204439-108 ,"557,398.65",
DFID,DFID,01/06/2017,Aid Programme - Accountable Grant Payments ,Policy Division ,Village Water ,203559-122 ,"6,473.00",
DFID,DFID,14/06/2017,Recruitment costs ,Finance and Corporate Performance Division ,Livingston James ,202437-101 ,"4,941.00",
DFID,DFID,01/06/2017,Aid Programme - Accountable Grant Payments ,Policy Division ,Street Child ,203559-111 ,"2,507.00",
DFID,DFID,02/06/2017,Aid Programme - Accountable Grant Payments ,Asia  Caribbean and Overseas Territories ,Supplier Name withheld ,203904-105 ,"180,831.47",
DFID,DFID,08/06/2017,Aid Programme - Accountable Grant Payments ,Economic Development Division ,Land Portal ,204252-118 ,"117,246.24",
DFID,DFID,09/06/2017,Training Providers/Facilitation Services ,Policy Division ,Garama 3C Ltd ,202402-107 ,535.00,
DFID,DFID,09/06/2017,Training Providers/Facilitation Services ,Policy Division ,Garama 3C Ltd ,202402-107 ,595.00,
DFID,DFID,13/06/2017,Hotels - Accommodation only ,East and Central Africa ,HRG Kenya (KES) ,101616-101 ,705.74,
DFID,DFID,08/06/2017,Air fares ,East and Central Africa ,HRG Kenya (USD) ,202594-101 ,608.25,
DFID,DFID,21/06/2017,Air fares ,Research and Evidence Division ,HRG Kenya (USD) ,202392-111 ,901.19,
DFID,DFID,08/06/2017,Air fares ,West and Southern Africa ,HRG Kenya (USD) ,101610-101 ,697.36,
DFID,DFID,08/06/2017,Staff Travel - Air Fares,West and Southern Africa ,HRG Kenya (USD) ,101610-101 ,520.69,
DFID,DFID,08/06/2017,Air fares ,East and Central Africa ,HRG Kenya (USD) ,205116-108 ,674.11,
DFID,DFID,08/06/2017,Air fares ,East and Central Africa ,HRG Kenya (USD) ,101616-102 ,"1,085.54",
DFID,DFID,21/06/2017,Air fares ,East and Central Africa ,HRG Kenya (USD) ,101616-102 ,"2,630.17",
DFID,DFID,08/06/2017,Air fares ,East and Central Africa ,HRG Kenya (USD) ,101616-101 ,"1,187.82",
DFID,DFID,06/06/2017,Air fares ,East and Central Africa ,HRG Kenya (USD) ,101616-101 ,601.71,
DFID,DFID,08/06/2017,Air fares ,Research and Evidence Division ,HRG Kenya (USD) ,202392-111 ,532.31,
DFID,DFID,06/06/2017,Air fares ,East and Central Africa ,HRG Kenya (USD) ,101630-101 ,"5,012.46",
DFID,DFID,21/06/2017,Air fares ,East and Central Africa ,HRG Kenya (USD) ,101630-101 ,"4,289.71",
DFID,DFID,21/06/2017,Air fares ,East and Central Africa ,HRG Kenya (USD) ,101630-102 ,"5,168.80",
DFID,DFID,21/06/2017,Air fares ,East and Central Africa ,HRG Kenya (USD) ,205068-104 ,"1,163.18",
DFID,DFID,06/06/2017,Air fares ,West and Southern Africa ,Supplier Name withheld ,101622-106 ,618.02,
DFID,DFID,06/06/2017,Air fares ,Research and Evidence Division ,HRG Kenya (USD) ,202392-111 ,923.92,
DFID,DFID,26/06/2017,Aid Programme - Accountable Grant Payments ,Asia  Caribbean and Overseas Territories ,United Nations Development Programme - Brazil ,203688-109 ,"56,000.00",
DFID,DFID,12/06/2017,Repairs  Maintenance and Alterations – Other Building Costs ,Group Operations ,Fire Scotland Ltd ,100106-101 ,"1,176.00",
DFID,DFID,02/06/2017,Aid Programme - Other Financial Aid to Government ,East and Central Africa ,Ministry of Finance and Economic Development-Land Investment for Transformation ,202900-106 ,"1,105,331.00",
DFID,DFID,01/06/2017,Aid Programme - Other Financial Aid to Government ,Asia  Caribbean and Overseas Territories ,Ministry of Women Children and Social Welfare ,203274-105 ,"758,804.00",
DFID,DFID,20/06/2017,Aid Programme - Accountable Grant Payments ,Asia  Caribbean and Overseas Territories ,Aga Khan Foundation  Kyrgyz ,300051-102 ,"79,240.00",
DFID,DFID,30/06/2017,Training - Course Fees ,West and Southern Africa ,ALLIANCE FRANCAISE BORDEAUX AQUITAINE ,101610-101 ,"1,234.37",
